{"text_format":"1","workbook":"xlsx","n_sheets":1,"sheets":["オープンデータ"],"not_rendered":{"charts":0,"images":0,"macros":0,"external_links":0,"defined_names":2,"comments":0,"pivot_tables":0},"unopened":[],"bounds":{"document_bytes":16777216,"sheet_cells":100000,"rows_first":2000,"rows_last":500,"rows_between":2000,"halvings":0,"cell_chars":16384,"cell_head_chars":4096},"cells_cut":0,"cells_raw":0,"read":"whole","date_system":"1900"}

{"sheet":"オープンデータ","index":0,"n_rows":1762,"n_cols":6,"rows_kept":1762,"cut":false,"hidden":false,"merged":[]}
["索引","ごみ品名","かな","排出条件/ルール","収集区分"]
["あ","ＩＨクッキングヒーター(ビルトインも含む）","アイエイチクッキングヒーター","ビルトインの場合は、ＩＨクッキングヒーターを取り出して排出","粗ごみ"]
["あ","アイスクリーム機（家庭用）",{"$f":"PHONETIC(B3)","v":"アイスクリームキ（カテイヨウ）"},"事業に伴うもの・業務用は不可　","粗ごみ"]
["あ","アイスクリームの容器",null,"リサイクルに向かない紙類のため一般ごみ","一般ごみ"]
["あ","アイスピック",null,null,"粗ごみ"]
["あ","アイスまくら",{"$f":"PHONETIC(B6)","v":"アイスマクラ"},"保冷剤","一般ごみ"]
["あ","アイスホッケーのスティック",null,null,"粗ごみ"]
["あ","アイロン",{"$f":"PHONETIC(B8)","v":"アイロン"},"事業に伴うもの・業務用は不可","粗ごみ"]
["あ","アイロン台","アイロンダイ","＊サイズ判断品目\n＊事業に伴うもの・業務用は不可　","粗ごみ・大型ごみ"]
["あ","空き缶圧縮機（ＡＣ100Ｖ）","アキカンアッシュクキ（ＡＣ100Ｖ）","販売店・製造元に相談","処理困難物"]
["あ","空き缶圧縮機（足踏み式）","アキカンアッシュクキ（アシフミシキ）","サイズ判断品目","粗ごみ・大型ごみ"]
["あ","アクセサリー（金属製・木製）","アクセサリー（キンゾクセイ・モクセイ）",null,"粗ごみ"]
["あ","アクセサリー（ガラス製・貝殻製）","アクセサリー（ガラスセイ・カイガラセイ）",null,"粗ごみ"]
["あ","アクセサリー（プラスチック製）","アクセサリー（プラスチックセイ）",null,"一般ごみ"]
["あ","アコーディオン（楽器）","アコーディオン（ガッキ）","専用ケースに入れて排出しても１点扱い","粗ごみ"]
["あ","アコーディオンカーテン（シングル）",null,"サイズ判断品目","粗ごみ・大型ごみ"]
["あ","アコーディオンカーテン（両開き式）",null,"＊サイズ判断品目\n＊業者に依頼した場合は、処理まで依頼","粗ごみ・大型ごみ"]
["あ","アコーディオンカーテン（カーテン部分）",null,"＊サイズ判断品目　　　　　　　　　　　　　　　　　　　　　　　　　　　　　　　 　　　　　","粗ごみ・大型ごみ"]
["あ","アコーディオン門扉\n（アルミ製）",{"$f":"PHONETIC(B19)","v":"アコーディオンモンピ\n（アルミセイ）"},"＊サイズ判断品目\n＊業者に依頼した場合は、処理まで依頼\n＊1㍍以上は、門扉で受付","粗ごみ・大型ごみ"]
["あ","アスベスト",null,"天井に貼る石綿のような物（建築廃材）","市で処理しないもの"]
["あ","あぜのビニール（マルチシート）",{"$f":"PHONETIC(B21)","v":"アゼノビニール（マルチシート）"},"＊ＪＡで購入したものについては、購入先に引き取り依頼\n＊45㍑袋に収まる場合は、少量づつ一般ごみへ排出","粗ごみ・大型ごみ"]
["あ","アタッシュケース",null,"サイズ判断品目","粗ごみ・大型ごみ"]
["あ","アダプター",null,null,"粗ごみ"]
["あ","アーチェリーの矢（弓道の矢）",null,"専用ケースに入れても排出可","粗ごみ"]
["あ","厚紙",null,"＊地域の集団回収があれば、そちらに排出","紙類"]
["あ","圧力鍋",{"$f":"PHONETIC(B26)","v":"アツリョクナベ"},"事業に伴うもの・業務用は不可　","粗ごみ"]
["あ","油・オイル（機械用）","アブラ・オイル（キカイヨウ）","＊販売店・ガソリンスタンド等に相談\n＊やむなくごみとして出す場合は、必ず布等に沁み込ませるか、市販の油を固めるもので固めて一般ごみへ排出","処理困難物"]
["あ","油・オイル（食用油）","アブラ・オイル（ショクヨウアブラ）","固めるか、紙・布等に染み込ませる","一般ごみ"]
["あ","油こし（調理器具）","アブラコシ（チョウリキグ）","油が飛び散らないよう紙などで包んで排出","粗ごみ"]
["あ","油ポット（調理用）","アブラポット（チョウリヨウ）","残り油を取り除き排出","粗ごみ"]
["あ","雨戸（建具）　　　　　　　　　　　　　　　　　　　　（ステンレス製・木製・スチール製）","アマト（タテグ）　　　　　　　　　　　　　　　　　　　　（ステンレスセイ・モクセイ・スチールセイ）","＊サイズ判断品目\n＊業者に依頼した場合は、処理まで依頼","粗ごみ・大型ごみ"]
["あ","雨どい","アマドイ","＊サイズ判断品目\n＊業者に依頼した場合は、処理まで依頼","粗ごみ・大型ごみ"]
["あ","網（焼き物用）",null,"サイズ判断品目","粗ごみ・大型ごみ"]
["あ","網（干し物用）",null,"＊サイズ判断品目\n＊45㍑袋に収まる場合は、一般ごみへ排出","粗ごみ・大型ごみ"]
["あ","網（干し物用）\n金属製が含まれる物",null,"サイズ判断品目","粗ごみ・大型ごみ"]
["あ","網（ネット）",null,"＊サイズ判断品目\n＊45㍑袋に収まる場合は、一般ごみへ排出","粗ごみ・大型ごみ"]
["あ","網（虫/魚取り用）柄付",{"$f":"PHONETIC(B37)","v":"アミ（ムシ/サカナトリヨウ）エツキ"},null,"粗ごみ"]
["あ","編み機",{"$f":"PHONETIC(B38)","v":"アミキ"},"＊指定品目　　　　　　　　　　　　　　　　　　　　　　　　　　　　　　　　　　　　　　　　　＊子供用おもちゃは粗ごみ扱い","大型ごみ300円"]
["あ","網み機の形成機",null,"サイズ判断品目","粗ごみ・大型ごみ"]
["あ","網戸\n（アルミ枠、スチール枠、木枠）",{"$f":"PHONETIC(B40)","v":"アミド\n（アルミワク、スチールワク、キワク）"},"＊サイズ判断品目　　　　　　　　　　　　　　　　　　　　　　　　　　　　　　　　　　　　＊業者に依頼した場合は、処理まで依頼","粗ごみ・大型ごみ"]
["あ","網戸の網",null,null,"一般ごみ"]
["あ","網の柄（虫/魚取り用）",{"$f":"PHONETIC(B42)","v":"アミノエ（ムシ/サカナトリヨウ）"},null,"粗ごみ"]
["あ","網の枠（虫/魚取り用）","アミノワク（ムシ/サカナトリヨウ）",null,"粗ごみ"]
["あ","あゆみ板（アルミ製）（車用品）","アユミイタ（アルミセイ）（クルマヨウヒン）","＊サイズ判断品目（アルミ製以外は不可）　　　　　　　　　　　　　　　　　　　　　　　　＊2㍍未満に限る","粗ごみ・大型ごみ"]
["あ","アルカリ製水器","アルカリセイミズウツワ","業者に依頼した場合は、処理まで依頼","粗ごみ"]
["あ","アルバム（金属を含まない物）","アルバム（キンゾクヲフクマナイモノ）",null,"一般ごみ"]
["あ","アルバム（金属を含む物）","アルバム（キンゾクヲフクムモノ）",null,"粗ごみ"]
["あ","アルミカーポート（車庫）","アルミカーポート（シャコ）","販売店・製造元に相談。または、ごみ処理（一般廃棄物）業者に依頼","処理困難物"]
["あ","アルミサッシ",null,"＊サイズ判断品目\n＊業者に依頼した場合は、処理まで依頼","粗ごみ・大型ごみ"]
["あ","アルミサッシ（外枠）",{"$f":"PHONETIC(B50)","v":"アルミサッシ（ソトワク）"},"＊サイズ判断品目　　　　　　　　　　　　　　　　　　　　　　　　　　　　　　　　　　　＊業者に依頼した場合は、処理まで依頼","粗ごみ・大型ごみ"]
["あ","アルミサッシレール",null,"＊サイズ判断品目。1㍍以上は、1本300円\n＊2㍍以上のもは不可\n＊業者に依頼した場合は、処理まで依頼","粗ごみ・大型ごみ"]
["あ","アルミテラス",{"$f":"PHONETIC(B52)","v":"アルミテラス"},"＊業者に依頼した場合は、処理まで依頼","粗ごみ・大型ごみ"]
["あ","アルミホイール（車部品）","アルミホイール（クルマブヒン）","＊交換時に引き取り依頼／自動車用品店に相談","市で処理しないもの"]
["あ","アルミレンジフード（ガスコンロ用）","アルミレンジフード（ガスコンロヨウ）",null,"一般ごみ"]
["あ","アングル（組み立てラックのみ）","アングル（クミタテラックノミ）","サイズ判断品目","粗ごみ・大型ごみ"]
["あ","安全靴","アンゼングツ",null,"粗ごみ"]
["あ","安全ピン","アンゼンピン","危険のないようにする","粗ごみ"]
["あ","アンテナ（厚みが３ｍｍ以下のもの）",null,"＊縦支柱と横支柱で1セット扱い","粗ごみ・大型ごみ"]
["あ","アンテナ（車付属品）",null,null,"粗ごみ"]
["あ","アンプ（オーディオ）",{"$f":"PHONETIC(B60)","v":"アンプ（オーディオ）"},null,"粗ごみ"]
["あ","按摩器（椅子式・ベッド式）",{"$f":"PHONETIC(B61)","v":"アンマキ（イスシキ・ベッドシキ）"},"＊指定品目　　　　　　　　　　　　　　　　　　　　　　　　　　　　　　　　　　　　　　　　＊座椅子式・折りたたみ式はサイズ判断","大型ごみ1200円"]
["あ","按摩器（椅子式・ソファー式・ベッド式以外）",null,"サイズ判断","粗ごみ・大型ごみ"]
["い","イーゼル（画板を立てる台）",null,"サイズ判断品目","粗ごみ・大型ごみ"]
["い","石（庭石等）",{"$f":"PHONETIC(B64)","v":"イシ（ニワイシナド）"},"ごみ処理（一般廃棄物）業者に依頼","処理困難物"]
["い","石うす",{"$f":"PHONETIC(B65)","v":"イシウス"},"販売店・製造元に相談。または、ごみ処理（一般廃棄物）業者に依頼","処理困難物"]
["い","石製品（調理用）",null,"＊陶器・瀬戸物扱い 　　　　　　　　　　　　　　　　　　　　　　　　　　　　　　　　\n＊50㌢未満に限る","粗ごみ"]
["い","衣装ケース（紙製）",{"$f":"PHONETIC(B67)","v":"イショウケース（カミセイ）"},"リサイクルに向かない紙のため、一般ごみ","一般ごみ"]
["い","衣装ケース（金属･木製）","イショウケース（キンゾク･モクセイ）","サイズ判断品目","粗ごみ・大型ごみ"]
["い","衣装ケース（プラスチック製）","イショウケース（プラスチックセイ）","＊サイズ判断品目\n＊45㍑袋に収まる場合は、一般ごみへ排出","粗ごみ・大型ごみ"]
["い","椅子（木製・籐製・金属製）","イス（キ製・トウセイ・キンゾクセイフクセイ","サイズ判断品目","粗ごみ・大型ごみ"]
["い","椅子（プラスチック製）","イス（プラスチックセイ）","＊サイズ判断品目\n＊45㍑袋に収まる場合は、一般ごみへ排出","粗ごみ・大型ごみ"]
["い","椅子（全鋳物製）","イス（ゼンイモノセイ）",null,"処理困難物"]
["い","板（木製）","イタ（モクセイ）","＊長さ1㍍以上、厚さ5㌢以上、幅30㌢以上のものは処理不可　\n＊粗ごみサイズのみ","粗ごみ"]
["い","板ガラス","イタガラス","新聞紙に包んでキケンと表示","空き缶、びん・ガラス類"]
["い","板ガラス（１．２ｍを超えるもの）","イタガラス（１．２ｍヲコエルモノ）","家庭ごみ業務第1課へ相談","空き缶、びん・ガラス類"]
["い","板ガラス（枠あり）\n＊人形ケース／ガラス戸など","イタガラス（ワクアリ）\n＊ニンギョウケース／ガラストナド","＊サイズ判断品目","粗ごみ・大型ごみ"]
["い","一輪車(運搬用)","イチリンシャ(ウンパンヨウ)","指定品目","大型ごみ300円"]
["い","一輪車(乗用)",{"$f":"PHONETIC(B78)","v":"イチリンシャ(ジョウヨウ)"},"サイズ判断品目","粗ごみ・大型ごみ"]
["い","一升瓶",{"$f":"PHONETIC(B79)","v":"イッショウビン"},"＊中身を除き軽く水洗いする\n＊プラ製のふたは一般ごみ、金属製のふたは粗ごみへ排出","空き缶、びん・ガラス類"]
["い","一斗缶(ペンキ)","イットカン（ペンキカン）","中身は空にしておくか､ペンキが固まった状態で排出","粗ごみ"]
["い","犬小屋（金属複合製）",{"$f":"PHONETIC(B81)","v":"イヌゴヤ（キンゾクフクゴウセイ）"},"＊サイズ判断品目　　　　　　　　　　　　　　　　　　　　　　　　　　　　　　　　　　　＊檻（おり）又は2㍍以上のものは処理不可","粗ごみ・大型ごみ"]
["い","犬小屋（プラスチック製）",{"$f":"PHONETIC(B82)","v":"イヌゴヤ（プラスチックセイ）"},"＊サイズ判断品目　　　　　　　　　　　　　　　　　　　　　　　　　　　　　　　　　　　　　＊45㍑袋に収まる場合は、一般ごみへ排出","粗ごみ・大型ごみ"]
["い","犬小屋（木製）",{"$f":"PHONETIC(B83)","v":"イヌゴヤ（モクセイ）"},"サイズ判断品目","粗ごみ・大型ごみ"]
["い","犬・猫の死骸（のら・ペット）\n粗大ごみ予約センターに申し込みが必要",{"$f":"PHONETIC(B84)","v":"イヌ・ネコノシガイ（ノラ・ペット）\nソダイゴミヨヤクセンターニモウシコミガヒツヨウ"},"＊ペットの死体は一体1200円。野良犬、野良猫は無料\n＊清掃工場へ直接持ち込みの場合は、野良・ペット共に無料","臨時ごみ・持ち込み　動物"]
["い","犬・猫の糞","イヌ・ネコノフン","＊自己処理が出来ない場合は一般ごみへ排出","一般ごみ"]
["い","衣類","イルイ","＊地域の集団回収を案内\n＊集団回収がなければ少量づつ一般ごみへ排出","一般ごみ"]
["い","イヤホン","イヤホン",null,"一般ごみ"]
["い","衣類乾燥機","イルイカンソウキ","【家電リサイクル法対象品目】家電小売店に依頼または財団法人\n家電製品協会（家電リサイクル券センター：0120-319640）に問い合わせ","家電リサイクル品目"]
["い","衣類乾燥機（バケツ型）","イルイカンソウキ（バケツガタ）","外国製品","粗ごみ"]
["い","衣類プレッサー(家庭用)","イルイプレッサー(カテイヨウ)","サイズ判断品目","粗ごみ・大型ごみ"]
["い","医療（在宅医療に伴うごみ）\n（注射針等の鋭利なもの）",{"$f":"PHONETIC(B91)","v":"イリョウ（ザイタクイリョウニトモナウゴミ）\n（チュウシャバリトウノエイリナモノ）"},"注射針等の鋭利なものや血液が多量に付着した感染性の恐れのあるものについては、原則として在宅医療を指示した医療機関へ引き取ってもらう","一般ごみ"]
["い","医療（在宅医療に伴うごみ）\n（薬びん等の非感染性のもの）",null,"薬びん等の非感染性のものを排出する場合は、分別区分に従い出すこと。","空き缶・びん・ガラス類"]
["い","医療（在宅医療に伴うごみ）\n（使用済みの脱脂綿・ガーゼ類）",null,"使用済みの脱脂綿・ガーゼ類やカテーテル等で体液等の付着のあるものは、丈夫な非透過製の袋などに入れて出すこと。","一般ごみ"]
["い","医療（在宅医療に伴うごみ）\n（ビニールバック類や紙おむつ）",null,"ビニールバック類や紙おむつ等については、内容物や付着物を事前に除去してから出すこと。","一般ごみ"]
["い","入れ歯",null,null,"一般ごみ"]
["い","色鉛筆",null,null,"一般ごみ"]
["い","色鉛筆のケース（紙製）",null,"＊地域の集団回収があれば、そちらに排出","紙類"]
["い","色鉛筆のケース（プラスチック製）",null,null,"一般ごみ"]
["い","色鉛筆のケース（木製・金属製）",null,null,"粗ごみ"]
["い","印鑑（角・象牙・プラスチック製）",null,null,"一般ごみ"]
["い","印鑑（木製）",null,null,"粗ごみ"]
["い","インクカートリッジ",{"$f":"PHONETIC(B102)","v":"インクカートリッジ"},"店頭回収があればそちらに排出","一般ごみ"]
["い","インクリボン",{"$f":"PHONETIC(B103)","v":"インクリボン"},null,"一般ごみ"]
["い","インターホン",{"$f":"PHONETIC(B104)","v":"インターホン"},"業者に依頼した場合は、処理まで依頼","粗ごみ"]
["い","インラインスケート",null,null,"粗ごみ"]
["い","飲料用紙パック",null,"＊地域の集団回収があれば、そちらに排出\n＊内側がアルミ加工されたものは一般ごみ","紙類"]
["い","飲料缶",null,"中身を除き軽く水洗いする","空き缶、びん・ガラス類"]
["い","飲料瓶",null,"＊中身を除き軽く水洗いする\n＊プラスチック製のふたは一般ごみ、金属製のふたは粗ごみへ排出","空き缶、びん・ガラス類"]
["い","飲料用収納ケース（プラスチック製）　　　　　　　　（ビール・酒・ジュースなど）",null,"＊販売店に返却\n＊45㍑袋に収まる場合は、一般ごみへ排出","粗ごみ"]
["う","ウィッグ（美容師の練習用人形）",{"$f":"PHONETIC(B110)","v":"ウィッグ（ビヨウシノレンシュウヨウニンギョウ）"},"事業に伴うものは不可","粗ごみ"]
["う","ウィンカー（車・バイク部品）",null,"＊交換時に引き取り依頼／自動車用品店に相談","市で処理しないもの"]
["う","ウインドサーフィン（ボード）",{"$f":"PHONETIC(B112)","v":"ウインドサーフィン（ボード）"},"サイズ判断品目　　　　　　　　　　　　　　　　　　　　　　　　　　　　　　　　　","粗ごみ・大型ごみ"]
["う","ウインドサーフィン（マスト・ブーム）骨組み",{"$f":"PHONETIC(B113)","v":"ウインドサーフィン（マスト・ブーム）ホネグミ"},"＊サイズ判断品目\n＊2㍍未満に切断したものに限る","粗ごみ・大型ごみ"]
["う","ウインドサーフィン（セイル）帆",{"$f":"PHONETIC(B114)","v":"ウインドサーフィン（セイル）ホ"},"＊サイズ判断品目\n＊４５ℓ袋に入れば一般ごみ（金具部分なし）","粗ごみ・大型ごみ"]
["う","ウインドエアコン",{"$f":"PHONETIC(B115)","v":"ウインドエアコン"},"【家電リサイクル法対象品目】家電小売店に依頼または財団法人\n家電製品協会（家電リサイクル券センター：0120-319640）に問い合わせ","家電リサイクル品目"]
["う","ウィンドファン（窓用扇風機）",{"$f":"PHONETIC(B116)","v":"ウィンドファン（マドヨウセンプウキ）"},"サイズ判断品目","粗ごみ・大型ごみ"]
["う","ウーハー",null,"サイズ判断品目","粗ごみ・大型ごみ"]
["う","ウーハー（車用品）",null,"サイズ判断品目","粗ごみ・大型ごみ"]
["う","植木棚（プラスチック製）",{"$f":"PHONETIC(B119)","v":"ウエキダナ（プラスチックセイ）"},"＊サイズ判断品目\n＊45㍑袋に収まる場合は、一般ごみへ排出","粗ごみ・大型ごみ"]
["う","植木棚（金属製・木製）",{"$f":"PHONETIC(B120)","v":"ウエキダナ（キンゾクセイ・モクセイ）"},"サイズ判断品目","粗ごみ・大型ごみ"]
["う","植木鉢（プラスチック製）",null,"45㍑袋に収まる場合は、一般ごみへ排出","粗ごみ"]
["う","植木鉢（陶器製）",{"$f":"PHONETIC(B122)","v":"ウエキバチ（トウキセイ）"},null,"粗ごみ・大型ごみ"]
["う","植木用支柱（プラスチック製）",{"$f":"PHONETIC(B123)","v":"ウエキヨウシチュウ（プラスチックセイ）"},"＊45㍑袋に収まる場合は、一般ごみへ排出","粗ごみ"]
["う","植木用支柱（木・竹製・金属製）",{"$f":"PHONETIC(B124)","v":"ウエキヨウシチュウ（キ・タケセイ・金属製）"},null,"粗ごみ・大型ごみ"]
["う","ウォーカー",{"$f":"PHONETIC(B125)","v":"ウォーカー"},"＊指定品目\n＊ステッパーはサイズ判断品目","大型ごみ600円"]
["う","ウォータークーラー",{"$f":"PHONETIC(B126)","v":"ウォータークーラー"},"＊サイズ判断品目（家庭用に限る）\n＊コンプレッサー式は販売店・製造元に相談","粗ごみ・大型ごみ\n処理困難物"]
["う","ウォーターサーバー",null,"＊サイズ判断品目（家庭用に限る）\n＊コンプレッサー式は販売店・製造元に相談","粗ごみ・大型ごみ\n処理困難物"]
["う","ウォーターベッド（枠なし）",{"$f":"PHONETIC(B128)","v":"ウォーターベッド（ワクナシ）"},"水を抜いて排出","粗ごみ"]
["う","ウォーターベッド（枠あり１㍍以上）","ウォーターベッド（ワクアリ１㍍イジョウ）","水を抜いて排出","大型ごみ"]
["う","浮き輪","ウキキワ",null,"一般ごみ"]
["う","うちわ（紙製・プラスチック製）","ウチワ（カミセイ・プラスチックセイ）",null,"一般ごみ"]
["う","うちわ（竹製）","ウチワ（タケセイ）",null,"粗ごみ"]
["う","ウッドカーペット（折りたたみ式）","ウッドカーペット（オリタタミシキ）","サイズ判断品目","粗ごみ・大型ごみ"]
["う","ウッドデッキ","ウッドデッキ","＊1㍍未満に解体されたもの（丸太・角材・板状と同じ扱い）　　　　　　　　　  ＊業者に依頼した場合は、処理まで依頼","粗ごみ"]
["う","ウッドパネル（ジョイント式デッキパネル）",null,"ひもくくり排出可能（１０ｋｇ以下）※粗ごみサイズに限る","粗ごみ"]
["う","腕時計",null,null,"粗ごみ"]
["う","乳母車(手押し車）",{"$f":"PHONETIC(B137)","v":"ウバグルマ(テオシグルマ）"},"指定品目（折りたたみ式は除く）","大型ごみ300円"]
["う","乳母車（折りたたみ式）",null,"折りたたんだ状態で排出","粗ごみ"]
["う","羽毛布団",{"$f":"PHONETIC(B139)","v":"ウモウフトン"},"＊1m以上でも粗ごみ扱い（粗ごみルールでの排出）\n＊ケース（ふとん袋）に入れての排出も粗ごみ1点扱い　\n(圧縮袋での排出は不可）　　　　　　　　　　　　　　　　\n＊一般ごみへの排出は不可","粗ごみ"]
["う","ウレタンマット・スポンジマットレス",null,"サイズ判断品目（1㍍未満を案内）","粗ごみ・大型ごみ"]
["う","運動靴",null,null,"一般ごみ"]
["え","エアコン",{"$f":"PHONETIC(B142)","v":"エアコン"},"【家電リサイクル法対象品目】家電小売店に依頼または財団法人\n家電製品協会（家電リサイクル券センター：0120-319640）に問い合わせ","家電リサイクル品目"]
["え","エアコン室外機",null,"【家電リサイクル法対象品目】家電小売店に依頼または財団法人\n家電製品協会（家電リサイクル券センター：0120-319640）に問い合わせ","家電リサイクル品目"]
["え","エアコンのホース（ドレン管）",{"$f":"PHONETIC(B144)","v":"エアコンノホース（ドレンカン）"},"業者に依頼した場合は、処理まで依頼","一般ごみ"]
["え","エアコン（鋼管）",{"$f":"PHONETIC(B145)","v":"エアコン（コウカン）"},"＊業者に依頼した場合は、処理まで依頼　　　　　　　　　　　　　　　　　　　　　　　＊室外機をリサイクルへ排出される際は鋼管も同時排出可","粗ごみ"]
["え","エアコンカバー",{"$f":"PHONETIC(B146)","v":"エアコンカバー"},null,"一般ごみ"]
["え","エアーボンベ",{"$f":"PHONETIC(B147)","v":"エアーボンベ"},"販売店・製造元に相談。または、ごみ処理（一般廃棄物）業者に依頼","処理困難物"]
["え","エアロバイク（サイクリングマシン）",{"$f":"PHONETIC(B148)","v":"エアロバイク（サイクリングマシン）"},"指定品目","大型ごみ600円"]
["え","映写機(家庭用)",{"$f":"PHONETIC(B149)","v":"エイシャキ(カテイヨウ)"},"事業に伴うもの・業務用は不可　","粗ごみ"]
["え","ＨＤＤレコーダー","ＨＤＤレコーダー",null,"粗ごみ"]
["え","液晶テレビ","エキショウテレビ","【家電リサイクル法対象品目】家電小売店に依頼または財団法人\n家電製品協会（家電リサイクル券センター：0120-319640）に問い合わせ","家電リサイクル品目"]
["え","枝","エダ","長さ1㍍未満、直径10㌢未満に限る","粗ごみ"]
["え","枝切りバサミ","エダキリバサミ","サイズ判断品目","粗ごみ・大型ごみ"]
["え","絵の具のチューブ(プラスチック製)","エノグノチューブ(プラスチックセイ)","中身は除く","ペットボトル・プラスチック製容器包装"]
["え","絵の具のチューブ(金属製)","エノグノチューブ(キンゾクセイ)","中身は除く","粗ごみ"]
["え","絵本","エホン","＊地域の集団回収があれば、そちらに排出\n＊防水加工が施されている場合は一般ごみへ排出　　　　　　　　　　　　　","紙類"]
["え","ＭＯディスク","ＭＯディスク",null,"一般ごみ"]
["え","ＭＤディスク","ＭＤディスク",null,"一般ごみ"]
["え","ＭＤプレーヤー　　　　　　　　　　　　　　　　（携帯用・据え置き型デッキ）","ＭＤプレーヤー　　　　　　　　　　　　　　　　（ケイタイヨウ・スエオキガタデッキ）",null,"粗ごみ"]
["え","LED蛍光管・電球","LED蛍光管・電球",null,"粗ごみ"]
["え","ＬＰガスボンベ","エルピーガスボンベ","販売店・取扱店等に相談","処理困難物"]
["え","エレクトーン（電子オルガン）",{"$f":"PHONETIC(B162)","v":"エレクトーン（デンシオルガン）"},"＊指定品目　　　　　　　　　　　　　　　　　　　　　　　　　　　　　　　　　　　　　　　＊一部分の排出はサイズ判断","大型ごみ1800円"]
["え","エレクトリックライダー　　　　　　　　　　　　（保安機が装備されているもの）",{"$f":"PHONETIC(B163)","v":"エレクトリックライダー　　　　　　　　　　　　（ホアンキガソウビサレテイルモノ）"},"＊保安機が装備されているもの\n＊ナンパープレートを装着し、公道の走行が可能なもの","処理困難物"]
["え","エレクトリックライダー　　　　　　　　　　　　（保安機が装備されていないもの）",null,"＊サイズ判断品目　　　　　　　　　　　　　　　　　　　　　　　　　　　　　　　　　　　　　＊但し、バッテリーは収集不可","粗ごみ・大型ごみ"]
["え","園芸用アーチ",null,"サイズ判断品目","粗ごみ・大型ごみ"]
["え","園芸用支柱（プラスチック製）",null,"＊45㍑袋に収まる場合は、一般ごみへ排出","粗ごみ"]
["え","園芸用支柱（木・竹・金属製）",null,null,"粗ごみ"]
["え","園芸用フェンス",null,"サイズ判断品目","粗ごみ・大型ごみ"]
["え","エンジンオイル（液状）",null,"＊販売店・取扱店・スタンド等に相談　　　　　　　　　　　　　　　　　　　　　　\n＊やむなくごみとして出す場合は、必ず布等に沁み込ませるか、市販の油を固めるもので固めて一般ごみへ排出","処理困難物"]
["え","エンジン・モーター付機械",null,"販売店・製造元に相談。または、ごみ処理（一般廃棄物）業者に依頼","処理困難物"]
["え","縁台(木製・金属製)",{"$f":"PHONETIC(B171)","v":"エンダイ(モクセイ・キンゾクセイ)"},"サイズ判断品目","粗ごみ・大型ごみ"]
["え","縁台（鋳物製・鉄製）",null,"販売店・製造元に相談。または、ごみ処理（一般廃棄物）業者に依頼","処理困難物"]
["え","延長コード",{"$f":"PHONETIC(B173)","v":"エンチョウコード"},null,"粗ごみ"]
["え","円テーブル",null,"サイズ判断品目（直径1㍍以上は600円）","粗ごみ・大型ごみ"]
["え","煙突（風呂釜用）",null,"サイズ判断品目","粗ごみ・大型ごみ"]
["え","鉛筆",{"$f":"PHONETIC(B176)","v":"エンピツ"},null,"一般ごみ"]
["え","鉛筆削り器",{"$f":"PHONETIC(B177)","v":"エンピツケズリキ"},null,"粗ごみ"]
["お","オイルガード（金属製）",{"$f":"PHONETIC(B178)","v":"オイルガード（キンゾクセイ）"},"アルミ箔は一般ごみへ排出","粗ごみ"]
["お","オイル缶（機械油）","オイルカン（キカイアブラ）","中身は除く　","粗ごみ"]
["お","オイル（車用）","オイル（クルマヨウ）","＊販売店・スタンド等に相談　　　　　　　　　　　　　　　　　　　　　　　　　\n＊やむなくごみとして出す場合は、必ず布等に沁み込ませるか、市販の油を固めるもので固めて一般ごみへ排出","処理困難物"]
["お","オイルヒーター","オイルヒーター","＊オイルを抜いて排出　（オイルが抜けなければ受付不可）","粗ごみ・大型ごみ"]
["お","王冠(金属複合製)","オウカン(キンゾクフクゴウセイ)",null,"粗ごみ"]
["お","応接机・椅子","オウセツツクエ・イス","サイズ判断品目","粗ごみ・大型ごみ"]
["お","オーディオラック（ステレオ台）","オーディオラック（ステレオダイ）","サイズ判断品目","粗ごみ・大型ごみ"]
["お","オートバイ（部品も含む）","オートバイ（ブヒンモフクム）","販売店・取扱店等に相談","処理困難物"]
["お","オーブン（ガス）","オーブン（ガス）","指定品目","大型ごみ600円"]
["お","オーブン（電気）",{"$f":"PHONETIC(B187)","v":"オーブン（デンキ）"},"指定品目","大型ごみ600円"]
["お","オーブントースター",{"$f":"PHONETIC(B188)","v":"オーブントースター"},"コンベクションオーブンは指定品目￥600","粗ごみ"]
["お","オーブンレンジ",{"$f":"PHONETIC(B189)","v":"オーブンレンジ"},"＊指定品目　　　　　　　　　　　　　　　　　　　　　　　　　　　　　　　　　　　　　　　　＊ビルトインタイプ単品は600円\n（流し台・調理台・ガス台に付いているものは900円）","大型ごみ600円"]
["お","お菓子の箱(紙製)",null,"＊地域の集団回収があれば、そちらに排出\n＊中身を抜いて外箱のみ紙類へ排出\n＊プラスチック製の場合はペットボトル・プラスチック製容器包装へ排出","紙類"]
["お","置時計",{"$f":"PHONETIC(B191)","v":"オキドケイ"},"サイズ判断品目","粗ごみ・大型ごみ"]
["お","置物（紙製・プラスチック製）",null,"＊サイズ判断品目\n＊45㍑袋に収まる場合は、一般ごみへ排出","粗ごみ・大型ごみ"]
["お","置物（竹製・木製・・陶器製・ガラス製）",{"$f":"PHONETIC(B193)","v":"オキモノ（タケセイ・モクセイ・・トウキセイ・ガラスセイ）"},"サイズ判断品目\n（ガラス製でガラスのみは、空き缶、びん・ガラス類へ排出）","粗ごみ・大型ごみ"]
["お","置物（象牙・大理石）",{"$f":"PHONETIC(B194)","v":"オモノ（ゾウゲ・ダイリセキ）"},"＊サイズ判断品目　　　　　　　　　　　　　　　　　　　　　　　　　　　　　　　　　　　　＊厚さ５㌢程度まで処理可それ以上は処理不可","粗ごみ・大型ごみ"]
["お","置物（石膏）",{"$f":"PHONETIC(B195)","v":"オモノ（セッコウ）"},"1㍍未満に限る（粗ごみサイズのみ）","粗ごみ"]
["お","置物（金属製）",{"$f":"PHONETIC(B196)","v":"オモノ（キンゾクセイ）"},"＊サイズ判断品目　　　　　　　　　　　　　　　　　　　　　　　　　　　　　　　　　　　　　＊一部処理困難物あり","粗ごみ・大型ごみ"]
["お","屋内配線用ケーブル","オクナイハイセンヨウケーブル","業者に依頼した場合は、処理まで依頼","粗ごみ"]
["お","桶（プラスチック製）","オケ（プラスチックセイ）","45㍑袋に収まる場合は、一般ごみへ排出","粗ごみ"]
["お","桶（木製・金属製）","オケ（モクセイ・キンゾクセイ）",null,"粗ごみ"]
["お","押しいれ収納ケース（紙製）","オシイレシュウノウケース（カミセイ）","リサイクルに向かない紙のため、一般ごみ　　","一般ごみ"]
["お","押しいれ収納ケース（プラスチック製）","オシイレシュウノウケース（プラスチックセイ）","＊サイズ判断品目　　　　　　　　　　　　　　　　　　　　　　　　　　　　　　　　　　　　＊45㍑袋に収まる場合は、少量づつ一般ごみへ排出","粗ごみ・大型ごみ"]
["お","押し入れ収納ケース（木製・金属製）","オシイレシュウノウケース（モクセイ・キンゾクセイ）","サイズ判断品目","粗ごみ・大型ごみ"]
["お","おしぼり温め機","オシボリアタタメキ","事業に伴うもの・業務用は不可","粗ごみ・大型ごみ"]
["お","おしぼりトレー（プラスチック製）","オシボリトレー（プラスチックセイ）",null,"一般ごみ"]
["お","おしぼりトレー（竹製・木製・金属製）","オシボリトレー（タケセイ・モクセイ・キンゾクセイ）",null,"粗ごみ"]
["お","おたま（プラスチック製）","オタマ（プラスチックセイ）",null,"一般ごみ"]
["お","おたま（木製・金属製）","オタマ（モクセイ・キンゾクセイ）",null,"粗ごみ"]
["お","落ち葉","オチバ","＊週の後半一世帯１袋のみ名前を書いて一般ごみへ排出　　　　\n＊2袋以上は、粗ごみ（６点まで）又は臨時ごみとして申し込み","粗ごみ"]
["お","汚泥（おでい）","オデイ（オデイ）","ごみ処理（一般廃棄物）業者に依頼","処理困難物"]
["お","斧","オノ","1㍍以上でも粗ごみ扱い（家庭用に限る）","粗ごみ"]
["お","おひつ（木製・陶器製）",null,null,"粗ごみ"]
["お","オベリスク（園芸用）",null,"サイズ判断品目","粗ごみ・大型ごみ"]
["お","お盆（プラスチック製）",null,null,"一般ごみ"]
["お","お盆（木製・竹製・金属製）",{"$f":"PHONETIC(B214)","v":"オボン（モクセイ・タケセイ・キンゾクセイ）"},null,"粗ごみ"]
["お","おまる",{"$f":"PHONETIC(B215)","v":"オマル"},null,"一般ごみ"]
["お","おむつ",{"$f":"PHONETIC(B216)","v":"オムツ"},"汚物は除く","一般ごみ"]
["お","おもちゃ（プラスチック製・ゴム製）",null,"＊サイズ判断品目　　　　　　　　　　　　　　　　　　　　　　　　　　　　　　　　　　　　＊45㍑袋に収まる場合は、一般ごみへ排出","粗ごみ・大型ごみ"]
["お","おもちゃ（竹製・木製・金属製）",null,"サイズ判断品目","粗ごみ・大型ごみ"]
["お","おもちゃ箱（プラスチック製）",{"$f":"PHONETIC(B219)","v":"オモチャバコ（プラスチックセイ）"},"＊サイズ判断品目　　　　　　　　　　　　　　　　　　　　　　　　　　　　　　　　　　　　　＊45㍑袋に収まる場合は、一般ごみへ排出","粗ごみ・大型ごみ"]
["お","おもちゃ箱（竹製・木製・金属製）","オモチャバコ（タケセイ・モクセイ・キンゾクセイ）","サイズ判断品目","粗ごみ・大型ごみ"]
["お","折りたたみ椅子（プラスチック製）","オリタタミイス（プラスチックセイ）","＊サイズ判断品目　　　　　　　　　　　　　　　　　　　　　　　　　　　　　　　　　　　　＊45㍑袋に収まる場合は、一般ごみへ排出","粗ごみ・大型ごみ"]
["お","折りたたみ椅子（木製・金属製）","オリタタミイス（モクセイ・キンゾクセイ）","サイズ判断品目","粗ごみ・大型ごみ"]
["お","折りたたみテーブル（プラスチック製）","オリタタミテーブル（プラスチックセイ）","＊サイズ判断品目　　　　　　　　　　　　　　　　　　　　　　　　　　　　　　　　　　　　＊45㍑袋に収まる場合は、一般ごみへ排出","粗ごみ・大型ごみ"]
["お","折りたたみテーブル（木製・金属製）","オリタタミテーブル（モクセイ・キンゾクセイ）","サイズ判断品目","粗ごみ・大型ごみ"]
["お","オルガン","オルガン","指定品目","大型ごみ1800円"]
["お","オルゴール","オルゴール","サイズ判断品目","粗ごみ・大型ごみ"]
["お","おろし金","オロシガネ",null,"粗ごみ"]
["お","温室（１ｍ未満）","オンシツ（１ｍミマン）",null,"粗ごみ"]
["お","温室（１ｍ以上２ｍ未満）","オンシツ（１ｍイジョウジョウｍミマン）","＊家庭用組み立て式で解体したものに限る\n（一辺が2㍍以上のものは不可）　　　　　　　　　　　　　　　　","大型ごみ900円"]
["お","温水器","オンスイキ","販売店・取扱店等に相談。または、ごみ処理（一般廃棄物）業者に依頼","処理困難物"]
["お","温度計(アルコール使用)液体赤色","オンドケイ(アルコールシヨウ)エキタイアカイロ",null,"粗ごみ"]
["お","温度計(水銀使用)","オンドケイ(スイギンシヨウ)","◎水銀使用廃製品の窓口回収（穂谷川清掃工場・東部清掃工場）又は、出張回収をご利用ください。（出張回収日程は広報等で確認してください）\n※事業に伴うもの・業務用は不可","粗ごみ"]
["お","温風機・温風扇","オンフウキ・オンフウセン","＊サイズ判断品目（冷風機・冷風扇は大型指定品目600円）\n＊コンプレッサー付は不可","粗ごみ・大型ごみ"]
["お","温風ヒーター","オンプウヒーター","事業に伴うもの・業務用は不可","粗ごみ"]
["か","カーキャリー","カーキャリー","サイズ判断品目","粗ごみ・大型ごみ"]
["か","カーステレオ（車用品）","カーステレオ（クルマヨウヒン）",null,"粗ごみ"]
["か","ガーデニング用の柵（プラスチック製）","ガーデニングヨウノサク（プラスチックセイ）","＊サイズ判断品目　　　　　　　　　　　　　　　　　　　　　　　　　　　　　　　　　　　　　＊45㍑袋に収まる場合は、一般ごみへ排出","粗ごみ・大型ごみ"]
["か","ガーデニング用の柵（竹製・木製）","ガーデニングヨウノサク（タケセイ・モクセイ）","サイズ判断品目","粗ごみ・大型ごみ"]
["か","ガーデニング用の柵（金属製）","ガーデニングヨウノサク（キンゾクセイ）","サイズ判断品目","粗ごみ・大型ごみ"]
["か","ガーデニング用（テーブル・椅子）","ガーデニングヨウ（テーブル・イス）","サイズ判断品目（セット扱い不可）","粗ごみ・大型ごみ"]
["か","ガーデニング用パラソル","ガーデニングヨウパラソル","＊芯支柱の直径が５ｃｍ以上は大型ごみ　","粗ごみ・大型ごみ"]
["か","カーテン","カーテン",null,"一般ごみ"]
["か","ガーデンシュレッダー・剪定枝破砕機","ガーデンシュレッダー・剪定枝破砕機","販売店に相談","処理困難物"]
["か","カーテンレール","カーテンレール","＊サイズ判断品目　　　　　　　　　　　　　　　　　　　　　　　　　　　　　　　　　　　　　　＊1㍍以上のものは、1本300円","粗ごみ・大型ごみ"]
["か","カーテンレールボックス","カーテンレールボックス","＊サイズ判断品目　　　　　　　　　　　　　　　　　　　　　　　　　　　　　　　　　　　　　　＊工事を業者に依頼した場合は、処理まで依頼","粗ごみ・大型ごみ"]
["か","カーナビ","カーナビ",null,"粗ごみ"]
["か","カーペット","カーペット","＊サイズ判断品目","粗ごみ・大型ごみ"]
["か","カーポート（車庫）支柱部分(鉄骨材）","カーポート（シャコ）シチュウブブン(鉄骨ザイ）","販売店・取扱店等に相談。または、ごみ処理（一般廃棄物）業者に依頼","処理困難物"]
["か","カーポート（車庫）屋根（波板・ポリカーボネート）","カーポート（シャコ）ヤネ（ナミイタ・ポリカーボネート）","サイズ判断品目","粗ごみ・大型ごみ"]
["か","カーボン紙","カーボンシ",null,"一般ごみ"]
["か","貝殻",null,null,"一般ごみ"]
["か","貝殻(加工品土産物等)",{"$f":"PHONETIC(B252)","v":"カイガラ(カコウヒンミヤゲモノナド)"},null,"一般ごみ"]
["か","貝殻（装飾品）",null,null,"粗ごみ・大型ごみ"]
["か","介護用ベッド",null,"＊サイズ判断品目（解体したものに限る）\n＊組み立て式のものに限る（但しモーターは不可）\n＊スプリングマットレス（指定品目1800円）は別扱い","粗ごみ・大型ごみ"]
["か","階段の手すり","カイダンノテスリ","＊サイズ判断品目（2㍍未満に限る。1本300円）　　　　　　　　　　　　　　　　　　　　＊業者に依頼した場合は、処理まで依頼","粗ごみ・大型ごみ"]
["か","懐中電灯","カイチュウデントウ",null,"粗ごみ"]
["か","外壁","ガイヘキ","販売店・取扱店等に相談。または、ごみ処理（一般廃棄物）業者に依頼","処理困難物"]
["か","カイロ（使い捨て）","カイロ（ツカイステ）",null,"一般ごみ"]
["か","カイロ（湯たんぽ）","カイロ（ユタンポ）",null,"粗ごみ"]
["か","カウル（バイク用品）","カウル（バイクヨウヒン）","＊交換時に引き取り依頼／自動車用品店に相談","市で処理しないもの"]
["か","カウンターワゴン","カウンターワゴン","サイズ判断品目","粗ごみ"]
["か","鏡","カガミ","サイズ判断品目","粗ごみ・大型ごみ"]
["か","鍵（南京錠など）","カギ（ナンキンジョウナド）",null,"粗ごみ"]
["か","かき氷機（家庭用）","カキゴオリキ（カテイヨウ）",null,"粗ごみ"]
["か","学習机","ガクシュウツクエ","＊サイズ判断品目","粗ごみ・大型ごみ"]
["か","額縁(プラスチック製）","ガクブチ(プラスチックセイ）","＊サイズ判断品目　　　　　　　　　　　　　　　　　　　　　　　　　　　　　　　　　　　　　　＊45㍑袋に収まる場合は、一般ごみへ排出","粗ごみ・大型ごみ"]
["か","額縁(木製・金属製）","ガクブチ(モクセイ・キンゾクセイ）","サイズ判断品目","粗ごみ・大型ごみ"]
["か","かご（プラスチック製）","カゴ（プラスチックセイ）","45㍑袋に収まる場合は、一般ごみへ排出","粗ごみ"]
["か","かご（竹製・籐製・金属製）","カゴ（タケセイ・トウセイ・キンゾクセイ）",null,"粗ごみ"]
["か","傘","カサ",null,"粗ごみ"]
["か","傘立て（プラスチック製）",{"$f":"PHONETIC(B271)","v":"カサタテ（プラスチックセイ）"},"＊サイズ判断品目　　　　　　　　　　　　　　　　　　　　　　　　　　　　　　　　　　　　　＊45㍑袋に収まる場合は、一般ごみへ排出","粗ごみ・大型ごみ"]
["か","傘立て（木製・陶器製・金属製・籐製）","カサタテ（キセイ・トウキセイ・キンゾクセイ・トウセイ）","サイズ判断品目","粗ごみ・大型ごみ"]
["か","加湿器","カシツキ",null,"粗ごみ"]
["か","舵輪（船用ハンドル）装飾品","カジワ（フネヨウハンドル）ソウショクヒン","サイズ判断品目","粗ごみ・大型ごみ"]
["か","菓子折りの箱(紙製)","菓子折リノ箱(紙製)","＊地域の集団回収があれば、そちらに排出\n＊中身を抜いて外箱のみ紙類へ排出\n＊プラスチック製の場合はペットボトル・プラスチック製容器包装へ排出","紙類"]
["か","ガスコンロ（ＩＨ・ビルトインも含む）","ガスコンロ（ＩＨ・ビルトインモフクム）","＊電池を抜いて排出","粗ごみ"]
["か","カスタネット（木製）","カスタネット（モクセイ）",null,"粗ごみ"]
["か","ガス台（調理用）","ガスダイ（チョウリヨウ）","＊指定品目（2㍍未満に限る）　　　　　　　　　　　　　　　　　　　　　　　　　　　　　　　＊業者に依頼した場合は、処理まで依頼","大型ごみ600円"]
["か","ガス台（レンジ・オーブン・食器洗い乾燥機付）","ガスダイ（レンジ・オーブン・ショッキアライカンソウキツ）","＊指定品目（2㍍未満に限る）　　　　　　　　　　　　　　　　　　　　　　　　　　　　　　＊業者に依頼した場合は、処理まで依頼","大型ごみ900円"]
["か","ガステーブル（ＩＨ・ビルトインも含む）","ガステーブル（ＩＨ・ビルトインモフクム）","＊電池を抜いて排出","粗ごみ"]
["か","ガスボンベ（カセット式）","ガスボンベ（カセットシキ）","*中身を使い切って排出","空き缶、びん・ガラス類"]
["か","ガズボンベ（プロパン）","ガズボンベ（プロパン）","販売店・取扱店に相談","処理困難物"]
["か","ガス漏れ・火災検知器／警報機",null,null,"粗ごみ"]
["か","カセットコンロ",null,"カセットボンベは取り外して排出","粗ごみ"]
["か","ガスレンジ（オーブンレンジタイプ）",{"$f":"PHONETIC(B285)","v":"ガスレンジ（オーブンレンジタイプ）"},"指定品目　魚焼きグリルのみ付（高さ３０ｃｍ前後）は粗ごみ扱い","大型ごみ600円"]
["か","カセットテープ","カセットテープ",null,"一般ごみ"]
["か","カセットテープのケース","カセットテープノケース",null,"一般ごみ"]
["か","カセットデッキ","カセットデッキ",null,"粗ごみ"]
["か","カセットプレーヤー（携帯用）","カセットプレーヤー（ケイタイヨウ）",null,"粗ごみ"]
["か","カセットレコーダー","カセットレコーダー",null,"粗ごみ"]
["か","ガソリン","ガソリン","販売店・ガソリンスタンド等に相談","処理困難物"]
["か","ガソリンタンク（バイク部品）","ガソリンタンク（バイクブヒン）","＊交換時に引き取り依頼／自動車用品店に相談","市で処理しないもの"]
["か","ガソリンタンク（携行缶）","ガソリンタンク（ケイコウカン）",null,"粗ごみ"]
["か","楽器","ガッキ","＊サイズ判断品目（専用ケースに入れて排出しても1点扱い）　　　　　　　　　 ＊ギター類・三味線は、ケースに入れた状態（1㍍以上）で排出されても粗ごみ扱い","粗ごみ・大型ごみ"]
["か","楽器のケース","ガッキノケース","＊サイズ判断品目（専用ケースに入れて排出しても1点扱い）　　　　　　　　　　 ＊ギター類・三味線は、ケースに入れた状態（1㍍以上）で排出されても粗ごみ扱い","粗ごみ・大型ごみ"]
["か","カッターナイフ","カッターナイフ","危険のないようにする","粗ごみ"]
["か","カッターナイフの刃","カッターナイフノハ","危険のないようにする","粗ごみ"]
["か","合羽","カッパ",null,"一般ごみ"]
["か","カップ麺の容器（紙製）","カップ麺ノ容器（紙製）","リサイクルに向かない紙のため、一般ごみ","一般ごみ"]
["か","カップ麺の容器（プラスチック製）","カップ麺ノ容器（プラスチック製）",null,"ペットボトル・プラスチック製容器包装"]
["か","かつら","カツラ",null,"一般ごみ"]
["か","蚊取り線香","カトリセンコウ",null,"一般ごみ"]
["か","蚊取り線香の缶","カトリセンコウノカン","中身は除く","空き缶、びん・ガラス類"]
["か","蚊取り線香の器具(電気式)","カトリセンコウノキグ(デンキシキ)",null,"粗ごみ"]
["か","金たわし","カナタワシ",null,"粗ごみ"]
["か","亀の子たわし","カメノコタワシ",null,"粗ごみ"]
["か","金槌","カナヅチ","一部処理困難物あり","粗ごみ"]
["か","カヌー、カヤック（分割式）","カヌー、カヤック（ブンカツシキ）","＊分割できないものは受付不可　　　　　　　　　　　　　　　　　　　　　　　　　　　　　＊金属製・コンクリート製は受付不可","粗ごみ・大型ごみ"]
["か","加熱式たばこ（電子たばこ）","加熱式タバコ（電子タバコ）","＊自主回収あり製品：プルーム・グロー（2022/6/1現在）\n  一般社団法人日本たばこ協会 ： https://www.tioj.or.jp/\n＊自主回収なし製品：市内の公共施設や協力店舗で実施する小型家電回収ボックスへの分別回収にご協力ください。","粗ごみ"]
["か","金火箸","カネヒハシ",null,"粗ごみ"]
["か","鞄（かばん）（プラ製・ビニール製）","カバン（カバン）（プラセイ・ビニールセイ）",null,"一般ごみ"]
["か","鞄（布製・革製）",null,"45㍑袋に収まる場合は、一般ごみへ排出","粗ごみ"]
["か","鞄（籐製・金属製）",null,null,"粗ごみ"]
["か","画板","ガバン","サイズ判断品目","粗ごみ・大型ごみ"]
["か","花びん（プラスチック製）","カビン（プラスチックセイ）",null,"一般ごみ"]
["か","花びん（ガラス製）","カビン（ガラスセイ）",null,"空き缶、びん・ガラス類"]
["か","花びん（竹製・木製・陶器製・金属製）",null,null,"粗ごみ"]
["か","壁紙（クロス）","カベガミ（クロス）","＊リサイクルに向かない紙類のため一般ごみ\n＊業者に依頼した場合は、処理まで依頼","一般ごみ"]
["か","壁紙（クロス）未使用ロール巻き",null,"サイズ判断品目","粗ごみ・大型ごみ"]
["か","鎌","カマ","＊サイズ判断品目　　　　　　　　　　　　　　　　　　　　　　　　　　　　　　　　　　　　　＊危険のないようにする","粗ごみ・大型ごみ"]
["か","釜","カマ",null,"粗ごみ"]
["か","釜（風呂）","カマ（フロ）","販売店・製造元に相談。または、ごみ処理（一般廃棄物）業者に依頼","処理困難物"]
["か","紙おむつ","カミオムツ","＊リサイクルに向かない紙類のため一般ごみ\n＊汚物はトイレに流す","一般ごみ"]
["か","かみそり","カミソリ","危険のないようにする。","粗ごみ"]
["か","かみそりの刃","カミソリノハ","危険のないようにする。","粗ごみ"]
["か","神棚","カミダナ","解体条件","粗ごみ"]
["か","紙粘土","カミネンド",null,"一般ごみ"]
["か","紙箱","紙箱","＊地域の集団回収があれば、そちらに排出\n＊プラスチックで加工されている場合は一般ごみへ排出","紙類"]
["か","紙袋","紙袋","＊地域の集団回収があれば、そちらに排出\n＊プラスチックで加工されている場合は一般ごみへ排出","紙類"]
["か","紙やすり","カミヤスリ","リサイクルに向かない紙類のため一般ごみ","一般ごみ"]
["か","ガムテープ","ガムテープ","リサイクルに向かない紙類のため一般ごみ","一般ごみ"]
["か","瓶（ガラス製）","カメ（ガラスセイ）",null,"空き缶、びん・ガラス類"]
["か","瓶（陶器製・金属製）","カメ（トウキセイ・キンゾクセイ）",null,"粗ごみ"]
["か","カメラ","カメラ",null,"粗ごみ"]
["か","カメラのフィルム（ネガ）","カメラノフィルム（ネガ）",null,"一般ごみ"]
["か","蚊帳(かや)","カヤ(カヤ)","サイズ判断品目","粗ごみ・大型ごみ"]
["か","カラオケセット（家庭用）","カラオケセット（カテイヨウ）","＊サイズ判断品目\n＊モニターは別扱い","粗ごみ・大型ごみ"]
["か","ガラス","ガラス","新聞紙等に包んでキケンと表示（鉄線入りは粗ごみ）","空き缶、びん・ガラス類"]
["か","ガラス（１．２ｍを超えるもの）","ガラス（１．２ｍヲコエルモノ）","家庭ごみ業務第1課へ相談","空き缶、びん・ガラス類"]
["か","ガラスケース（金属枠・木枠）","ガラスケース（キンゾクワク・キワク）","サイズ判断品目","粗ごみ・大型ごみ"]
["か","ガラス食器","ガラスショッキ",null,"空き缶、びん・ガラス類"]
["か","ガラステーブル（ガラス天板のみ）","ガラステーブル（ガラステンバンノミ）","家庭ごみ業務第1課へ相談","空き缶、びん・ガラス類"]
["か","ガラステーブル（枠のみ\n（金属製・木製・籐製）","ガラステーブル（ワクノミ\n（キンゾクセイ・モクセイ・トウセイ）","サイズ判断品目","粗ごみ・大型ごみ"]
["か","カラーベスト","カラーベスト","販売店・製造元に相談。または、ごみ処理（一般廃棄物）業者に依頼","処理困難物"]
["か","カレンダー",null,"＊地域の集団回収があれば、そちらに排出\n＊プラスチックで加工されている場合は一般ごみへ排出\n＊金具などは取り外して粗ごみへ","紙類"]
["か","カレンダー綴り代の金具",null,null,"粗ごみ"]
["か","革靴","カワグツ",null,"一般ごみ"]
["か","瓦","カワラ","販売店・製造元に相談。または、ごみ処理（一般廃棄物）業者に依頼","処理困難物"]
["か","缶（ペンキ）","カン（ペンキ）","＊中身は除（中身が固まった状態で残っている場合は粗ごみへ排出可）\n＊オイル缶は粗ごみ","空き缶、びん・ガラス類"]
["か","缶（一斗缶）","カン（イチトカン）","ドラム缶は処理困難物","粗ごみ"]
["か","簡易トイレ(ポータブルトイレ)　\n（プラスチック製）","カンイトイレ(ポータブルトイレ)　\n（プラスチックセイ）","＊45㍑袋に収まる場合は、一般ごみへ排出　　　　　　　　　　　　　　　　　　　　　　　　　　　　　　　　　　　　　　　　","粗ごみ"]
["か","簡易トイレ(ポータブルトイレ)\n（木製・鉄製・ガラス製）",{"$f":"PHONETIC(B352)","v":"カンイトイレ(ポータブルトイレ)\n（モクセイ・テツセイ・ガラスセイ）"},"＊衛生・感染症予防のため45㍑袋に収まるもの、または部品については袋に入れて排出\n＊45㍑袋に収まる場合は、（可燃部分のみ）一般ごみへ排出","粗ごみ"]
["か","換気扇",{"$f":"PHONETIC(B353)","v":"カンキセン"},null,"粗ごみ"]
["か","換気扇フード","カンキセンフード",null,"粗ごみ"]
["か","乾燥機（食器）","カンソウキ（ショッキ）",null,"粗ごみ"]
["か","乾燥機（布団）","カンソウキ（フトン）",null,"粗ごみ"]
["か","乾燥機（食器洗い）","カンソウキ（ショッキアライ）","指定品目","大型ごみ600円"]
["か","乾燥機（衣類）","カンソウキ（イルイ）","【家電リサイクル法対象品目】家電小売店に依頼または財団法人　　　　　　家電製品協会（家電リサイクル券センター：0120-319640）に問い合わせ","家電リサイクル品目"]
["か","乾燥機（衣類）バケツ型",null,"外国製品","粗ごみ"]
["か","乾燥機の台（ラック）　　　　　　　　　　　　（金属製・木製）","カンソウキノダイ（ラック）　　　　　　　　　　　　（キンゾクセイ・モクセイ）","サイズ判断品目","粗ごみ・大型ごみ"]
["か","乾燥材",null,null,"一般ごみ"]
["か","乾電池","カンデンチ","＊市内の公共施設や協力店舗で実施する水銀使用廃製品の分別回収にご協力ください。\n＊小型充電式電池は、家電小売店のリサイクルBOXへお出しください。","粗ごみ"]
["か","鉋（カンナ）","カンナ（カンナ）",null,"粗ごみ"]
["か","看板","カンバン",null,"市で処理しないもの"]
["き","キーボード（楽器）","キーボード（ガッキ）","サイズ判断品目","粗ごみ・大型ごみ"]
["き","キーボード（パソコン）","キーボード（パソコン）","本体と一緒ならパソコンリサイクル（購入時のセットもの）","粗ごみ"]
["き","木うす","キウス","販売店・製造元に相談。または、ごみ処理（一般廃棄物）業者に依頼","処理困難物"]
["き","ギター","ギター","専用ケースに入れても排出可","粗ごみ"]
["き","ギターのケース","ギターノケース",null,"粗ごみ"]
["き","ギターの弦","ギターノツル",null,"粗ごみ"]
["き","キックボード","キックボード","＊サイズ判断品目　　　　　　　　　　　　　　　　　　　　　　　　　　　　　　　　　　　　　　＊エンジン付きは不可","粗ごみ・大型ごみ"]
["き","木槌（きづち）","キヅチ（キヅチ）","サイズ判断品目","粗ごみ・大型ごみ"]
["き","キッチンスケール（計り）","キッチンスケール（ハカリ）",null,"粗ごみ"]
["き","キッチンペーパー","キッチンペーパー","リサイクルに向かない紙類のため一般ごみ","一般ごみ"]
["き","キッチンマット",{"$f":"PHONETIC(B375)","v":"キッチンマット"},null,"一般ごみ"]
["き","キッチンワイヤーネット\n（流し台に置く食器水切り板）","キッチンワイヤーネット\n（ナガシダイニオクショッキミズキリバン）",null,"粗ごみ"]
["き","キッチンワゴン","キッチンワゴン","サイズ判断品目","粗ごみ・大型ごみ"]
["き","杵（きね）","キネ（キネ）","サイズ判断品目","粗ごみ・大型ごみ"]
["き","木箱","キバコ","サイズ判断品目","粗ごみ・大型ごみ"]
["き","ギブス（石膏でできた物）","ギブス（セッコウデデキタモノ）","　","粗ごみ"]
["き","脚立","キャタツ","＊サイズ判断品目　　　　　　　　　　　　　　　　　　　　　　　　　　　　　　　　　　　　　　　＊2㍍以上のものは不可","粗ごみ・大型ごみ"]
["き","キャビネット","キャビネット","サイズ判断品目","粗ごみ・大型ごみ"]
["き","キャリア（車用品）","キャリア（クルマヨウヒン）","サイズ判断品目","粗ごみ・大型ごみ"]
["き","キャリー（買物カー）金属複合製","キャリー（カイモノカー）キンゾクフクゴウセイ","サイズ判断品目","粗ごみ・大型ごみ"]
["き","キャリー（コンテナ）プラスチック製","キャリー（コンテナ）プラスチックセイ","＊サイズ判断品目　　　　　　　　　　　　　　　　　　　　　　　　　　　　　　　　　　　　　　　＊45㍑袋に収まる場合は、一般ごみへ排出","粗ごみ・大型ごみ"]
["き","キャリー（コンテナ）木製","キャリー（コンテナ）モクセイ","サイズ判断品目","粗ごみ・大型ごみ"]
["き","キャリー（動物用）プラスチック製","キャリー（ドウブツヨウ）プラスチックセイ","45㍑袋に収まる場合は、一般ごみへ排出","粗ごみ"]
["き","キャリー（動物用）籐製・金属製","キャリー（ドウブツヨウ）トウセイ・キンゾクセイ",null,"粗ごみ"]
["き","救急箱（プラスチック製・ビニール製）",{"$f":"PHONETIC(B389)","v":"キュウキュウバコ（プラスチックセイ・ビニールセイ）"},null,"一般ごみ"]
["き","救急箱（木製）",{"$f":"PHONETIC(B390)","v":"キュウキュウハコ（モクセイ）"},null,"粗ごみ"]
["き","急須（茶こし）",{"$f":"PHONETIC(B391)","v":"キュウス（チャコシ）"},null,"粗ごみ"]
["き","給湯器",{"$f":"PHONETIC(B392)","v":"キュウトウキ"},"＊サイズ判断品目　　　　　　　　　　　　　　　　　　　　　　　　　　　　　　　　　　　　　　　　＊業者に依頼した場合は、処理まで依頼","粗ごみ・大型ごみ"]
["き","給湯器（ソーラー）",null,"販売店・製造元に相談。または、ごみ処理（一般廃棄物）業者に依頼","処理困難物"]
["き","牛乳パック",{"$f":"PHONETIC(B394)","v":"ギュウニュウパック"},"＊地域の集団回収があれば、そちらに排出\n＊内側がアルミ加工されたものは一般ごみ","紙類"]
["き","給油ポンプ（携帯用）","キュウユポンプ（ケイタイヨウ）","電動式は粗ごみ（サイズ判断品目）","一般ごみ"]
["き","給油ポンプ","キュウユポンプ","サイズ判断品目","粗ごみ・大型ごみ"]
["き","教科書","キョウカショ","＊地域の集団回収があれば、そちらに排出","紙類"]
["き","鏡台","キョウダイ","＊サイズ判断品目　　　　　　　　　　　　　　　　　　　　　　　　　　　　　　　　　　　　　＊上下を取り外した状態での同時排出については粗ごみ扱い不可","粗ごみ・大型ごみ"]
["き","錐（きり）","キリ（キリ）","危険がないように","粗ごみ"]
["き","金魚運動器","キンギョウンドウキ","サイズ判断品目（1㍍以上は、その他趣味用品）（小）300（大）600","粗ごみ・大型ごみ"]
["き","金庫","キンコ","販売店・製造元に相談。または、ごみ処理（一般廃棄物）業者に依頼","処理困難物"]
["き","金庫（手さげ）","キンコ（テサゲ）",null,"粗ごみ"]
["き","金属バット","キンゾクバット","＊1㍍以上でも粗ごみ扱い（専用ケースにいれても１点扱い）\n＊ケースに入れた場合でも粗ごみ","粗ごみ"]
["く","空気入れ（プラスチック製）","クウキイレ（プラスチックセイ）","＊サイズ判断品目　　　　　　　　　　　　　　　　　　　　　　　　　　　　　　　　　　　　　＊45㍑袋に収まる場合は、一般ごみへ排出","粗ごみ・大型ごみ"]
["く","空気入れ（鉄製）","クウキイレ（テツセイ）","サイズ判断品目","粗ごみ・大型ごみ"]
["く","空気銃（玩具）","クウキジュウ（ガング）","＊サイズ判断品目　　　　　　　　　　　　　　　　　　　　　　　　　　　　　　　　　　　　＊準空気銃の処分については製造メーカー等に送付、復元できないように破壊または警察に処分を依頼。","粗ごみ・大型ごみ"]
["く","空気清浄機","クウキセイジョウキ",null,"粗ごみ"]
["く","クーハン（新生児用のかご）携帯用","クーハン（シンセイジヨウノカゴ）ケイタイヨウ","45㍑袋に収まる場合は、一般ごみへ排出","粗ごみ"]
["く","クーラーボックス\n（スチロール製・プラスチック製）","クーラーボックス\n（スチロールセイ・プラスチックセイ）","＊サイズ判断品目　　　　　　　　　　　　　　　　　　　　　　　　　　　　　　　　　　　　　　＊45㍑袋に収まる場合は、一般ごみへ排出","粗ごみ・大型ごみ"]
["く","釘","クギ","キケンのないようにする。","粗ごみ"]
["く","釘抜き（大工道具）\nバール状のもの","クギヌキ（ダイクドウグ）\nバールジョウノモノ","＊家庭用に限る\n＊長さ50㌢、直径の厚み2㌢以上は不可","粗ごみ"]
["く","草刈機（手動式）","クサカリキ（シュドウシキ）","サイズ判断品目","粗ごみ・大型ごみ"]
["く","草刈機（電動式）","クサカリキ（デンドウシキ）","＊サイズ判断品目　　　　　　　　　　　　　　　　　　　　　　　　　　　　　　　　　　　＊一部処理困難物あり","粗ごみ・大型ごみ"]
["く","草刈機（エンジン式）","クサカキ（エンジンシキ）","販売店・製造元に相談。または、ごみ処理（一般廃棄物）業者に依頼","処理困難物"]
["く","草刈機の刃",null,"危険のないようにする。","粗ごみ"]
["く","草花",null,"＊週の後半一世帯1袋のみ名前を書いて一般ごみへ排出\n＊2袋以上は、粗ごみ（6点まで）又は臨時ごみ（基本料金1200円と立会が必要）として申し込み","一般ごみ・粗ごみ"]
["く","楔（くさび）","クサビ（クサビ）","一部処理困難物あり","粗ごみ"]
["く","鎖（装飾品）（プラスチック製）","クサリ（ソウショクヒン）（プラスチックセイ）",null,"一般ごみ"]
["く","鎖（装飾品）（金属製）","クサリ（ソウショクヒン）（キンゾクセイ）",null,"粗ごみ"]
["く","鎖（プラスチック製）","クサリ（プラスチックセイ）",null,"一般ごみ"]
["く","鎖（金属製）","クサリ（キンゾクセイ）","一部処理困難物あり","粗ごみ"]
["く","くし（プラスチック製・べっ甲）","クシ（プラスチックセイ・ベッコウ）",null,"一般ごみ"]
["く","くし（木製・金属製）","クシ（モクセイ・キンゾクセイ）",null,"粗ごみ"]
["く","薬（医薬品・治療薬のみ）","クスリ（イヤクヒン・チリョウヤクノミ）","液体は布か紙に染み込ませる","一般ごみ"]
["く","薬の瓶（飲食用以外）","クスリノビン（インショクヨウイガイ）","＊中身は除く（中身が液体のものは軽く水洗いする）　　　　　　　　　　　　　　　　　　＊プラ製のふたは一般ごみ、金属製のふたは粗ごみへ排出","空き缶、びん・ガラス類"]
["く","薬の箱・袋（紙製）","薬ノ箱・袋（紙製）","＊地域の集団回収があれば、そちらに排出\n＊プラスチックで加工されている場合は一般ごみへ排出","紙類"]
["く","薬の箱・袋（プラスチック製）","薬ノ箱・袋（プラスチック製）","プラマークが表示されている場合はペットボトル・プラスチック製容器包装へ排出","一般ごみ"]
["く","靴","クツ","スキー靴・スケート靴等金属を含むものは粗ごみ","一般ごみ"]
["く","靴入れ（プラスチック製）","クツイレ（プラスチックセイ）","＊サイズ判断品目　　　　　　　　　　　　　　　　　　　　　　　　　　　　　　　　　　　　　＊45㍑袋に収まる場合は、一般ごみへ排出","粗ごみ・大型ごみ"]
["く","靴入れ（金属製・木製）","クツイレ（キンゾクセイ・モクセイ）","サイズ判断品目","粗ごみ・大型ごみ"]
["く","靴の外箱(紙製)","靴ノ外箱(紙製)","＊地域の集団回収があれば、そちらに排出\n＊靴の緩衝材はリサイクルに向かない紙類のため、一般ごみへ排出","紙類"]
["く","クッキングカッター","クッキングカッター","　","粗ごみ"]
["く","クッキングシート","クッキングシート","リサイクルに向かない紙類のため一般ごみ","一般ごみ"]
["く","クッション","クッション","＊サイズ判断品目　　　　　　　　　　　　　　　　　　　　　　　　　　　　　　　　　　　　　＊45㍑袋に収まる場合は、一般ごみへ排出","粗ごみ・大型ごみ"]
["く","靴べら（プラスチック製）",{"$f":"PHONETIC(B435)","v":"クツベラ（プラスチックセイ）"},null,"一般ごみ"]
["く","靴べら（木製・金属製）",{"$f":"PHONETIC(B436)","v":"クツベラ（モクセイ・キンゾクセイ）"},null,"粗ごみ"]
["く","熊手（園芸用）",null,null,"粗ごみ"]
["く","熊手（掃除用品）（竹製・金属製）",{"$f":"PHONETIC(B438)","v":"クマデ（ソウジヨウヒン）（タケセイ・キンゾクセイ）"},null,"粗ごみ"]
["く","鞍（乗馬用）",null,"サイズ判断品目","粗ごみ・大型ごみ"]
["く","グラインダー（電動工具）",{"$f":"PHONETIC(B440)","v":"グラインダー（デンドウコウグ）"},"一部処理困難物あり","粗ごみ"]
["く","グラインダーの刃",{"$f":"PHONETIC(B441)","v":"グラインダーノハ"},"＊一部処理困難物あり　　　　　　　　　　　　　　　　　　　　　　　　　　　　　　　　　　　　＊危険のないように排出　　　　　　　　　　","粗ごみ"]
["く","グラス（ガラス製）",null,null,"空き缶、びん・ガラス類"]
["く","グラス（陶器製・金属製）",null,null,"粗ごみ"]
["く","クラッチ・ブレーキレバー（バイク部品）",null,"＊交換時に引き取り依頼／自動車用品店に相談","市で処理しないもの"]
["く","クラリネット（楽器）",null,null,"粗ごみ"]
["く","グランドゴルフのクラブ",null,"専用ケースに入れても排出可","粗ごみ"]
["く","クリーンヒーター（家庭用）",null,"サイズ判断品目","粗ごみ・大型ごみ"]
["く","クリスマスツリー（プラスチック製）",{"$f":"PHONETIC(B448)","v":"クリスマスツリー（プラスチックセイ）"},"＊サイズ判断品目　　　　　　　　　　　　　　　　　　　　　　　　　　　　　　　　　　　　　＊45㍑袋に収まる場合は、一般ごみへ排出","粗ごみ・大型ごみ"]
["く","クリスマスツリー（金属製・木製）",{"$f":"PHONETIC(B449)","v":"クリスマスツリー（キンゾクセイ・モクセイ）"},"サイズ判断品目","粗ごみ・大型ごみ"]
["く","クリップ（プラスチック製）",{"$f":"PHONETIC(B450)","v":"クリップ（プラスチックセイ）"},null,"一般ごみ"]
["く","クリップ（金属製）",null,null,"粗ごみ"]
["く","クリップボード",null,"金属が含まれるものは粗ごみ","一般ごみ"]
["く","車椅子（手動）",{"$f":"PHONETIC(B453)","v":"クルマイス（シュドウ）"},"＊指定品目　　　　　　　　　　　　　　　　　　　　　　　　　　　　　　　　　　　　　　　　　　　＊折りたたみ式は除く","大型ごみ300円"]
["く","車椅子（折りたたみ式）",null,"破損等により折りたたみできないものは大型ごみ扱い","粗ごみ"]
["く","車椅子（電動式）",{"$f":"PHONETIC(B455)","v":"クルマイス（デンドウシキ）"},"販売店・取扱店等に相談","処理困難物"]
["く","車の三角停止板（プラスチック製）",null,"45㍑袋に収まる場合は、一般ごみへ排出","粗ごみ"]
["く","車の三角停止板",null,"金属を含まないもので45㍑袋に収まる場合は、一般ごみへ排出","粗ごみ"]
["く","車の部品（窓ガラス）",null,"交換時に引き取り依頼／自動車用品店に相談","市で処理しないもの"]
["く","車の部品（シフトノブ、どろよけ、ホーン）",null,"自動車部品の取り扱い例外部品","粗ごみ"]
["く","車の部品（ルームミラー（後付品））",null,null,"粗ごみ"]
["く","車の部品（主要部分）",{"$f":"PHONETIC(B461)","v":"クルマノブヒン（シュヨウブブン）"},"販売店・取扱店等に相談","処理困難物"]
["く","グレーチング","グレーチング","販売店・製造元に相談。または、ごみ処理（一般廃棄物）業者に依頼","処理困難物"]
["く","クロス（壁用）","クロス（カベヨウ）","業者に工事を依頼した場合は、処理まで依頼","一般ごみ"]
["く","グローブ（スポーツ用品）","グローブ（スポーツヨウヒン）",null,"一般ごみ"]
["く","鍬（くわ）","クワ（クワ）",null,"粗ごみ"]
["け","蛍光灯（管）","ケイコウトウ（カン）","＊市内の公共施設や協力店舗で実施する水銀使用廃製品の分別回収にご協力ください。","粗ごみ"]
["け","携行缶",null,null,"粗ごみ"]
["け","計算機",{"$f":"PHONETIC(B468)","v":"ケイサンキ"},null,"粗ごみ"]
["け","珪藻土バスマット",null,"サイズ判断品目","粗ごみ・大型ごみ"]
["け","携帯電話",{"$f":"PHONETIC(B470)","v":"ケイタイデンワ"},"バッテリーを取り外して小型家電リサイクル回収BOXへ","粗ごみ"]
["け","携帯電話のバッテリー",{"$f":"PHONETIC(B471)","v":"ケイタイデンワノバッテリー"},"小型充電式電池のリサイクル回収BOXへ","粗ごみ"]
["け","携帯トイレ（紙製・プラスチック製）",{"$f":"PHONETIC(B472)","v":"ケイタイトイレ（カミセイ・プラスチックセイ）"},"中身は除く","一般ごみ"]
["け","携帯トイレ（びん製）",{"$f":"PHONETIC(B473)","v":"ケイタイトイレ（ビンセイ）"},"中身を除き水洗いする","空き缶、びん・ガラス類"]
["け","警報機（ガス漏れ・火災検知器）","ケイホウキ（ガスモレ・カサイケンチキ）","特別のものは除く","粗ごみ"]
["け","ゲートボール（クラブ）","ゲートボール（クラブ）","専用ケースに入れても排出可","粗ごみ"]
["け","ゲートボール（ボール）","ゲートボール（ボール）",null,"粗ごみ"]
["け","ケーブル","ケーブル","事業に伴うものは不可","粗ごみ"]
["け","ゲーム機","ゲームキ",null,"粗ごみ"]
["け","ゲーム機（テーブル型）","ゲームキ（テーブルガタ）","指定品目","大型ごみ1800円"]
["け","化粧品のびん","ケショウヒンノビン","＊中身を除き軽く水洗いする　　　　　　　　　　　　　　　　　　　　　　　　　　　　　＊プラ製のふたは一般ごみ、金属製のふたは粗ごみへ排出","空き缶、びん・ガラス類"]
["け","下駄","ゲタ",null,"粗ごみ"]
["け","下駄箱","ゲタバコ","サイズ判断品目","粗ごみ・大型ごみ"]
["け","血圧計（血圧器）","ケツアツケイ（ケツアツウツワ）","◎水銀使用廃製品の窓口回収（穂谷川清掃工場・東部清掃工場）又は、出張回収をご利用ください。（出張回収日程は広報等で確認してください）\n＊事業に伴うものは不可","粗ごみ"]
["け","煙殺虫剤","ケムリサッチュウザイ","【使用済】缶製は「空き缶・びん・ガラス」、プラスチック製は「一般ごみ」\n【未使用】穂谷川清掃工場に直接持ち込み又は、出張回収をご利用ください。（出張回収日程は広報等で確認してください）","空き缶、びん・ガラス類\n一般ごみ"]
["け","玄関マット（プラスチック製・ゴム製・布製）","ゲンカンマット（プラスチックセイ・ゴムセイ・ヌノセイ）","*サイズ判断品目\n＊45㍑袋に入る場合は、一般ごみへ排出","粗ごみ・大型ごみ"]
["け","玄関マット（金属製）","ゲンカンマット（キンゾクセイ）","サイズ判断品目","粗ごみ・大型ごみ"]
["け","剣山（けんざん）","ケンザン（ケンザン）",null,"粗ごみ"]
["け","健康器具","ケンコウキグ","＊サイズ判断品目\n＊指定品目は除く（サイクリング・ランニングマシーン・ウォーカー）","粗ごみ・大型ごみ"]
["け","原動機付自転車（部品も含む）","ゲンドウキヅケジテンシャ（ブヒンモフクム）","バイク販売店・バイク引き取り業者に依頼","処理困難物"]
["け","剣道の防具","ケンドウノボウグ","＊防具袋は、一式扱い可　　　　　　　　　　　　　　　　　　　　　　　　　　　　　　　　＊竹刀は別扱い","粗ごみ"]
["け","鍵盤ハーモニカ","ケンバンハーモニカ",null,"粗ごみ"]
["け","顕微鏡","ケンビキョウ",null,"粗ごみ"]
["こ","碁石","ゴイシ",null,"粗ごみ"]
["こ","こいのぼり","コイノボリ","＊サイズ判断品目　　　　　　　　　　　　　　　　　　　　　　　　　　　　　　　　　　　　＊45㍑袋に収まる場合は、少量づつ一般ごみへ排出","粗ごみ・大型ごみ"]
["こ","こいのぼりの支柱（金属製）","コイノボリノシチュウ（キンゾクセイ）","＊サイズ判断品目　一部処理困難物あり\n＊大型ごみは、2㍍未満に限る（3本1セット扱い）","粗ごみ・大型ごみ"]
["こ","こいのぼりの支柱（竹製）","コイノボリノシチュウ（タケセイ）","1㍍未満に限る（粗ごみサイズのみ可）","粗ごみ"]
["こ","こいのぼりの矢車","コイノボリノヤグルマ",null,"粗ごみ"]
["こ","高圧ボンベ","コウアツボンベ","＊自転車・サーバー・エアガン・水槽用など\n＊上記以外の大きなものは処理困難物","粗ごみ"]
["こ","耕運機","コウウンキ","販売店・取扱店等に相談","処理困難物"]
["こ","耕運機のつめ","コウウンキノツメ","販売店・取扱店等に相談","処理困難物"]
["こ","工具入れ（プラスチック製）",null,"＊中身は除く\n＊45㍑袋に収まる場合は、一般ごみへ排出","粗ごみ"]
["こ","工具入れ（木製・金属製）","コウグイレ（モクセイ・キンゾクセイ）","中身は除く","粗ごみ"]
["こ","広告（紙類）チラシ","コウコク（カミルイ）チラシ","＊地域の集団回収があれば、そちらに排出\n＊プラスチックで加工されている場合は一般ごみへ排出","一般ごみ"]
["こ","鋼材類","コウザイルイ","＊販売店・製造元に相談。または、ごみ処理（一般廃棄物）業者に依頼","処理困難物"]
["こ","高速製氷機（家庭用）","コウソクセイヒョウキ（カテイヨウ）","＊サイズ判断品目","粗ごみ・大型ごみ"]
["こ","ゴーカート","ゴーカート","＊エンジン・モーターなしでも不可（子供用も不可）　　　　　　　　　　　　　　　　　＊販売店・製造元に相談。または、ごみ処理（一般廃棄物）業者に依頼","処理困難物"]
["こ","コーキング剤（プラスチック製チューブ・缶）","コーキングザイ（プラスチックセイチューブ・カン）",null,"一般ごみ"]
["こ","コーキング剤（金属製チューブ）",null,null,"粗ごみ"]
["こ","コーキング剤（金属製の缶）",null,"＊中身を除き軽く水洗いする\n＊中身が固まった状態の場合は粗ごみへ排出","空き缶、びん・ガラス類"]
["こ","ゴーグル",null,null,"一般ごみ"]
["こ","固形燃料",null,"キャンプ用","一般ごみ"]
["こ","コースター（紙製・布製・プラスチック製）",null,null,"一般ごみ"]
["こ","コースター（竹製・木製・金属製）",null,null,"粗ごみ"]
["こ","コード（電気）",null,null,"粗ごみ"]
["こ","コートハンガー",null,"サイズ判断品目","粗ごみ・大型ごみ"]
["こ","コードリール（ドラム）電気用",null,null,"粗ごみ"]
["こ","コーヒーメーカー（家庭用）","コーヒーメーカー（カテイヨウ）",null,"粗ごみ"]
["こ","氷かき機（家庭用）","コオリカキキ（カテイヨウ）",null,"粗ごみ"]
["こ","五月人形セット",null,null,"粗ごみ・大型ごみ"]
["こ","黒板",null,"＊サイズ判断品目　　　　　　　　　　　　　　　　　　　　　　　　　　　　　　　　　　　＊大型スタンド付きは解体条件","粗ごみ・大型ごみ"]
["こ","黒板（ボード製）","コクバン（ボードセイ）","＊サイズ判断品目　　　　　　　　　　　　　　　　　　　　　　　　　　　　　　　　　　　　　＊大型スタンド付きは解体条件","粗ごみ・大型ごみ"]
["こ","黒板消し","コクバンケシ",null,"一般ごみ"]
["こ","ござ（い草・プラスチック製）","ゴザ（イクサ・プラスチックセイ）","45㍑袋に収まる場合は、一般ごみへ排出","粗ごみ"]
["こ","こたつ","コタツ","＊サイズ判断品目　　　　　　　　　　　　　　　　　　　　　　　　　　　　　　　　　　　＊本体と天板はセット扱い","粗ごみ・大型ごみ"]
["こ","こたつ（天板）","コタツ（テンバン）","サイズ判断品目","粗ごみ・大型ごみ"]
["こ","こたつ（ヒーター）","コタツ（ヒーター）",null,"粗ごみ"]
["こ","こたつ用掛け敷き布団類","コタツヨウカケシキフトンルイ",null,"粗ごみ"]
["こ","コップ（紙製・プラスチック製）","コップ（カミセイ・プラスチックセイ）","リサイクルに向かない紙類のため一般ごみ","一般ごみ"]
["こ","コップ（ガラス製）","コップ（ガラスセイ）",null,"空き缶、びん・ガラス類"]
["こ","コップ（陶磁器・金属製）","コップ（トウジキ・キンゾクセイ）",null,"粗ごみ"]
["こ","琴（楽器）","コト（ガッキ）","サイズ判断品目（専用ケースに入れて排出しても１点扱い）","粗ごみ・大型ごみ"]
["こ","子供用のバイク（エンジン式）","コドモヨウノバイク（エンジンシキ）","販売店・取扱店に相談","処理困難物"]
["こ","子供用のバイク（電動式）",null,"本格的なバイクはごみ減量推進課へ要確認","粗ごみ"]
["こ","子供用のブランコ","コドモヨウノブランコ","サイズ判断品目","粗ごみ・大型ごみ"]
["こ","碁盤（将棋盤）","ゴバン（ショウギバン）",null,"粗ごみ"]
["こ","コピー機","コピーキ","＊指定品目　　　　　　　　　　　　　　　　　　　　　　　　　　　　　　　　　　　　　　　＊事業に伴うもの・業務用は不可","大型ごみ600円"]
["こ","コピー用紙",null,"＊地域の集団回収があれば、そちらに排出","紙類"]
["こ","ごみ箱（紙製・プラスチック製）","ゴミハコ（カミセイ・プラスチックセイ）","45㍑袋に収まる場合は、一般ごみへ排出","粗ごみ"]
["こ","ごみ箱（籐製・木製・竹製・金属製）","ゴミバコ（トウセイ・モクセイ・タケセイ・キンゾクセイ）",null,"粗ごみ"]
["こ","ゴム","ゴム",null,"一般ごみ"]
["こ","ゴムシート","ゴムシート",null,"一般ごみ"]
["こ","ゴム手袋","ゴムテブクロ",null,"一般ごみ"]
["こ","ゴムボート（ゴム製）",{"$f":"PHONETIC(B543)","v":"ゴムボート（ゴムセイ）"},"45㍑袋に収まる場合は、一般ごみへ排出","粗ごみ"]
["こ","ゴムボート（ゴム製）","ゴムボート（ゴムセイ）","＊サイズ判断品目　　　　　　　　　　　　　　　　　　　　　　　　　　　　　　　　　　　＊木製・金属製のものが含まれるもの　　　　　　　　　　　　　　　　　　　　　　　＊モーター・エンジン付は不可","粗ごみ・大型ごみ"]
["こ","ゴムボートのオール（プラスチック製）","ゴムボートノオール（プラスチックセイ）","＊サイズ判断品目　　　　　　　　　　　　　　　　　　　　　　　　　　　　　　　　　　　＊45㍑袋に収まる場合は、一般ごみへ排出","粗ごみ・大型ごみ"]
["こ","ゴムボートのオール（木・金属製）","ゴムボートノオール（キ・キンゾクセイ）","サイズ判断品目","粗ごみ・大型ごみ"]
["こ","米貯蔵缶（農家用）","コメチョゾウカン（ノウカヨウ）","販売店・製造元に相談。または、ごみ処理（一般廃棄物）業者に依頼","処理困難物"]
["こ","米びつ","コメビツ","サイズ判断品目","粗ごみ・大型ごみ"]
["こ","米びつ（保冷型）",null,"サイズ判断品目","粗ごみ・大型ごみ"]
["こ","コルクボード","コルクボード","サイズ判断品目","粗ごみ・大型ごみ"]
["こ","コルセット（布製・革製）","コルセット（ヌノセイ・カワセイ）",null,"一般ごみ"]
["こ","コルセット（金属を含むもの）","コルセット（キンゾクヲフクムモノ）",null,"粗ごみ"]
["こ","ゴルフクラブ","ゴルフクラブ",null,"粗ごみ"]
["こ","ゴルフバッグ","ゴルフバッグ",null,"粗ごみ"]
["こ","ゴルフボール","ゴルフボール",null,"一般ごみ"]
["こ","ゴルフ用ネット","ゴルフヨウネット","サイズ判断品目","粗ごみ・大型ごみ"]
["こ","ゴルフ用パラソル",{"$f":"PHONETIC(B557)","v":"ゴルフヨウパラソル"},null,"粗ごみ"]
["こ","ゴルフ用マット",{"$f":"PHONETIC(B558)","v":"ゴルフヨウマット"},"＊45㍑袋に収まる場合は、一般ごみへ排出\n＊金属製のものが含まれる場合は、粗ごみへ排出。","粗ごみ"]
["こ","コロコロモップ",{"$f":"PHONETIC(B559)","v":"コロコロモップ"},null,"粗ごみ"]
["こ","コンクリート",{"$f":"PHONETIC(B560)","v":"コンクリート"},"販売店・製造元に相談。または、ごみ処理（一般廃棄物）業者に依頼","処理困難物"]
["こ","コンクリート製品","コンクリートセイヒン","販売店・製造元に相談。または、ごみ処理（一般廃棄物）業者に依頼","処理困難物"]
["こ","コンクリート片","コンクリートヘン","ごみ処理（一般廃棄物）業者に依頼","処理困難物"]
["こ","コンクリートブロック","コンクリートブロック","ごみ処理（一般廃棄物）業者に依頼","処理困難物"]
["こ","コンタクトレンズ","コンタクトレンズ",null,"一般ごみ"]
["こ","コンテナボックス\n（紙製・プラスチック製）","コンテナボックス\n（カミセイ・プラスチックセイ）","＊サイズ判断品目\n＊45㍑袋に収まる場合は、一般ごみへ排出","粗ごみ・大型ごみ"]
["こ","コンパクト（化粧品）","コンパクト（ケショウヒン）","鏡が付いてなければ一般ごみへ排出","粗ごみ"]
["こ","コンパス（文房具）","コンパス（ブンボウグ）","危険のないようにする","粗ごみ"]
["こ","コンパネ","コンパネ","板状のものでサイズが長さ1㍍以上、厚さ5㌢以上、幅30㌢以上のものは、不可","粗ごみ"]
["こ","コンポ（オーディオ）","コンポ（オーディオ）",null,"粗ごみ"]
["こ","コンパス（方位磁石）","コンパス（ホウイジシャク）",null,"粗ごみ"]
["こ","コンポスト","コンポスト","＊サイズ判断品目","粗ごみ・大型ごみ"]
["さ","サーフボード",{"$f":"PHONETIC(B572)","v":"サーフボード"},"サイズ判断品目","粗ごみ・大型ごみ"]
["さ","サイクリングマシーン（エアロバイク）",{"$f":"PHONETIC(B573)","v":"サイクリングマシーン（エアロバイク）"},"指定品目","大型ごみ600円"]
["さ","座椅子",{"$f":"PHONETIC(B574)","v":"ザイス"},"サイズ判断品目（排出した状態のサイズ判断）","粗ごみ・大型ごみ","工場確認済"]
["さ","サイディングボード（外壁材）",{"$f":"PHONETIC(B575)","v":"サイディングボード（ガイヘキザイ）"},"建築廃材は工事の施工業者に引き取りを依頼","処理困難物"]
["さ","サイドテーブル","サイドテーブル","サイズ判断品目","粗ごみ・大型ごみ"]
["さ","サイドボード","サイドボード","サイズ判断品目","粗ごみ・大型ごみ"]
["さ","財布","サイフ",null,"一般ごみ"]
["さ","裁縫台（木製・金属製）","サイホウダイ（モクセイ・キンゾクセイ）","サイズ判断品目","粗ごみ・大型ごみ"]
["さ","裁縫箱（布製・プラスチック製）","サイホウバコ（ヌノセイ・プラスチックセイ）","45㍑袋に収まる場合は、一般ごみへ排出","粗ごみ"]
["さ","裁縫箱（木製・籐製・金属製）","サイホウバコ（モクセイ・トウセイ・キンゾクセイ）",null,"粗ごみ"]
["さ","座位保持装置",{"$f":"PHONETIC(B582)","v":"ザイホジソウチ"},"＊取り外せば、それぞれの排出時サイズ判断","粗ごみ・大型ごみ"]
["さ","酒樽",{"$f":"PHONETIC(B583)","v":"サカダル"},"直径55ｃｍ以下　高さ60ｃｍ以下に限る","粗ごみ"]
["さ","魚焼き機","サカナヤキキ","事業に伴うもの・業務用は不可","粗ごみ"]
["さ","酒の紙パック","サケノカミパック","＊地域の集団回収があれば、そちらに排出\n＊内側がアルミ加工されたものは一般ごみ","紙類"]
["さ","酒沸かし器","サケワカシキ","事業に伴うもの・業務用は不可","粗ごみ"]
["さ","サスペンション（車・バイク部品）","サスペンション（クルマ・バイクブヒン）","＊交換時に引き取り依頼／自動車・バイク部品、用品店に相談","市で処理しないもの"]
["さ","座卓","ザタク","サイズ判断品目","粗ごみ・大型ごみ"]
["さ","サッカーボール","サッカーボール",null,"一般ごみ"]
["さ","サッシ（窓枠）","サッシ（マドワク）","＊サイズ判断品目\n＊1㍍以上のガラス戸は建具で受付し備考欄に「ガラス戸」と記入","粗ごみ・大型ごみ"]
["さ","雑誌","ザッシ","＊地域の集団回収があれば、そちらに排出","紙類"]
["さ","雑草","ザッソウ","＊週の後半一世帯１袋のみ名前を書いて一般ごみへ排出　 　　　　　　　\n＊2袋以上は、粗ごみ（6点まで）又は臨時ごみ（基本料金1200円と立会が必要）として申し込み","粗ごみ"]
["さ","殺鼠剤","サッソザイ",null,"一般ごみ"]
["さ","殺虫剤（燻煙式・燻蒸式）の缶","サッチュウザイ（クンエンシキ・クンジョウシキ）ノカン",null,"粗ごみ"]
["さ","殺虫剤の缶（スプレー缶）",{"$f":"PHONETIC(B595)","v":"サッチュウザイノカン（スプレーカン）"},"中身を除く　","空き缶、びん・ガラス類"]
["さ","殺虫剤の瓶","サッチュウザイノビン","中身を除き軽く水洗いする","空き缶、びん・ガラス類"]
["さ","座布団","ザブトン","＊専用ケースに入れての排出も粗ごみ1点扱い　(圧縮袋での排出は不可）\n＊一般ごみへの排出は不可","粗ごみ・大型ごみ"]
["さ","座布団カバー","ザブトンカバー",null,"一般ごみ"]
["さ","皿（紙製・プラスチック製）","サラ（カミセイ・プラスチックセイ）","リサイクルに向かない紙類のため一般ごみ","一般ごみ"]
["さ","皿（陶磁器・金属製）","サラ（トウジキ・キンゾクセイ）",null,"粗ごみ"]
["さ","皿（ガラス製）","サラ（ガラスセイ）",null,"空き缶、びん・ガラス類"]
["さ","サラダ油の容器（プラスチック製）","サラダアブラノヨウキ（プラスチックセイ）","中身を除く　","ペットボトル・プラスチック製容器包装"]
["さ","サラダ油の容器（びん製）","サラダアブラノヨウキ（ビンセイ）","中身を除く　","空き缶、びん・ガラス類"]
["さ","ざる（プラスチック製）","ザル（プラスチックセイ）","45㍑袋に収まる場合は、一般ごみへ排出","粗ごみ"]
["さ","ざる（竹製・金属製）","ザル（タケセイ・キンゾクセイ）",null,"粗ごみ"]
["さ","三脚（カメラ用・釣り用）","サンキャク（カメラヨウ・ツリヨウ）","サイズ判断品目","粗ごみ・大型ごみ"]
["さ","サングラス（プラスチック製）",{"$f":"PHONETIC(B607)","v":"サングラス（プラスチックセイ）"},null,"一般ごみ"]
["さ","サングラス（ガラス製）",{"$f":"PHONETIC(B608)","v":"サングラス（ガラスセイ）"},null,"粗ごみ"]
["さ","三角コーナー（プラスチック製）","サンカクコーナー（プラスチックセイ）",null,"一般ごみ"]
["さ","三角コーナー（金属製）","サンカクコーナー（キンゾクセイ）",null,"粗ごみ"]
["さ","三角コーン","サンカクコーン","45㍑袋に収まる場合は、一般ごみへ排出","粗ごみ"]
["さ","三角停止板","サンカクテイシバン","自動車用","粗ごみ"]
["さ","サンゴの置物","サンゴノオキモノ",null,"粗ごみ"]
["さ","サンシェード","サンシェード","＊サイズ判断品目　　　　　　　　　　　　　　　　　　　　　　　　　　　　　　　　　　　　　＊1㍍以上のものが複数ある場合は排出時（ひとまとめにする）サイズの金額","粗ごみ・大型ごみ"]
["さ","サンシェード（支柱部分）","サンシェード（シチュウブブン）","＊サイズ判断品目　　　　　　　　　　　　　　　　　　　　　　　　　　　　　　　　　　　　　＊1㍍以上のものが複数ある場合は排出時（ひとまとめにする）サイズの金額","粗ごみ・大型ごみ"]
["さ","サンシェード（幌部分）","サンシェード（ホロブブン）","＊サイズ判断品目\n＊45㍑袋に収まる場合は、一般ごみへ排出可","粗ごみ・大型ごみ"]
["さ","サンダル","サンダル",null,"一般ごみ"]
["さ","サンドバック","サンドバック","＊サイズ判断品目\n＊砂入りは不可","粗ごみ・大型ごみ"]
["さ","三段ボックス（紙製・プラスチック製）","サンダンボックス（カミセイ・プラスチックセイ）","＊サイズ判断品目\n＊45㍑袋に収まる場合は、一般ごみへ排出","粗ごみ・大型ごみ"]
["さ","三段ボックス（木製・金属製）","サンダンボックス（モクセイ・キンゾクセイ）","サイズ判断品目","粗ごみ・大型ごみ"]
["さ","三輪車","サンリンシャ",null,"粗ごみ"]
["し","シーツ","シーツ",null,"一般ごみ"]
["し","ＣＤディスク","シーディーディスク",null,"一般ごみ"]
["し","ＣＤディスクのケース","シーディーディスクのケース",null,"一般ごみ"]
["し","ＣＤプレーヤー（携帯用）","シーディープレーヤー（ケイタイヨウ）",null,"粗ごみ"]
["し","ＣＤプレーヤー・デッキ",null,null,"粗ごみ"]
["し","シート（車・バイク部品）",null,"＊交換時に引き取り依頼／自動車・バイク部品、用品店に相談","市で処理しないもの"]
["し","シート（レジャー用）",{"$f":"PHONETIC(B628)","v":"シート（レジャーヨウ）"},null,"一般ごみ"]
["し","シートカバー",null,null,"一般ごみ"]
["し","シールド（バイク用品）",null,null,"粗ごみ"]
["し","ジェットバス（簡易型）",{"$f":"PHONETIC(B631)","v":"ジェットバス（カンイガタ）"},"業者に依頼した場合は、処理まで依頼","粗ごみ"]
["し","敷パット（寝具類）",null,null,"粗ごみ"]
["し","磁気マットレス",null,"サイズ判断品目。1㍍以上は、他の寝具類（小）300（大）600","粗ごみ・大型ごみ"]
["し","敷物\n（プラスチック製・ゴム製・い草製・布製）",null,"45㍑袋に収まる簡易なものは、一般ごみへ排出","粗ごみ"]
["し","敷物\n（木製・竹製・籐製・金属製）",null,null,"粗ごみ"]
["し","磁石",{"$f":"PHONETIC(B636)","v":"ジシャク"},null,"粗ごみ"]
["し","辞書・辞典",{"$f":"PHONETIC(B637)","v":"ジショ・ジテン"},"＊地域の集団回収があれば、そちらに排出","紙類"]
["し","システムキッチン",{"$f":"PHONETIC(B638)","v":"システムキッチン"},"＊工事を業者に依頼した時は、処理まで依頼\n＊切断しての排出（流し台・ガス台・調理代）は各指定品目","処理困難物・大型ごみ"]
["し","システム畳",null,"＊サイズ判断品目","粗ごみ・大型ごみ"]
["し","システムロフトベッド\n（下部がソファー／机等になっている）",null,"＊単体（ベッド／ソファー／机／椅子）ごとにサイズ判断で受付\n＊離脱式の引き出し・本棚は単品扱い","粗ごみ・大型ごみ"]
["し","湿度計（プラスチック製）",null,null,"一般ごみ"]
["し","湿度計（木製・金属製）",null,null,"粗ごみ"]
["し","下着",{"$f":"PHONETIC(B643)","v":"シタギ"},null,"一般ごみ"]
["し","七宝焼きの炉",null,"販売店・取扱店に相談。または、ごみ処理（一般廃棄物）業者に依頼　　（レンガが使用されているため）","処理困難物"]
["し","七輪",{"$f":"PHONETIC(B645)","v":"シチリン"},null,"粗ごみ"]
["し","室内用滑り台（プラスチック製）",{"$f":"PHONETIC(B646)","v":"シツナイヨウスベリダイ（プラスチックセイ）"},"＊サイズ判断品目　　　　　　　　　　　　　　　　　　　　　　　　　　　　　　　　　　　＊45㍑袋に収まる場合は、一般ごみへ排出","粗ごみ・大型ごみ"]
["し","室内用滑り台（木製）",{"$f":"PHONETIC(B647)","v":"シツナイヨウスベリダイ（モクセイ）"},"サイズ判断品目","粗ごみ・大型ごみ"]
["し","湿布",{"$f":"PHONETIC(B648)","v":"シップ"},null,"一般ごみ"]
["し","自転車",{"$f":"PHONETIC(B649)","v":"ジテンシャ"},"＊指定品目\n＊臨時・持ち込みごみについては1回の申込につき２０台まで","大型ごみ300円"]
["し","自転車（電動式）",{"$f":"PHONETIC(B650)","v":"ジテンシャ（デンドウシキ）"},"＊指定品目　　　　　　　　　　　　　　　　　　　　　　　　　　　　　　　　　　　　　　　　＊バッテリーは処理困難物のため取り外しておくこと　　　　　　　　　　　　　（バッテリーは販売店等に相談）　　　　　　　　　　　　　　　　　　　　　　　　　　  　＊ペダルなし二輪車は粗ごみ","大型ごみ300円"]
["し","自転車部品","ジテンシャブヒン","フレームが含まれている状態は指定品目扱い","粗ごみ"]
["し","自動車","ジドウシャ","自動車販売店・自動車解体業者に依頼","処理困難物"]
["し","自動車部品",null,"＊交換時に引き取り依頼／自動車用品店に相談\n＊プラグ、ホーン、ワイパーゴム、ワイパーブレード、シフトノブは除く","市で処理しないもの"]
["し","シフトノブ（車部品）","シフトノブ（クルマブヒン）",null,"粗ごみ"]
["し","竹刀","シナイ","専用ケースに入れても排出可","粗ごみ"]
["し","芝刈り機（手動式）","シバカリキ（シュドウシキ）","サイズ判断品目","粗ごみ・大型ごみ"]
["し","芝刈り機（電動式）","シバカリキ（デンドウシキ）","＊サイズ判断品目\n＊一部処理困難物あり","粗ごみ・大型ごみ"]
["し","芝刈り機（エンジン式）","シバカリキ（エンジンシキ）","販売店・取扱店等に相談","処理困難物"]
["し","しめ飾り","シメカザリ","金属を含まないもので45㍑袋に収まる場合は、一般ごみへ排出","一般ごみ"]
["し","シャープペンシル（プラスチック製）","シャープペンシル（プラスチックセイ）",null,"一般ごみ"]
["し","シャープペンシル（金属製）","シャープペンシル（キンゾクセイ）",null,"粗ごみ"]
["し","シャープペンシルの芯","シャープペンシルノシン",null,"一般ごみ"]
["し","蛇口（金属製）","ジャグチ（キンゾクセイ）","業者に依頼した場合は、処理まで依頼","粗ごみ"]
["し","写真","シャシン","リサイクルに向かない紙類のため一般ごみ","一般ごみ"]
["し","写真のネガ","シャシンノネガ",null,"一般ごみ"]
["し","写真乾燥機","シャシンカンソウキ","＊サイズ判断品目　　　　　　　　　　　　　　　　　　　　　　　　　　　　　　　　　　　＊事業に伴うもの・業務用は不可","粗ごみ・大型ごみ"]
["し","写真現像機","シャシンゲンゾウキ","＊サイズ判断品目　　　　　　　　　　　　　　　　　　　　　　　　　　　　　　　　　　　＊事業に伴うもの・業務用は不可","粗ごみ・大型ごみ"]
["し","写真立（プラスチック製）","シャシンタ（プラスチックセイ）","ガラス付きは粗ごみ。ガラスを取り外せる場合はガラスは空き缶、びん・ガラス類へそれ以外は一般ごみへ","一般ごみ"]
["し","写真立（木製・陶磁器・金属製）","シャシンタ（モクセイ・トウジキ・キンゾクセイ）","ガラス付きは粗ごみ。ガラスを取り外せる場合はガラスは空き缶、びん・ガラス類へそれ以外は粗ごみへ","粗ごみ"]
["し","写真立（ガラス製）","シャシンタ（ガラスセイ）",null,"空き缶、びん・ガラス類"]
["し","ジャッキ（車載工具）","ジャッキ（シャサイコウグ）","車載工具と同等程度のもの","粗ごみ"]
["し","ジャッキ（油圧式工具）","ジャッキ（ユアツシキコウグ）","販売店・製造元に相談。または、ごみ処理（一般廃棄物）業者に依頼","処理困難物"]
["し","シャッター","シャッター","販売店・製造元に相談。または、ごみ処理（一般廃棄物）業者に依頼","処理困難物"]
["し","三味線","シャミセン","専用ケースに入れても排出可","粗ごみ"]
["し","三味線のケース","シャミセンノケース",null,"粗ごみ"]
["し","しゃもじ（プラスチック製）","シャモジ（プラスチックセイ）",null,"一般ごみ"]
["し","しゃもじ（木製）","シャモジ（モクセイ）",null,"粗ごみ"]
["し","シャベル（プラスチック製）","シャベル（プラスチックセイ）",null,"一般ごみ"]
["し","シャベル（木製・金属製）","シャベル（モクセイ・キンゾクセイ）",null,"粗ごみ"]
["し","ジャングルジム（室内用）プラスチック製","ジャングルジム（シツナイヨウ）プラスチックセイ","＊サイズ判断品目\n＊45㍑袋に収まる場合は、一般ごみへ排出","粗ごみ"]
["し","ジャングルジム（室内用）金属複合製","ジャングルジム（シツナイヨウ）キンゾクフクゴウセイ","＊サイズ判断品目　　　　　　　　　　　　　　　　　　　　　　　　　　　　　　　　　　　＊1㍍を超える場合は組み立て時のサイズ判断","粗ごみ・大型ごみ"]
["し","シャンプーの容器","シャンプーノヨウキ","使い切って軽く水洗いする","ペットボトル・プラスチック製容器包装"]
["し","シャンプーラック（プラスチック製）","シャンプーラック（プラスチックセイ）","＊サイズ判断品目　　　　　　　　　　　　　　　　　　　　　　　　　　　　　　　　　　　＊45㍑袋に収まる場合は、一般ごみへ排出","粗ごみ・大型ごみ"]
["し","ジューサー","ジューサー",null,"粗ごみ"]
["し","ジューサーミキサー","ジューサーミキサー",null,"粗ごみ"]
["し","シューズ（靴）","シューズ（クツ）",null,"一般ごみ"]
["し","ジュースの紙パック","ジュースノカミパック","＊地域の集団回収があれば、そちらに排出\n＊内側がアルミ加工されたものは一般ごみ","分別回収"]
["し","ジュースの缶","ジュースノカン","中身を除き軽くすすぐ","空き缶、びん・ガラス類"]
["し","ジュースの瓶","ジュースノビン","中身を除き軽くすすぐ","空き缶、びん・ガラス類"]
["し","修正テープ","シュウセイテープ",null,"一般ごみ"]
["し","絨毯（じゅうたん）","ジュウタン（ジュウタン）","＊サイズ判断品目","粗ごみ・大型ごみ"]
["し","充電式ドライバー","ジュウデンシキドライバー","バッテリーは取り外して店頭回収へ","粗ごみ"]
["し","柔軟材の容器","ジュウナンザイノヨウキ","中身を除き軽くすすぐ","ペットボトル・プラスチック製容器包装"]
["し","朱肉","シュニク",null,"一般ごみ"]
["し","収納ケース・ボックス・ラック　　　　　　　　（紙製・プラスチック製）","シュウノウケース・ボックス・ラック　　　　　　　　（カミセイ・プラスチックセイ）","＊サイズ判断品目　　　　　　　　　　　　　　　　　　　　　　　　　　　　　　　　　　　＊45㍑袋に収まる場合は、一般ごみへ排出","粗ごみ・大型ごみ"]
["し","収納ケース・ボックス・ラック　　　　　　　　（木製・金属製）","シュウノウケース・ボックス・ラック　　　　　　　　（モクセイ・キンゾクセイ）","サイズ判断品目","粗ごみ・大型ごみ"]
["し","手動噴霧器（金属製）","シュドウフンムキ（キンゾクセイ）","薬品投入部分を水洗いしてから排出","粗ごみ"]
["し","手動噴霧器（プラスチック製）","シュドウフンムキ（プラスチックセイ）","＊サイズ判断品目　　　　　　　　　　　　　　　　　　　　　　　　　　　　　　　　　　＊45㍑袋に収まる場合は、一般ごみへ排出","粗ごみ・大型ごみ"]
["し","ジュニアシート",null,null,"粗ごみ"]
["し","シュレッダー（家庭用）",null,null,"粗ごみ"]
["し","シュレッダー紙",null,"＊地域の集団回収があれば、そちらに排出\n＊リサイクルに向かない紙類をシュレッダーした場合は一般ごみへ排出","紙類"]
["し","ジェルベッド（枠なし）",null,"＊中身を除き45㍑袋に収まる場合は一般ごみへ排出　　　　　　　　　　　　　　　＊サイズ判断品目","粗ごみ・大型ごみ"]
["し","ジェルベッド（枠あり１㍍以上）",null,"中身を除く","大型ごみ"]
["し","ジョイントマット",null,"45ℓ袋に入れば一般ごみ（大量の場合は粗ごみ可）","一般ごみ・粗ごみ"]
["し","消火器","ショウカキ","販売店・取扱店等に相談（リサイクル可）\n消火器のリサイクルについて\n各メーカーにお問い合わせください。\n●HATSUTAエコサイクルセンター　ﾌﾘｰﾀﾞｲﾔﾙ　0120-822-306\n●ヤマトプロテックお客様相談窓口　ﾌﾘｰﾀﾞｲﾔﾙ　0120-801-084\nその他リサイクル窓口検索について\n消火器リサイクル推進センターにお問い合わせください。\n●コールセンター　03-5829-6773","処理困難物"]
["し","消化器（スプレー式）",null,"中身は使い切る","空き缶、びん・ガラス類"]
["し","浄化槽","ジョウカソウ","販売店・取扱店等に相談","処理困難物"]
["し","浄化槽（蓋）",null,"金属製は不可","一般ごみ"]
["し","焼却炉",null,"指定品目（家庭用簡易炉に限る）","大型ごみ300円"]
["し","将棋盤",null,null,"粗ごみ"]
["し","定規（プラスチック製）",null,null,"一般ごみ"]
["し","定規（木製・金属製）",null,null,"粗ごみ"]
["し","障子","ショウジ","業者に依頼した場合は、処理まで依頼","粗ごみ・大型ごみ"]
["し","障子紙","ショウジカミ","リサイクルに向かない紙類のため一般ごみ","一般ごみ"]
["し","浄水器","ジョウスイキ",null,"粗ごみ"]
["し","消毒液の瓶","ショウドクエキノビン","中身を除き軽くすすぐ","空き缶、びん・ガラス類"]
["し","照明器具","ショウメイキグ",null,"粗ごみ・大型ごみ"]
["し","照明器具の一部","ショウメイキグノイチブ",null,"粗ごみ"]
["し","醤油の容器（瓶）","ショウユノヨウキ（ビン）","中身を除き軽くすすぐ","空き缶、びん・ガラス類"]
["し","醤油の容器（ペットボトル）","ショウユノヨウキ（ペットボトル）","中身を除き軽くすすぐ","ペットボトル・プラスチック製容器包装"]
["し","ジョウロ（金属製）　","ジョウロ（キンゾクセイ）　",null,"粗ごみ"]
["し","ジョウロ（プラスチック製）　","ジョウロ（プラスチックセイ）　",null,"一般ごみ"]
["し","食用油","ショクヨウアブラ","紙布にしみ込ませるか固める","一般ごみ"]
["し","食用油の容器（缶）","ショクヨウアブラノヨウキ（カン）",null,"空き缶、びん・ガラス類"]
["し","食用油の容器（プラスチック製）","ショクヨウアブラノヨウキ（プラスチック製）","中身を除き軽くすすぐ","ペットボトル・プラスチック製容器包装"]
["し","食料品の缶","ショクリョウヒンノカン","一斗缶は粗ごみ","空き缶、びん・ガラス類"]
["し","食料品のケース（プラスチック製）","ショクリョウヒンノケース（プラスチックセイ）",null,"一般ごみ"]
["し","食料品の瓶","ショクリョウヒンノビン",null,"空き缶、びん・ガラス類"]
["し","除湿機","ジョシツキ",null,"粗ごみ"]
["し","除湿剤","ジョシツザイ","中身の水は捨てる","ペットボトル・プラスチック製容器包装"]
["し","除湿シート",{"$f":"PHONETIC(B731)","v":"ジョシツシート"},null,"一般ごみ"]
["し","書籍","書籍","＊地域の集団回収があれば、そちらに排出","紙類"]
["し","食器（金属製・陶器製）","ショッキ（キンゾクセイ・トウキセイ）",null,"粗ごみ"]
["し","食器（プラスチック製）","ショッキ（プラスチックセイ）",null,"一般ごみ"]
["し","食器洗い乾燥機","ショッキアライカンソウキ","＊指定品目　　　　　　　　　　　　　　　　　　　　　　　　　　　　　　　　　　　　　　　　＊ビルトインタイプ単品は600円\n（流し台・調理台・ガス台に付いているものは900円）　　　　　　　　　　　　　　　　　　　　　　　　　　　　　　　　　　＊事業に伴うもの・業務用は不可","大型ごみ600円"]
["し","食器乾燥器","ショッキカンソウキ",null,"粗ごみ"]
["し","食器棚","ショッキダナ","サイズ判断品目","粗ごみ・大型ごみ"]
["し","ショックアブソーバー　　　　　　　　　　　　（車・バイク部品）",null,"＊交換時に引き取り依頼／自動車・バイク部品、用品店に相談","市で処理しないもの"]
["し","じょれん",null,null,"粗ごみ"]
["し","シリカゲル（乾燥剤）","シリカゲル（カンソウザイ）",null,"一般ごみ"]
["し","シルバーカー（歩行車含む）　　　　　　　　　（折りたたみ式）",null,null,"粗ごみ"]
["し","人工芝（プラスチック製）","ジンコウシバ（プラスチックセイ）","＊サイズ判断品目\n＊45㍑袋に収まる場合は、一般ごみへ排出","粗ごみ・大型ごみ"]
["し","シンセサイザー","シンセサイザー","サイズ判断品目","粗ごみ・大型ごみ"]
["し","シンナー","シンナー","販売店・製造元に相談","処理困難物"]
["し","新聞","シンブン","＊地域の集団回収があれば、そちらに排出","紙類"]
["し","新聞入れ（プラスチック製）","シンブンイレ（プラスチックセイ）","＊サイズ判断品目　　　　　　　　　　　　　　　　　　　　　　　　　　　　　　　　　　　＊45㍑袋に収まる場合は、一般ごみへ排出","粗ごみ・大型ごみ"]
["す","吸殻","スイガラ",null,"一般ごみ"]
["す","水槽（ガラス製）","スイソウ（ガラスセイ）","＊サイズ判断品目　　　　　　　　　　　　　　　　　　　　　　　　　　　　　　　　　　","粗ごみ・大型ごみ"]
["す","水槽（プラスチック製）","スイソウ（プラスチックセイ）","＊サイズ判断品目\n＊45㍑袋に収まる場合は、一般ごみへ排出","粗ごみ・大型ごみ"]
["す","水槽（ＦＲＰ）","スイソウ（ＦＲＰ）","サイズ判断品目（家庭での使用に限る）","粗ごみ・大型ごみ"]
["す","水槽の照明器具","スイソウノショウメイキグ",null,"粗ごみ"]
["す","水槽用ろ過装置","スイソウヨウロカソウチ",null,"粗ごみ"]
["す","水筒（プラスチック製）","スイトウ（プラスチックセイ）",null,"一般ごみ"]
["す","水筒（金属製）","スイトウ（キンゾクセイ）",null,"粗ごみ"]
["す","水中ポンプ","スイチュウポンプ","池用水中ポンプは不可","粗ごみ"]
["す","炊飯器","スイハンキ",null,"粗ごみ"]
["す","スーツケース","スーツケース","サイズ判断品目","粗ごみ・大型ごみ"]
["す","姿見","スガタミ","サイズ判断品目","粗ごみ・大型ごみ"]
["す","鋤（すき）","スキ（スキ）",null,"粗ごみ"]
["す","スキー板（2枚1組）カーボン製","スキーイタ（2マイ1クミ）カーボンセイ","サイズ判断品目","粗ごみ・大型ごみ"]
["す","スキー用ストック",{"$f":"PHONETIC(B761)","v":"スキーヨウストック"},"1㍍以上でも粗ごみ扱い","粗ごみ"]
["す","スキー靴",{"$f":"PHONETIC(B762)","v":"スキークツ"},null,"粗ごみ"]
["す","スキー用具一式　　　　　　　　　　　　　　（板・ストック）",{"$f":"PHONETIC(B763)","v":"スキーヨウグイッシキ　　　　　　　　　　　　　　（イタ・ストック）"},"＊サイズ判断品目　　　　　　　　　　　　　　　　　　　　　　　　　　　　　　　　　　　　＊専用袋入れた場合のみ、1点扱い","粗ごみ・大型ごみ"]
["す","すき焼き鍋（金属製・陶器製）","スキヤキナベ（キンゾクセイ・トウキセイ）",null,"粗ごみ"]
["す","スキャナー（パソコン周辺機器）","スキャナー（パソコンシュウヘンキキ）","事業に伴うもの・業務用は不可","粗ごみ"]
["す","スクリーン","スクリーン","サイズ判断品目","粗ごみ・大型ごみ"]
["す","スケート靴","スケートクツ",null,"粗ごみ"]
["す","スケートボード","スケートボード","サイズ判断品目","粗ごみ・大型ごみ"]
["す","スコップ（プラスチック製）","スコップ（プラスチックセイ）",null,"一般ごみ"]
["す","スコップ（木製・金属製）","スコップ（モクセイ・キンゾクセイ）",null,"粗ごみ"]
["す","硯（すずり）","スズリ（スズリ）",null,"粗ごみ"]
["す","すだれ（プラスチック製）","スダレ（プラスチックセイ）","＊サイズ判断品目\n＊45㍑袋に収まる場合は、一般ごみへ排出","粗ごみ・大型ごみ"]
["す","すだれ（よし製・竹製）","スダレ（ヨシセイ・タケセイ）","＊サイズ判断品目\n＊45㍑袋に収まる場合は、一般ごみへ排出","粗ごみ・大型ごみ"]
["す","スタンド（バイク部品）","スタンド（バイクブヒン）","＊交換時に引き取り依頼／自動車・バイク部品、用品店に相談","市で処理しないもの"]
["す","スタンドクリーナー",{"$f":"PHONETIC(B775)","v":"スタンドクリーナー"},null,"粗ごみ"]
["す","スタンプ台（プラスチック製）","スタンプダイ（プラスチックセイ）",null,"一般ごみ"]
["す","スタンプ台（金属製）","スタンプダイ（キンゾクセイ）",null,"粗ごみ"]
["す","スチーム式モップ（スチームクリーナー）","スチームシキモップ（スチームクリーナー）",null,"粗ごみ"]
["す","スチール缶（飲食用）","スチールカン（インショクヨウ）","中身を除き軽くすすぐ","空き缶、びん・ガラス類"]
["す","スチール棚","スチールダナ","サイズ判断品目","粗ごみ・大型ごみ"]
["す","スチール机","スチールツクエ","サイズ判断品目","粗ごみ・大型ごみ"]
["す","ストップウオッチ","ストップウオッチ",null,"粗ごみ"]
["す","ステーキ用の鉄板皿（家庭用）","ステーキヨウノテッパンザラ（カテイヨウ）",null,"粗ごみ"]
["す","ステッキ（杖）（プラスチック製）",{"$f":"PHONETIC(B784)","v":"ステッキ（ツエ）（プラスチックセイ）"},"＊45㍑袋に収まる場合は、一般ごみへ排出","粗ごみ"]
["す","ステッキ（金属・木製）","ステッキ（キンゾク・モクセイ）",null,"粗ごみ"]
["す","ステッパー（健康器具）",{"$f":"PHONETIC(B786)","v":"ステッパー（ケンコウキグ）"},"サイズ判断品目","粗ごみ・大型ごみ"]
["す","ステップ（バイク部品）","ステップ（バイクブヒン）","＊交換時に引き取り依頼／自動車・バイク部品、用品店に相談","市で処理しないもの"]
["す","ステレオ（レコードプレーヤー、アンプ、\nチューナー、カセットテープ・ＣＤデッキなど）","ステレオ（レコードプレーヤー、アンプ、\nチューナー、カセットテープ・ＣＤデッキナド）","＊各サイズ判断品目\n＊セット扱い不可","粗ごみ・大型ごみ"]
["す","ステレオ（ミニコンポ）","ステレオ（ミニコンポ）","サイズ判断品目","粗ごみ・大型ごみ"]
["す","ステレオ（スピーカー）","ステレオ（スピーカー）","サイズ判断品目","粗ごみ・大型ごみ"]
["す","ストーブ（電気・ガス・灯油）","ストーブ（デンキ・ガス・トウユ）","＊電池、灯油は必ず抜く\n＊鋳物製は不可","粗ごみ"]
["す","ストーブガード","ストーブガード",null,"粗ごみ"]
["す","ストック（スキー用）","ストック（スキーヨウ）","＊2本1組扱い","粗ごみ"]
["す","砂","スナ","＊ごみ処理（一般廃棄物）業者に依頼　　　　　　　　　　　　　　　　　　　　　　　＊ペット用トイレ（製品に限る）の砂は一般ごみへ","処理困難物"]
["す","スニーカー","スニーカー",null,"一般ごみ"]
["す","スノーボード（板）","スノーボード（イタ）","サイズ判断品目","粗ごみ・大型ごみ"]
["す","スノーボード（靴）","スノーボード（クツ）",null,"粗ごみ"]
["す","すのこ（プラスチック製）","スノコ（プラスチックセイ）","＊サイズ判断品目\n＊45㍑袋に収まる場合は、一般ごみへ排出","粗ごみ・大型ごみ"]
["す","すのこ（木製）","スノコ（モクセイ）","サイズ判断品目","粗ごみ・大型ごみ"]
["す","スピーカー（家庭用・車用）",{"$f":"PHONETIC(B800)","v":"スピーカー（カテイヨウ・クルマヨウ）"},"サイズ判断品目","粗ごみ・大型ごみ"]
["す","スピード・タコメーター類（バイク・車部品）","スピード・タコメータールイ（バイク・クルマブヒン）","＊交換時に引き取り依頼／自動車・バイク部品、用品店に相談","市で処理しないもの"]
["す","スピードライト（ストロボ）（カメラ用）","スピードライト（ストロボ）（カメラヨウ）",null,"粗ごみ"]
["す","スプーン（プラスチック製）",{"$f":"PHONETIC(B803)","v":"スプーン（プラスチックセイ）"},null,"一般ごみ"]
["す","スプーン（木製・金属製）","スプーン（モクセイ・キンゾクセイ）",null,"粗ごみ"]
["す","スプリングマット（寝具用）","スプリングマット（シングヨウ）","＊指定品目\n＊ボンネルコイル式・ポケットコイル式も同様","大型ごみ1800円"]
["す","スプリングマット（ベッド用）","スプリングマット（ベッドヨウ）","＊指定品目\n＊幅70×長さ195×高さ16以上のものは１点扱い。未満のものは同時排出に限りセット扱い。\n＊ボンネルコイル式・ポケットコイル式も同様","大型ごみ1800円"]
["す","スプリングマット（足・底板付き）一体式　　　　　　　　　　　　　　","スプリングマット（アシ・ソコイタツキ）イッタイシキ　　　　　　　　　　　　　　","＊指定品目\n＊分割式はセット扱い可（別々に排出する場合はサイズ判断）　　　　　　　　　　　　　　　　　　　　　　　　　　　　　　　　　　　　　＊ボンネルコイル式・ポケットコイル式も同様","大型ごみ1800円"]
["す","スプレー缶\n（ガスボンベ・ペンキ・機械油含む）","スプレーカン\n（ガスボンベ・ペンキ・キカイアブラフクム）","中身は使い切る","空き缶、びん・ガラス類"]
["す","スプレー缶（オイル）",null,"中身は使い切る","粗ごみ"]
["す","すべり台（玩具プラスチック製）",null,"サイズ判断品目","粗ごみ・大型ごみ"]
["す","スポイラー（車部品・用品）",null,"＊交換時に引き取り依頼／自動車・バイク部品、用品店に相談　　　　　　　　＊バンパーと同等扱い","市で処理しないもの"]
["す","スポーツバック","スポーツバック","45㍑袋に収まる場合は、一般ごみへ排出","粗ごみ"]
["す","スポンジ","スポンジ",null,"一般ごみ"]
["す","スポンジマットレス・ウレタンマット",null,"サイズ判断品目","粗ごみ・大型ごみ"]
["す","炭（木炭・竹炭・豆炭・練炭等）",null,"水に湿らせて少量ずつ一般ごみへ","一般ごみ"]
["す","スリッパ","スリッパ",null,"一般ごみ"]
["す","スリッパ立て（プラスチック製）",{"$f":"PHONETIC(B817)","v":"スリッパダテ（プラスチックセイ）"},"＊サイズ判断品目　　　　　　　　　　　　　　　　　　　　　　　　　　　　　　　　　　　＊45㍑袋に収まる場合は、一般ごみへ排出","粗ごみ・大型ごみ"]
["す","スリッパ立て（木製・竹製・籐製・金属製）","スリッパダテ（モクセイ・タケセイ・トウセイ・キンゾクセイ）","サイズ判断品目","粗ごみ・大型ごみ"]
["す","習字の墨","シュウジノスミ",null,"一般ごみ"]
["す","スレートの波板","スレートノナミイタ","ごみ処理（一般廃棄物）業者に依頼","処理困難物"]
["す","スロットマシーン","スロットマシーン","＊指定品目　　　　　　　　　　　　　　　　　　　　　　　　　　　　　　　　　　　　　　　　＊家庭で使用していたものに限る","大型ごみ900円"]
["す","スロットマシーンのコイン",null,"少量なら可","粗ごみ"]
["せ","製図版（ドラフター）","セイズバン（ドラフター）","＊サイズ判断品目　　　　　　　　　　　　　　　　　　　　　　　　　　　　　　　　　　＊事業に伴うもの・業務用は不可","粗ごみ・大型ごみ"]
["せ","製図版の板","セイズバンノイタ","＊サイズ判断品目　　　　　　　　　　　　　　　　　　　　　　　　　　　　　　　　　　＊事業に伴うもの・業務用は不可","粗ごみ・大型ごみ"]
["せ","精米機（家庭用）","セイマイキ（カテイヨウ）","サイズ判断品目（ポータブル式以外はモーターを取り外すこと）","粗ごみ・大型ごみ"]
["せ","蒸篭（せいろ）　（木製・金属製）","セイロ（セイロ）　（モクセイ・キンゾクセイ）",null,"粗ごみ"]
["せ","石灰（せっかい）　　（粉末）","セッカイ（セッカイ）　　（フンマツ）","飛散しないように少量ずつ排出","一般ごみ"]
["せ","石油ポンプ","セキユポンプ",null,"一般ごみ"]
["せ","石油ポンプ（電池式）","セキユポンプ（デンチシキ）",null,"粗ごみ"]
["せ","石鹸","セッケン",null,"一般ごみ"]
["せ","石鹸の箱","石鹸ノ箱","リサイクルに向かない紙類のため一般ごみ","一般ごみ"]
["せ","石膏の置物","セッコウノオキモノ","1㍍未満に限る","粗ごみ"]
["せ","石膏ボード","セッコウボード","＊長さ1㍍以上、厚さ5㌢以上、幅30㌢以上のものは処理不可　　　　　　　　　＊粗ごみサイズのみ可","粗ごみ"]
["せ","接着剤（プラスチック製チューブ・容器）","セッチャクザイ（プラスチックセイチューブ・ヨウキ）","中身は除く","ペットボトル・プラスチック製容器包装"]
["せ","接着剤（金属製チューブ）","セッチャクザイ（キンゾクセイチューブ）",null,"粗ごみ"]
["せ","接着剤（金属製の缶）","セッチャクザイ（キンゾクセイノカン）","＊中身は除く\n＊中身は固まった状態の場合は粗ごみへ排出","空き缶、びん・ガラス類"]
["せ","背広ケース","セビロケース",null,"一般ごみ"]
["せ","セメント","セメント","ごみ処理（一般廃棄物）業者に依頼","処理困難物"]
["せ","セラミックのろ過材","セラミックノロカザイ","水槽などのろ過材に使用するもの（少量程度）","粗ごみ"]
["せ","セロハン","セロハン",null,"一般ごみ"]
["せ","セロハンテープ","セロハンテープ",null,"一般ごみ"]
["せ","線香","センコウ",null,"一般ごみ"]
["せ","洗剤の箱","洗剤ノ箱","リサイクルに向かない紙類のため一般ごみ","一般ごみ"]
["せ","洗浄機能・ヒーター付便座","センジョウキノウ・ヒーターツキベンザ","＊衛生・感染症予防の為、45㍑以下の袋に入れて排出\n＊業者に依頼した場合は、処理まで依頼","粗ごみ"]
["せ","扇子（プラスチック製）","センス（プラスチックセイ）",null,"一般ごみ"]
["せ","扇子（木製）","センス（モクセイ）",null,"粗ごみ"]
["せ","洗濯板（プラスチック製）","センタクイタ（プラスチックセイ）",null,"一般ごみ"]
["せ","洗濯板（木製）","センタクイタ（モクセイ）",null,"粗ごみ"]
["せ","洗濯機","センタクキ","【家電リサイクル法対象品目】家電小売店に依頼または財団法人　　　　家電製品協会（家電リサイクル券センター：0120-319640）に問い合わせ","家電リサイクル品目"]
["せ","洗濯機（バケツ型）","センタクキ（バケツガタ）",null,"粗ごみ"]
["せ","洗濯機ラック",null,"＊サイズ判断品目","粗ごみ・大型ごみ"]
["せ","洗濯バサミ（プラスチック製）","センタクバサミ（プラスチックセイ）",null,"一般ごみ"]
["せ","洗濯バサミ（金属製）","センタクバサミ（キンゾクセイ）",null,"粗ごみ"]
["せ","洗濯物干し（プラスチック製）",{"$f":"PHONETIC(B854)","v":"センタクモノホシ（プラスチックセイ）"},"＊サイズ判断品目　　　　　　　　　　　　　　　　　　　　　　　　　　　　　　　　　　　＊45㍑袋に収まる場合は、一般ごみへ排出","粗ごみ・大型ごみ"]
["せ","洗濯物干し（金属製）","センタクモノホシ（キンゾクセイ）","サイズ判断品目","粗ごみ・大型ごみ"]
["せ","剪定枝","センテイエダ","＊長さ１㍍未満、直径10㌢未満のものに限る\n＊臨時・持ち込みごみについては1回の申し込みにつき100袋まで","粗ごみ"]
["せ","剪定枝破砕機・ガーデンシュレッダー","センテイエハサイキ・ガーデンシュレッダー","販売店に相談","処理困難物"]
["せ","剪定バサミ","センテイバサミ","サイズ判断品目","粗ごみ・大型ごみ"]
["せ","セントラルクリーナー","セントラルクリーナー","業者に依頼した場合は、処理まで依頼","粗ごみ"]
["せ","栓抜き","センヌキ",null,"粗ごみ"]
["せ","扇風機","センプウキ","サイズ判断品目","粗ごみ・大型ごみ"]
["せ","洗面器（プラスチック製）",{"$f":"PHONETIC(B862)","v":"センメンキ（プラスチックセイ）"},null,"一般ごみ"]
["せ","洗面器（金属製・木製）","センメンキ（キンゾクセイ・モクセイ）",null,"粗ごみ"]
["せ","洗面台","センメンダイ","＊指定品目\n＊業者に依頼した場合は、処理まで依頼","大型ごみ600円"]
["せ","洗面ボウル",null,"ボウル単体で使用するものに限る","粗ごみ"]
["そ","造花","ゾウカ","針金を使用しているものは粗ごみ","一般ごみ"]
["そ","双眼鏡","ソウガンキョウ",null,"粗ごみ"]
["そ","掃除機","ソウジキ","＊サイズ判断品目\n＊事業に伴うもの・業務用は不可","粗ごみ・大型ごみ"]
["そ","掃除機のごみパック","ソウジキノゴミパック",null,"一般ごみ"]
["そ","掃除機のホース","ソウジキノホース","＊金属の部分がなく45㍑袋に収まる場合は、一般ごみへ排出","粗ごみ"]
["そ","掃除用ワイパー","ソウジヨウワイパー",null,"粗ごみ"]
["そ","ソーラー給湯器","ソーラーキュウトウキ","販売店・製造元に相談。または、ごみ処理（一般廃棄物）業者に依頼","処理困難物"]
["そ","足温器",{"$f":"PHONETIC(B873)","v":"ソクオンキ"},null,"粗ごみ"]
["そ","測量機","ソクリョウキ","家庭で使われていたものに限る","粗ごみ"]
["そ","ソファー(ソファーベッド含む）","ソファー(ソファーベッドフクム）","サイズ判断品目","粗ごみ・大型ごみ"]
["そ","ソリ（乗り物）（プラスチック製）","ソリ（ノリモノ）（プラスチックセイ）","＊サイズ判断品目　　　　　　　　　　　　　　　　　　　　　　　　　　　　　　　　　　　＊45㍑袋に収まる場合は、一般ごみへ排出","粗ごみ・大型ごみ"]
["そ","ソリ（乗り物）（木製・金属製）","ソリ（ノリモノ）（モクセイ・キンゾクセイ）","サイズ判断品目","粗ごみ・大型ごみ"]
["そ","そろばん","ソロバン",null,"粗ごみ"]
["た","タープテント",{"$f":"PHONETIC(B879)","v":"タープテント"},"＊サイズ判断品目　　　　　　　　　　　　　　　　　　　　　　　　　　　　　　　　　　　　　＊1㍍以上のものが複数ある場合は排出時（ひとまとめにする）サイズの金額","粗ごみ・大型ごみ"]
["た","タープテント（支柱部分）",{"$f":"PHONETIC(B880)","v":"タープテント（シチュウブブン）"},"＊サイズ判断品目　　　　　　　　　　　　　　　　　　　　　　　　　　　　　　　　　　　　　＊1㍍以上のものが複数ある場合は排出時（ひとまとにすめる）サイズの金額","粗ごみ・大型ごみ"]
["た","タープテント（幌部分）",{"$f":"PHONETIC(B881)","v":"タープテント（ホロブブン）"},"＊サイズ判断品目\n＊45㍑袋に収まる場合は、一般ごみへ排出可","粗ごみ・大型ごみ"]
["た","ダイエットチェア",null,"サイズ判断品目","粗ごみ・大型ごみ"]
["た","体温計","タイオンケイ","◎水銀使用廃製品の窓口回収（穂谷川清掃工場・東部清掃工場）又は、出張回収をご利用ください。（出張回収日程は広報等で確認してください）\n※事業に伴うものは不可","粗ごみ"]
["た","太鼓","タイコ","＊サイズ判断品目　　　　　　　　　　　　　　　　　　　　　　　　　　　　　　　　　　　＊一部処理困難物あり","粗ごみ・大型ごみ"]
["た","体脂肪計","タイシボウケイ",null,"粗ごみ"]
["た","台車","ダイシャ","サイズ判断品目","粗ごみ・大型ごみ"]
["た","体重計・ヘルスメーター（家庭用）","タイジュウケイ・ヘルスメーター（カテイヨウ）",null,"粗ごみ"]
["た","大正琴","タイショウゴト","専用ケースに入れても排出しても1点扱い","粗ごみ"]
["た","大正琴の台","タイショウゴトノダイ",null,"粗ごみ"]
["た","台所用マット",{"$f":"PHONETIC(B890)","v":"ダイドコロヨウマット"},null,"一般ごみ"]
["た","タイプライター","タイプライター","和文タイプライターは活字版セット扱い","粗ごみ"]
["た","タイヤ（自転車用）","タイヤ（ジテンシャヨウ）","リム付きは粗ごみ","一般ごみ"]
["た","タイヤ（バイク・車用）","タイヤ（バイク・クルマヨウ）","＊交換時に引き取り依頼／自動車・バイク部品、用品店に相談","市で処理しないもの"]
["た","タイヤカバー（車の予備タイヤ用）\nビニール・皮製","タイヤカバー（クルマノヨビタイヤヨウ）\nビニール・カワセイ",null,"一般ごみ"]
["た","タイヤカバー（車の予備タイヤ用）\nハードケース",null,null,"粗ごみ"]
["た","タイヤチューブ（自転車用）","タイヤチューブ（ジテンシャヨウ）",null,"一般ごみ"]
["た","タイヤチェーン（ゴム製）　　　　　　　　　　（車・バイク用品）","タイヤチェーン（ゴムセイ）　　　　　　　　　　（クルマ・バイクヨウヒン）",null,"粗ごみ"]
["た","タイヤチェーン（金属製）　　　　　　　　　　（車・バイク用品）",null,"販売店・製造元に相談。または、ごみ処理（一般廃棄物）業者に依頼","処理困難物"]
["た","太陽熱温水器","タイヨウネツオンスイキ","販売店・取扱店等に相談","処理困難物"]
["た","タイル",null,"＊工事を業者に依頼した時は、処理まで依頼\n＊タイルにセメント（目地）が付着したものは受付不可","粗ごみ"]
["た","タイル（ジョイント式マットタイル）",null,"＊工事を業者に依頼した時は、処理まで依頼　\n＊袋、ひもくくり、ダンボールで排出の場合は、１０kg未満で排出　　　　　　　　　　　　　　","粗ごみ"]
["た","タイルカーペット",null,"＊カーペットのため、粗ごみ\n＊ジョイントマットは45ℓ以下の袋で一般ごみ","粗ごみ"]
["た","ダイレクトメール",null,"＊地域の集団回収があれば、そちらに排出\n＊プラスチックで加工されている場合は一般ごみへ排出","紙類"]
["た","タオル",{"$f":"PHONETIC(B904)","v":"タオル"},null,"一般ごみ"]
["た","タオル掛け（タオルハンガー）\n（プラスチック製）　",{"$f":"PHONETIC(B905)","v":"タオルガケ（タオルハンガー）\n（プラスチックセイ）　"},"＊サイズ判断品目\n＊45㍑袋に収まる場合は、一般ごみへ排出","粗ごみ・大型ごみ"]
["た","タオル掛け（タオルハンガー）\n（木製・金属製）",{"$f":"PHONETIC(B906)","v":"タオルガケ（タオルハンガー）\n（モクセイ・キンゾクセイ）"},"サイズ判断品目","粗ごみ・大型ごみ"]
["た","タオルケット","タオルケット",null,"一般ごみ"]
["た","高枝バサミ（金属複合製）","タカエダバサミ（キンゾクフクゴウセイ）","＊アタッチメントを本体に装着しての排出はセット扱い","粗ごみ"]
["た","抱き枕","ダキマクラ","サイズ判断品目","粗ごみ・大型ごみ"]
["た","竹",{"$f":"PHONETIC(B910)","v":"タケ"},"1㍍未満に限る","粗ごみ"]
["た","竹馬（竹製・金属製）",{"$f":"PHONETIC(B911)","v":"タケウマ（タケセイ・キンゾクセイ）"},"サイズ判断品目","粗ごみ・大型ごみ"]
["た","竹箒（たけぼうき）",{"$f":"PHONETIC(B912)","v":"タケホウキ（タケボウキ）"},null,"粗ごみ"]
["た","たこ足（物干し用）　　　　　　　　　　　　　　（プラスチック製）",{"$f":"PHONETIC(B913)","v":"タコアシ（モノホシヨウ）　　　　　　　　　　　　　　（プラスチックセイ）"},"＊サイズ判断品目\n＊45㍑袋に収まる場合は、一般ごみへ排出","粗ごみ・大型ごみ"]
["た","たこ足（物干し用）　　　　　　　　　　　　　　（金属製）",null,"サイズ判断品目","粗ごみ・大型ごみ"]
["た","たこ焼き器（家庭用）",{"$f":"PHONETIC(B915)","v":"タコヤキキ（カテイヨウ）"},null,"粗ごみ"]
["た","畳（たたみ）",{"$f":"PHONETIC(B916)","v":"タタミ（タタミ）"},"＊サイズ判断品目\n＊臨時・持ち込みごみについては1回の申し込みにつき10枚まで","粗ごみ・大型ごみ"]
["た","裁ち台（たちだい）",{"$f":"PHONETIC(B917)","v":"タチダイ（タチダイ）"},"サイズ判断品目","粗ごみ・大型ごみ"]
["た","脱衣かご（プラスチック製）",{"$f":"PHONETIC(B918)","v":"ダツイカゴ（プラスチックセイ）"},"45㍑袋に収まる場合は、一般ごみへ排出","粗ごみ"]
["た","脱衣かご（竹製・籐製）",{"$f":"PHONETIC(B919)","v":"ダツイカゴ（タケセイ・トウセイ）"},null,"粗ごみ"]
["た","卓球台","タッキュウダイ","サイズ判断品目","粗ごみ・大型ごみ"]
["た","建具","タテグ","＊サイズ判断品目（鉄製・鋳物製は不可）\n＊業者に工事を依頼した場合は、処理まで依頼\n＊臨時・持ち込みごみについては１回の申し込みにつき10枚まで","粗ごみ・大型ごみ"]
["た","たてす（サンシェード・日よけ）","タテス（サンシェード・ヒヨケ）","＊サイズ判断品目　　　　　　　　　　　　　　　　　　　　　　　　　　　　　　　　　　　　　＊1㍍以上のものが複数ある場合は排出時（ひとまとめにする）サイズの金額","粗ごみ・大型ごみ"]
["た","棚（プラスチック製）","タナ（プラスチックセイ）","＊サイズ判断品目\n＊45㍑袋に収まる場合は、一般ごみへ排出","粗ごみ・大型ごみ"]
["た","棚（木製・金属製）","タナ（モクセイ・キンゾクセイ）","サイズ判断品目","粗ごみ・大型ごみ"]
["た","棚板または棚板の一部\n（プラスチック製）","タナイタマタハタナイタノイチブ\n（プラスチックセイ）","＊サイズ判断品目\n＊1㍍以上のものが複数ある場合は組み立て時のサイズの金額　　　　　　　　　　　　　　　　　　　　　　　　　　　　　　　　　　　　　　　＊45㍑袋に収まる場合は、一般ごみへ排出","粗ごみ・大型ごみ"]
["た","棚板または棚板の一部\n（木製・金属製）","タナイタマタハタナイタノイチブ\n（モクセイ・キンゾクセイ）","＊サイズ判断品目\n＊1㍍以上のものが複数ある場合は組み立て時（元）のサイズの金額","粗ごみ・大型ごみ"]
["た","たばこの吸い殻","タバコノ吸イ殻",null,"一般ごみ"]
["た","たばこの箱","タバコノ箱","＊地域の集団回収があれば、そちらに排出\n＊内側の銀紙はリサイクルに向かない紙のため、一般ごみへ排出","紙類"]
["た","足袋","タビ",null,"一般ごみ"]
["た","卵のケース（紙製）","タマゴノケース（カミセイ）","リサイクルに向かない紙類のため一般ごみ","一般ごみ"]
["た","卵のケース（プラスチック製）",null,null,"ペットボトル・プラスチック製容器包装"]
["た","タモ（魚釣り用の網）",null,null,"粗ごみ"]
["た","たらい（プラスチック製）",{"$f":"PHONETIC(B933)","v":"タライ（プラスチックセイ）"},"45㍑袋に収まる場合は、一般ごみへ排出","粗ごみ"]
["た","たらい（木製・金属製）","タライ（モクセイ・キンゾクセイ）",null,"粗ごみ"]
["た","樽（酒樽）","タル（サカダル）","直径55ｃｍ以下　高さ60ｃｍ以下に限る","粗ごみ"]
["た","たわし","タワシ",null,"粗ごみ"]
["た","炭酸ガスカートリッジ・ガスシリンダー\n（飲料用）","炭酸ガスカートリッジ・ガスシリンダー\n（飲料用）","＊メーカー回収がなければ中身を使い切って排出","粗ごみ"]
["た","タンス","タンス","サイズ判断品目","粗ごみ・大型ごみ"]
["た","タンスの引出しまたは一部","タンスノヒキダシマタハイチブ","＊サイズ判断品目\n＊1㍍以上のものが複数ある場合は使用時（元）サイズの金額","粗ごみ・大型ごみ"]
["た","断熱材",{"$f":"PHONETIC(B940)","v":"ダンネツザイ"},"建築廃材は工事の施工業者に引き取り依頼","市で処理しないもの"]
["た","断熱材（ガラス繊維）","ダンネツザイ（ガラスセンイ）","建築廃材は工事の施工業者に引き取り依頼","処理困難物"]
["た","ダンベル（金属製）","ダンベル（キンゾクセイ）","販売店・製造元に相談。または、ごみ処理（一般廃棄物）業者に依頼","処理困難物"]
["た","ダンベル（プラスチック製）","ダンベル（プラスチックセイ）","中身を除く","一般ごみ"]
["た","ダンボール","ダンボール","＊地域の集団回収があれば、そちらに排出","紙類"]
["ち","チェーン（機械用）","チェーン（キカイヨウ）","販売店・製造元に相談。または、ごみ処理（一般廃棄物）業者に依頼","処理困難物"]
["ち","チェーン（装飾品）（プラスチック製）","チェーン（ソウショクヒン）（プラスチックセイ）",null,"一般ごみ"]
["ち","チェーン（装飾品）（金属製）",null,null,"粗ごみ"]
["ち","チェーン（車のタイヤ用）（ゴム製）",null,null,"粗ごみ"]
["ち","チェーン（車のタイヤ用）（金属製）",null,"販売店・製造元に相談。または、ごみ処理（一般廃棄物）業者に依頼","処理困難物"]
["ち","チェーンソー","チェーンソー",null,"粗ごみ"]
["ち","チェーンソー（エンジン式）",null,"販売店・製造元に相談。または、ごみ処理（一般廃棄物）業者に依頼","処理困難物"]
["ち","チェスト","チェスト","サイズ判断品目","粗ごみ・大型ごみ"]
["ち","地球儀","チキュウギ","＊45㍑袋に収まる場合は、一般ごみへ排出（プラスチック製のみ）　　　　　　　　　　＊金属が含まれるものは粗ごみへ排出","粗ごみ"]
["ち","蓄音機","チクオンキ","サイズ判断品目","粗ごみ・大型ごみ"]
["ち","地図(紙製)",null,"＊地域の集団回収があれば、そちらに排出\n＊プラスチックで加工されている場合は一般ごみへ排出","紙類"]
["ち","チャイルドシート","チャイルドシート","サイズ判断品目","粗ごみ・大型ごみ"]
["ち","茶釜","チャガマ",null,"粗ごみ"]
["ち","茶箪笥（ちゃだんす）","チャダンス（チャダンス）","サイズ判断品目","粗ごみ・大型ごみ"]
["ち","着火器具（チャッカマンなど）","チャッカキグ（チャッカマンナド）",null,"粗ごみ"]
["ち","着火剤","チャッカザイ",null,"一般ごみ"]
["ち","茶筒（プラスチック製）","チャツツ（プラスチックセイ）",null,"一般ごみ"]
["ち","茶筒（木製・金属製・陶器製）","チャツツ（モクセイ・キンゾクセイ・トウキセイ）",null,"粗ごみ"]
["ち","茶碗（プラスチック製）",{"$f":"PHONETIC(B963)","v":"チャワン（プラスチックセイ）"},null,"一般ごみ"]
["ち","茶碗（陶器製・金属製）","チャワン（トウキセイ・キンゾクセイ）",null,"粗ごみ"]
["ち","中華鍋","チュウカナベ",null,"粗ごみ"]
["ち","チューナー（TV・オーディオなど）","チューナー（TV・オーディオナド）",null,"粗ごみ"]
["ち","チューバ（楽器）","チューバ（ガッキ）","専用ケースに入れても排出しても１点扱い","大型ごみ"]
["ち","チューブ（プラスチック製）","チューブ（プラスチックセイ）","中身を除く","ペットボトル・プラスチック製容器包装"]
["ち","チューブ（金属製）",{"$f":"PHONETIC(B969)","v":"チューブ（キンゾクセイ）"},"中身を除く","粗ごみ"]
["ち","調味料入れ（プラスチック製）","チョウミリョウイレ（プラスチックセイ）",null,"一般ごみ"]
["ち","調味料入れ（ガラス製）","チョウミリョウイレ（ガラスセイ）",null,"空き缶、びん・ガラス類"]
["ち","調味料入れ（（陶器製・金属製）","チョウミリョウイレ（（トウキセイ・キンゾクセイ）",null,"粗ごみ"]
["ち","調理台","チョウリダイ","＊指定品目\n＊業者に依頼した場合は、処理まで依頼","大型ごみ600円"]
["ち","調理台\n（レンジ・オーブン・食器洗い乾燥機付き）","チョウリダイ\n（レンジ・オーブン・ショッキアライカンソウキツキ）","＊指定品目\n＊レンジ・オーブン・食器洗い乾燥機の部分のみについては、   各指定品目と同じ扱いとする。\n＊上記２項目ともに業者に依頼した場合は、処理まで依頼","大型ごみ900円"]
["ち","チョーク","チョーク",null,"一般ごみ"]
["ち","貯金箱（紙製・プラスチック製）","チョキンバコ（カミセイ・プラスチックセイ）","リサイクルに向かない紙類のため一般ごみ","一般ごみ"]
["ち","貯金箱（木製・金属製・陶器製）","チョキンバコ（モクセイ・キンゾクセイ・トウキセイ）",null,"粗ごみ"]
["ち","チラシ","チラシ","＊地域の集団回収があれば、そちらに排出\n＊防水加工が施されている場合は一般ごみへ排出\n＊プラスチックで加工されている場合は一般ごみへ排出　　　　　　　　　　　　　　","分別回収"]
["ち","ちりとり（プラスチック製）","チリトリ（プラスチックセイ）","45㍑袋に収まる場合は、一般ごみへ排出","粗ごみ"]
["ち","ちりとり（木製・金属製）","チリトリ（モクセイ・キンゾクセイ）",null,"粗ごみ"]
["つ","衝立（ついたて）（プラスチック製）","ツイタテ（ツイタテ）（プラスチックセイ）","＊サイズ判断品目\n＊45㍑袋に収まる場合は、一般ごみへ排出","粗ごみ・大型ごみ"]
["つ","衝立（ついたて）（木製・籐製・金属製）","ツイタテ（ツイタテ）（モクセイ・トウセイ・キンゾクセイ）","サイズ判断品目","粗ごみ・大型ごみ"]
["つ","杖","ツエ",null,"粗ごみ"]
["つ","使い捨てカイロ","ツカイステカイロ",null,"一般ごみ"]
["つ","使い捨てカメラ","ツカイステカメラ",null,"粗ごみ"]
["つ","使い捨てライター","ツカイステライター","中身は使い切る（一日ほど水に浸す）","一般ごみ"]
["つ","机","ツクエ","＊サイズ判断品目\n＊上下を取り外した状態での同時排出については粗ごみ扱いは不可","粗ごみ・大型ごみ"]
["つ","机敷き（ビニール製）","ツクエシキ（ビニールセイ）","＊45㍑袋に収まる場合は、一般ごみへ排出","粗ごみ"]
["つ","机敷き（ガラス製）","ツクエシキ（ガラスセイ）","1㍍以上のものは家庭ごみ業務第1課へ相談","空き缶・びん・ガラス類"]
["つ","漬物桶（プラスチック）","ツケモノオケ（プラスチック）","＊サイズ判断品目\n＊45㍑袋に収まる場合は、一般ごみへ排出","粗ごみ・大型ごみ"]
["つ","漬物桶（木製）",null,"サイズ判断品目","粗ごみ・大型ごみ"]
["つ","漬物石",null,"販売店・製造元に相談。または、ごみ処理（一般廃棄物）業者に依頼　　　　　　　　　　　　　　　　　　　　　　　　　　　　　　　　　　　　（樹脂製の内側にコンクリートを使用しているため）","処理困難物"]
["つ","ツタ",null,"樹木（剪定枝）扱い","粗ごみ"]
["つ","土",{"$f":"PHONETIC(B994)","v":"ツチ"},"ごみ処理（一般廃棄物）業者に依頼","処理困難物"]
["つ","突っ張り棒（プラスチック製）",{"$f":"PHONETIC(B995)","v":"ツッパリボウ（プラスチックセイ）"},"＊45㍑袋に収まる場合は、一般ごみへ排出","粗ごみ"]
["つ","突っ張り棒（金属製）",{"$f":"PHONETIC(B996)","v":"ツッパリボウ（キンゾクセイ）"},null,"粗ごみ"]
["つ","壺（ガラス製）",null,null,"空き缶・びん・ガラス類"]
["つ","壺（陶器製・金属製）",null,"サイズ判断品目","粗ごみ・大型ごみ"]
["つ","積み木（プラスチック製）",null,null,"一般ごみ"]
["つ","積み木（木製）",null,null,"粗ごみ"]
["つ","爪切り",{"$f":"PHONETIC(B1001)","v":"ツメキリ"},null,"粗ごみ"]
["つ","釣り網（たも網）",null,null,"粗ごみ"]
["つ","釣竿",{"$f":"PHONETIC(B1003)","v":"ツリザオ"},"専用ケースにいれても排出可","粗ごみ"]
["つ","釣竿ケース",{"$f":"PHONETIC(B1004)","v":"ツリザオケース"},"専用ケースに釣り竿を入れても排出可","粗ごみ"]
["つ","釣り針",null,"危険のないようにする","粗ごみ"]
["つ","吊り棚（プラスチック製）",{"$f":"PHONETIC(B1006)","v":"ツリダナ（プラスチックセイ）"},"＊サイズ判断品目　　　　　　　　　　　　　　　　　　　　　　　　　　　　　　　　　　　＊45㍑袋に収まる場合は、一般ごみへ排出","粗ごみ・大型ごみ"]
["つ","吊り棚（木製・金属製）",{"$f":"PHONETIC(B1007)","v":"ツリダナ（モクセイ・キンゾクセイ）"},"サイズ判断品目","粗ごみ・大型ごみ"]
["つ","ツル",{"$f":"PHONETIC(B1008)","v":"ツル"},"45㍑袋に収まる場合は、一般ごみへ排出（ツルの種類により異なる）","一般ごみ・粗ごみ"]
["つ","つるはし（道具）",{"$f":"PHONETIC(B1009)","v":"ツルハシ（ドウグ）"},"販売店・製造元に相談。または、ごみ処理（一般廃棄物）業者に依頼","処理困難物"]
["て","ＤＶＤディスク","ティーシャツ",null,"一般ごみ"]
["て","ＤＶＤディスクケース","ディーブイディープレーヤー（30センチイジョウ）",null,"一般ごみ"]
["て","ＤＶＤプレーヤー・デッキ",null,null,"粗ごみ"]
["て","低周波治療器",{"$f":"PHONETIC(B1013)","v":"テイシュウハチリョウキ"},"事業に伴うもの・業務用は不可","粗ごみ"]
["て","ディスクグラインダー　　　　　　　　　　　　（電動工具）","ディスクグラインダー　　　　　　　　　　　　（デンドウコウグ）","販売店・製造元に相談。または、ごみ処理（一般廃棄物）業者に依頼\n＊片手用OK","処理困難物"]
["て","ディスクグラインダーの刃","ディスクグラインダーノハ","一部処理困難物あり","粗ごみ"]
["て","ディスプレー（液晶）",null,"＊サイズ判断品目\n＊パソコン用は不可","粗ごみ・大型ごみ"]
["て","ディスプレー（ブラウン管）",null,"＊サイズ判断品目\n＊テレビチューナー付きは【家電リサイクル法対象品目】","粗ごみ・大型ごみ"]
["て","ディスプレー（パソコン用）",null,"【リサイクル対象品】メーカーまたは一般社団法人パソコン３Ｒ推進協会：03-5282-7685に問い合わせ。","ＰＣリサイクル品目"]
["て","ティッシュペーパー",null,"リサイクルに向かない紙類のため一般ごみ","一般ごみ"]
["て","ティッシュペーパーの箱",null,"＊地域の集団回収があれば、そちらに排出\n＊取り出し口のビニール部分は取り外すこと","紙類"]
["て","テーブル（プラスチック製）",{"$f":"PHONETIC(B1021)","v":"テーブル（プラスチックセイ）"},"＊サイズ判断品目\n＊45㍑袋に収まる場合は、一般ごみへ排出\n＊丸テーブルの直径1㍍以上のものは600円","粗ごみ・大型ごみ"]
["て","テーブル（ガラス製）",null,"＊サイズ判断品目\n＊丸テーブルの直径1㍍以上のものは600円","粗ごみ・大型ごみ"]
["て","テーブル（大理石）",null,"＊サイズ判断品目\n＊丸テーブルの直径1㍍以上のものは600円\n＊大理石の厚みは5㌢未満に限る","粗ごみ・大型ごみ"]
["て","テーブル（木製・金属製）","テーブル（モクセイ・キンゾクセイ）","＊サイズ判断品目\n＊丸テーブルの直径1㍍以上のものは600円","粗ごみ・大型ごみ"]
["て","テーブル（鋳物製）",null,"販売店・製造元に相談。または、ごみ処理（一般廃棄物）業者に依頼","処理困難物"]
["て","テーブルの天板（プラスチック製）","テーブルノテンバン（プラスチックセイ）","＊サイズ判断品目\n＊45㍑袋に収まる場合は、一般ごみへ排出\n＊丸テーブルの直径１㍍以上のものは600円","粗ごみ・大型ごみ"]
["て","テーブルの天板（ガラス製）","テーブルノテンバン（ガラスセイ）","＊1㍍以上のものは家庭ごみ業務第1課へ相談","空き缶、びん・ガラス類"]
["て","テーブルの天板（大理石）",null,"＊サイズ判断品目\n＊丸テーブルの直径1㍍以上のものは600円\n＊大理石の厚みは5㌢未満に限る","粗ごみ・大型ごみ"]
["て","テーブルの天板（木製・金属製）",null,"＊サイズ判断品目\n＊丸テーブルの直径１㍍以上のものは600円","粗ごみ・大型ごみ"]
["て","テーブルの天板（鋳物製）",null,"販売店・製造元に相談。または、ごみ処理（一般廃棄物）業者に依頼","処理困難物"]
["て","テープレコーダー","テープレコーダー",null,"粗ごみ"]
["て","テールランプ（バイク・車部品）",null,"＊交換時に引き取り依頼／自動車・バイク部品、用品店に相談","市で処理しないもの"]
["て","手押し車（乳母車）","テオシクルマ（ウバグルマ）","＊指定品目\n＊折りたたみ式のものは粗ごみ","大型ごみ300円"]
["て","手押し車（シルバーカー）（歩行車含む）　　　　　　　　　（折りたたみ式）",null,null,"粗ごみ"]
["て","手押しポンプ","テオシポンプ","＊サイズ判断品目\n＊鉄製・鋳物製は不可","粗ごみ・大型ごみ"]
["て","手さげ金庫","テサゲキンコ",null,"粗ごみ"]
["て","手帳類","テチョウルイ","＊地域の集団回収があれば、そちらに排出\n＊プラスチックや金属を含むものは取り外すこと\n＊金具などの金属が取り外せない場合は粗ごみ","紙類"]
["て","鉄アレイ","テツアレイ","販売店・製造元に相談。または、ごみ処理（一般廃棄物）業者に依頼","処理困難物"]
["て","鉄筋","テッキン","販売店・製造元に相談。または、ごみ処理（一般廃棄物）業者に依頼","処理困難物"]
["て","鉄柱","テッチュウ","販売店・製造元に相談。または、ごみ処理（一般廃棄物）業者に依頼","処理困難物"]
["て","鉄板","テッパン","販売店・製造元に相談。または、ごみ処理（一般廃棄物）業者に依頼","処理困難物"]
["て","鉄板（オーブン用）","テッパン（オーブンヨウ）",null,"粗ごみ"]
["て","鉄板（バーベキュー用）","テッパン（バーベキューヨウ）","厚み3㍉未満に限る（一部処理困難物あり）","粗ごみ"]
["て","鉄板（台所用品）","テツイタ（ダイドコロヨウヒン）","特注品（厚み3㍉未満は可）処理困難物","粗ごみ"]
["て","鉄棒（子供用）","テツボウ（コドモヨウ）","サイズ判断品目","粗ごみ・大型ごみ"]
["て","テニスボール","テニスボール",null,"一般ごみ"]
["て","テニスラケット","テニスラケット",null,"粗ごみ"]
["て","手袋","テブクロ",null,"一般ごみ"]
["て","テラコッタタイル","テラコッタタイル","＊工事を業者に依頼した時は、処理まで依頼　　　　　　　　　　　　　　　　\n＊タイルにセメント（目地）が付着したものは受付不可","粗ごみ"]
["て","テラコッタ鉢","テラコッタハチ",null,"粗ごみ"]
["て","テレビ（液晶）","テレビ（エキショウ）","【家電リサイクル法対象品目】家電小売店に依頼または財団法人\n家電製品協会（家電リサイクル券センター：0120-319640）に問い合わせ","家電リサイクル品目"]
["て","テレビ（プラズマ）","テレビ（プラズマ）","【家電リサイクル法対象品目】家電小売店に依頼または財団法人\n家電製品協会（家電リサイクル券センター：0120-319640）に問い合わせ","家電リサイクル品目"]
["て","テレビ（ブラウン管式）","テレビ（ブラウンカンシキ）","【家電リサイクル法対象品目】家電小売店に依頼または財団法人　　　　　　家電製品協会（家電リサイクル券センター：0120-319640）に問い合わせ","家電リサイクル品目"]
["て","テレビ（有機ＥＬ式）",null,"【家電リサイクル法対象品目】家電小売店に依頼または財団法人　　　　　　家電製品協会（家電リサイクル券センター：0120-319640）に問い合わせ","家電リサイクル品目"]
["て","テレビアンテナ（屋内外用）","テレビアンテナ（オクナイガイヨウ）","サイズ判断品目\n＊縦支柱と横支柱で1セット","粗ごみ・大型ごみ"]
["て","テレビアンテナ（パラボラ型）","テレビアンテナ（パラボラガタ）","サイズ判断品目","粗ごみ・大型ごみ"]
["て","テレビアンテナの土台","テレビアンテナノドダイ","サイズ判断品目","粗ごみ・大型ごみ"]
["て","テレビゲーム機（家庭用）","テレビゲームキ（カテイヨウ）",null,"粗ごみ"]
["て","テレビゲーム機（家庭用）のカセット","テレビゲームキ（カテイヨウ）ノカセット",null,"粗ごみ"]
["て","テレビ台（テレビボード）","テレビダイ（テレビボード）","サイズ判断品目","粗ごみ・大型ごみ"]
["て","テレビデオ","テレビデオ","【家電リサイクル法対象品目】家電小売店に依頼または財団法人\n家電製品協会（家電リサイクル券センター：0120-319640）に問い合わせ","家電リサイクル品目"]
["て","テレホンカード","テレホンカード",null,"一般ごみ"]
["て","電気アンカ","デンキアンカ",null,"粗ごみ"]
["て","テンキー（パソコン用）","テンキー（パソコンヨウ）",null,"粗ごみ"]
["て","電気温水器","デンキオンスイキ","販売店・製造元に相談。または、ごみ処理（一般廃棄物）業者に依頼","処理困難物"]
["て","電気カーペット","デンキカーペット",null,"粗ごみ"]
["て","電気カーペットカバー","デンキカーペットカバー",null,"粗ごみ"]
["て","電気かみそり","デンキカミソリ",null,"粗ごみ"]
["て","電気グリル","デンキグリル",null,"粗ごみ"]
["て","電気コンロ","デンキコンロ",null,"粗ごみ"]
["て","電気座布団","デンキザブトン",null,"粗ごみ"]
["て","電気式蚊取り線香","デンキシキカトリセンコウ",null,"粗ごみ"]
["て","電気式生ごみ処理機","デンキシキナマゴミショリキ",null,"粗ごみ"]
["て","電気スタンド","デンキスタンド","サイズ判断品目","粗ごみ・大型ごみ"]
["て","電気足温器","デンキソクオンキ",null,"粗ごみ"]
["て","電気ドリル","デンキドリル","一部処理困難物あり","粗ごみ"]
["て","電気ドリルの刃","デンキドリルノハ","一部処理困難物あり","粗ごみ"]
["て","電気鍋","デンキナベ",null,"粗ごみ"]
["て","電気フライヤー","デンキフライヤー",null,"粗ごみ"]
["て","電気ポット",{"$f":"PHONETIC(B1080)","v":"デンキポット"},null,"粗ごみ"]
["て","電気マット",{"$f":"PHONETIC(B1081)","v":"デンキマット"},"サイズ判断品目","粗ごみ・大型ごみ"]
["て","電球",{"$f":"PHONETIC(B1082)","v":"デンキュウ"},"危険がないように","粗ごみ"]
["て","電気炉",{"$f":"PHONETIC(B1083)","v":"デンキロ"},"販売店・製造元に相談。または、ごみ処理（一般廃棄物）業者に依頼","処理困難物"]
["て","電気ロースター",{"$f":"PHONETIC(B1084)","v":"デンキロースター"},"事業に伴うもの・業務用は不可","粗ごみ"]
["て","点検口",null,"建築廃材は工事の施工業者に引き取りを依頼","市で処理しないもの"]
["て","電子オルガン","デンシオルガン","指定品目","大型ごみ1800円"]
["て","電子オルガン(キーボードタイプ）",null,"＊サイズ判断品目\n＊台付の場合は取り外して別々に排出\n（台がついたままの排出は指定品目）","粗ごみ・大型ごみ"]
["て","電子辞書",null,null,"粗ごみ"]
["て","電子たばこ（加熱式たばこ）",null,"＊自主回収あり製品：プルーム・グロー（2022/6/1現在）\n  一般社団法人日本たばこ協会 ： https://www.tioj.or.jp/\n＊自主回収なし製品：市内の公共施設や協力店舗で実施する小型家電回収ボックスへの分別回収にご協力ください。","粗ごみ"]
["て","電磁調理器","デンジチョウリキ",null,"粗ごみ"]
["て","電子ピアノ","デンシピアノ","指定品目","大型ごみ1800円"]
["て","電子ピアノ(キーボードタイプ）",null,"＊サイズ判断品目\n＊台付の場合は取り外して別々に排出\n（台がついたままの排出は指定品目）","粗ごみ・大型ごみ"]
["て","電子レンジ","デンシレンジ","指定品目","大型ごみ600円"]
["て","電子レンジ（オーブンレンジ）　　　　　　　　　　　　　　　　　（ビルトインタイプ）","デンシレンジ（オーブンレンジ）　　　　　　　　　　　　　　　　　（ビルトインタイプ）","＊指定品目\n＊ビルトインタイプ単品は600円\n（流し台・調理台・ガス台に付いているものは900円）\n＊業者に依頼した場合は、処理まで依頼","大型ごみ600円"]
["て","電線","デンセン","事業に伴うもの・業務用は不可","粗ごみ"]
["て","天体望遠鏡","テンタイボウエンキョウ","サイズ判断品目","粗ごみ・大型ごみ"]
["て","電卓","デンタク",null,"粗ごみ"]
["て","電池","デンチ","＊市内の公共施設や協力店舗で実施する水銀使用廃製品の分別回収にご協力ください。\n＊小型充電式電池は、家電小売店のリサイクルBOXへお出しください。","粗ごみ"]
["て","テント","テント","＊サイズ判断品目　　　　　　　　　　　　　　　　　　　　　　　　　　　　　　　　　　　　　＊1㍍以上のものが複数ある場合は排出時（ひとまとめにする）サイズの金額","粗ごみ・大型ごみ"]
["て","テント（支柱部分）","テント（シチュウブブン）","＊サイズ判断品目　　　　　　　　　　　　　　　　　　　　　　　　　　　　　　　　　　　　　＊1㍍以上のものが複数ある場合は排出時（ひとまとめにする）サイズの金額","粗ごみ・大型ごみ"]
["て","テント（幌部分）","テント（ホロブブン）","＊サイズ判断品目\n＊45㍑袋に収まる場合は、一般ごみへ排出可","粗ごみ・大型ごみ"]
["て","電動カー（幼児用）","デンドウカー（ヨウジヨウ）","サイズ判断品目","粗ごみ・大型ごみ"]
["て","電動工具","デンドウコウグ","一部処理困難物あり","粗ごみ"]
["て","電動式灯油ポンプ","デンドウシキトウユポンプ","＊サイズ判断品目　　　　　　　　　　　　　　　　　　　　　　　　　　　　　　　　　　　　＊電池式の場合は電池を抜いて排出","粗ごみ・大型ごみ"]
["て","電動式噴霧器",{"$f":"PHONETIC(B1105)","v":"デンドウシキフンムキ"},"＊サイズ判断品目　　　　　　　　　　　　　　　　　　　　　　　　　　　　　　　　　　　　＊一部処理困難物あり","粗ごみ・大型ごみ"]
["て","電動鋸（のこぎり）",null,"（家庭用）一部処理困難物有\n＊事業に伴うもの・業務用は不可","粗ごみ"]
["て","電熱器",{"$f":"PHONETIC(B1107)","v":"デンネツキ"},null,"粗ごみ"]
["て","天ぷら鍋",{"$f":"PHONETIC(B1108)","v":"テンプラナベ"},null,"粗ごみ"]
["て","テンプレート（プラスチック製）\n製図用・文房具",null,null,"一般ごみ"]
["て","テンプレート（鉄製）\n製図用・文房具",null,null,"粗ごみ"]
["て","電話機",{"$f":"PHONETIC(B1111)","v":"デンワキ"},null,"粗ごみ"]
["て","電話台",{"$f":"PHONETIC(B1112)","v":"デンワダイ"},"サイズ判断品目","粗ごみ・大型ごみ"]
["て","電話帳",{"$f":"PHONETIC(B1113)","v":"デンワチョウ"},null,"紙類"]
["て","電話帳（タウンページ）",null,"＊地域の集団回収があれば、そちらに排出","紙類"]
["と","ドアノブ",null,null,"粗ごみ"]
["と","とい（プラスチック製）",{"$f":"PHONETIC(B1116)","v":"トイ（プラスチックセイ）"},"＊サイズ判断品目\n＊45㍑袋に収まる場合は、一般ごみへ排出\n＊業者に依頼した場合は、処理まで依頼","粗ごみ・大型ごみ"]
["と","とい（ブリキ製）",{"$f":"PHONETIC(B1117)","v":"トイ（ブリキセイ）"},"＊サイズ判断品目　　　　　　　　　　　　　　　　　　　　　　　　　　　　　　　　　　　　　　　　　　＊業者に依頼した場合は、処理まで依頼","粗ごみ・大型ごみ"]
["と","砥石",{"$f":"PHONETIC(B1118)","v":"トイシ"},null,"粗ごみ"]
["と","トイレットペーパー",null,"リサイクルに向かない紙類のため一般ごみ","一般ごみ"]
["と","トイレットペーパーの紙芯",null,"＊地域の集団回収があれば、そちらに排出","紙類"]
["と","投光器",{"$f":"PHONETIC(B1121)","v":"トウコウキ"},"家庭で使用されているものに限る","粗ごみ"]
["と","謄写版",null,"＊10ｋｇ以上は処理不可\n＊処理困難物あり","粗ごみ"]
["と","動物の死骸（のら・ペット）\n粗大ごみ予約センターに申し込みが必要",null,"＊ペットの死体は一体1200円。のら犬やのら猫は無料。\n＊清掃工場へ直接持ち込まれる場合は、のら・ペット共に無料","臨時ごみ・持ち込みごみ"]
["と","灯油",{"$f":"PHONETIC(B1124)","v":"トウユ"},"販売店・ガソリンスタンド等に相談","処理困難物"]
["と","灯油缶（プラスチック製）","トウユカン（プラスチックセイ）","＊45㍑袋に収まる場合は、一般ごみへ排出\n＊中身は除く","粗ごみ"]
["と","灯油缶（一斗缶）","トウユカン（イチトカン）","中身を除く","粗ごみ"]
["と","トースター","トースター",null,"粗ごみ"]
["と","時計","トケイ","サイズ判断品目","粗ごみ・大型ごみ"]
["と","トタン板","トタンイタ","＊サイズ判断品目\n＊臨時・持ち込みごみについては1回の申し込みにつき40枚まで","粗ごみ・大型ごみ"]
["と","トナーの容器（プラスチック製）","トナーノヨウキ（プラスチックセイ）",null,"一般ごみ"]
["と","トナーの容器（金属を含むもの）","トナーノヨウキ（キンゾクヲフクムモノ）",null,"粗ごみ"]
["と","土鍋","ドナベ",null,"粗ごみ"]
["と","跳び箱","トビバコ","サイズ判断品目","粗ごみ・大型ごみ"]
["と","トライアングル（楽器）","トライアングル（ガッキ）",null,"粗ごみ"]
["と","ドライバー（工具）","ドライバー（コウグ）",null,"粗ごみ"]
["と","ドライヤー","ドライヤー",null,"粗ごみ"]
["と","ドライヤースタンド型（家庭用）","ドライヤースタンドガタ（カテイヨウ）","サイズ判断品目","粗ごみ・大型ごみ"]
["と","ドラフター（製図）",null,"＊サイズ判断品目\n＊事業に伴うもの・業務用は不可","粗ごみ・大型ごみ"]
["と","ドラム（楽器）",{"$f":"PHONETIC(B1139)","v":"ドラム（ガッキ）"},null,"粗ごみ・大型ごみ"]
["と","ドラム缶","ドラムカン","＊販売店・製造元に相談。または、ごみ処理（一般廃棄物）業者に依頼　　　　　　　　　　　　　　　　　　　　　　　　　　　　　　　　　　　　　　　　　　　＊切断された状態でも不可","処理困難物"]
["と","トランク（旅行用）","トランク（リョコウヨウ）","サイズ判断品目","粗ごみ・大型ごみ"]
["と","トランクス","トランクス",null,"一般ごみ"]
["と","トランシーバー","トランシーバー",null,"粗ごみ"]
["と","トランス（電気変圧器）","トランス（デンキヘンアツキ）","一辺が10㌢程度のものに限る","粗ごみ"]
["と","トランポリン（家庭用）",{"$f":"PHONETIC(B1145)","v":"トランポリン（カテイヨウ）"},"サイズ判断品目","粗ごみ・大型ごみ"]
["と","トルソー（裁縫用マネキン）",{"$f":"PHONETIC(B1146)","v":"トルソー（サイホウヨウマネキン）"},"＊サイズ判断品目\n＊事業に伴うもの・業務用は不可","粗ごみ・大型ごみ"]
["と","鳥かご（木製・竹製・金属製）",{"$f":"PHONETIC(B1147)","v":"トリカゴ（モクセイ・タケセイ・キンゾクセイ）"},null,"粗ごみ"]
["と","塗料缶","トリョウカン","＊中身は使い切るか、固まった状態で排出　　　　　　　　　　　　　　　　　　＊きれいに洗った状態で出される場合は空き缶、びん・ガラス類へ排出","粗ごみ"]
["と","塗料缶（一斗缶）","トリョウカン（イチトカン）","中身は使い切るか、固まった状態で排出","粗ごみ"]
["と","塗料のスプレー缶","トリョウノスプレーカン","中身は使い切る","空き缶・びん・ガラス類"]
["と","ドリンクの缶・瓶","ドリンクノカン・ビン","中身は除く","空き缶・びん・ガラス類"]
["と","ドリンクの瓶の蓋","ドリンクノビンノフタ",null,"粗ごみ"]
["と","トレイ","トレイ",null,"ペットボトル・プラスチック製容器包装"]
["と","ドレッサー","ドレッサー","サイズ判断品目","粗ごみ・大型ごみ"]
["と","トレリス（園芸用）",{"$f":"PHONETIC(B1155)","v":"トレリス（エンゲイヨウ）"},"＊サイズ判断品目\n＊事業に伴うもの・業務用は不可","粗ごみ・大型ごみ"]
["と","トロフィー",{"$f":"PHONETIC(B1156)","v":"トロフィー"},null,"粗ごみ"]
["と","どろよけ（自動車用含む）",{"$f":"PHONETIC(B1157)","v":"ドロヨケ（ジドウシャヨウフクム）"},null,"粗ごみ"]
["と","トンボ（木製）",null,null,"粗ごみ"]
["と","トンボ（金属製）",null,"サイズ判断品目（鉄板部分の厚み3㍉未満に限る）","粗ごみ・大型ごみ"]
["と","トンボ型ゴムヘラ（掃除道具）",null,null,"粗ごみ"]
["な","ナイフ",{"$f":"PHONETIC(B1161)","v":"ナイフ"},"危険のないようにする。","粗ごみ"]
["な","苗ポット","ナエポット",null,"ペットボトル・プラスチック製容器包装"]
["な","長靴","ナガグツ",null,"一般ごみ"]
["な","流し台（コンクリート・陶器製）","ナガシダイ（コンクリート・トウキセイ）","販売店・製造元に相談。または、ごみ処理（一般廃棄物）業者に依頼","処理困難物"]
["な","流し台（ステンレス製・ホーロー製）","ナガシダイ（ステンレスセイ・ホーローセイ）","＊指定品目　　　　　　　　　　　　　　　　　　　　　　　　　　　　　　　　　　　　　　　＊業者に依頼した場合は、処理まで依頼","大型ごみ600円"]
["な","流し台（ステンレス製・ホーロー製）\n（ガス・電気コンロ付）","ナガシダイ（ステンレスセイ・ホーローセイ）\n（ガス・デンキコンロツ）","＊指定品目\n＊業者に依頼した場合は、処理まで依頼","大型ごみ600円"]
["な","流し台（ステンレス製・ホーロー製）\n（レンジ・オーブン・食器洗い乾燥機付）",null,"＊指定品目\n＊業者に依頼した場合は、処理まで依頼","大型ごみ600円"]
["な","なた",{"$f":"PHONETIC(B1168)","v":"ナタ"},null,"粗ごみ"]
["な","鍋（金属製・陶器製）","ナベ（キンゾクセイ・トウキセイ）",null,"粗ごみ"]
["な","鍋敷き（布製）","ナベシキ（ヌノセイ）",null,"一般ごみ"]
["な","鍋敷き（鉄製・籐製・木製）","ナベシキ（テツセイ・トウセイ・モクセイ）",null,"粗ごみ"]
["な","鍋蓋（ガラス製）","ナベブタ（ガラスセイ）","ガラスのみ（金属が含まれる場合は粗ごみ）","空き缶、びん・ガラス類"]
["な","鍋蓋（金属製・木製）","ナベブタ（キンゾクセイ・モクセイ）",null,"粗ごみ"]
["な","ナフタリン","ナフタリン",null,"一般ごみ"]
["な","生ごみシュレッダー　　　　　　　　　　　　　（ディスポーザー）","ナマゴミシュレッダー　　　　　　　　　　　　　（ディスポーザー）","販売店・製造元に相談。または、ごみ処理（一般廃棄物）業者に依頼","処理困難物"]
["な","生ごみ処理機",{"$f":"PHONETIC(B1176)","v":"ナマゴミショリキ"},"サイズ判断品目","粗ごみ・大型ごみ"]
["な","生ごみ処理容器（プラスチック製）","ナマゴミショリヨウキ（プラスチックセイ）","サイズ判断品目","粗ごみ・大型ごみ"]
["な","波板（プラスチック製）","ナミイタ（プラスチックセイ）","＊サイズ判断品目（5枚1点）\n＊臨時・持ち込みごみについては１回の申込につき40枚まで\n＊45㍑の袋に収まる場合は、一般ごみへの排出","粗ごみ・大型ごみ"]
["な","波板（プラスチック製金網入り）","ナミイタ（プラスチックセイカナアミイリ）","＊サイズ判断品目（5枚1点）\n＊臨時・持ち込みごみについては１回の申込につき40枚まで","粗ごみ・大型ごみ"]
["な","縄","ナワ",null,"一般ごみ"]
["な","縄跳び","ナワトビ",null,"一般ごみ"]
["な","軟水器（家庭用）",{"$f":"PHONETIC(B1182)","v":"ナンスイキ（カテイヨウ）"},null,"粗ごみ"]
["に","ニッパー（工具）",{"$f":"PHONETIC(B1183)","v":"ニッパー（コウグ）"},null,"粗ごみ"]
["に","入浴剤の缶","ニュウヨクザイノカン","スチール・アルミなら空き缶・びん・ガラスへ排出\n金属を含まないもので45㍑袋に収まる場合は、一般ごみへ排出","空き缶、びん・ガラス類"]
["に","人形（ケース入り）","ニンギョウ（ケースイリ）",null,"粗ごみ"]
["に","人形（その他）","ニンギョウ（ソノタ）",null,"粗ごみ"]
["に","人形（プラスチック製）","ニンギョウ（プラスチックセイ）","45㍑袋に収まる場合は、一般ごみへ排出","粗ごみ"]
["に","人形（木製）","ニンギョウ（モクセイ）",null,"粗ごみ"]
["に","人形ケース（ガラス製木枠）１㍍以内","ニンギョウケース（ガラスセイキワク）１㍍イナイ","ガラスのみなら空き缶・びん・ガラスへ排出","粗ごみ"]
["に","人形ケース（プラスチック製）１㍍以内","ニンギョウケース（プラスチックセイ）１㍍イナイ",null,"粗ごみ"]
["ぬ","ぬいぐるみ",{"$f":"PHONETIC(B1191)","v":"ヌイグルミ"},"＊サイズ判断品目\n＊45㍑袋に収まる場合は、一般ごみへ排出","粗ごみ・大型ごみ"]
["ぬ","布オムツ",{"$f":"PHONETIC(B1192)","v":"ヌノオムツ"},"汚物は取り除く","一般ごみ"]
["ぬ","布類",{"$f":"PHONETIC(B1193)","v":"ヌノタグイ"},"＊集団回収がなければためずに少量づつ一般ごみ","一般ごみ"]
["ね","ネガ（写真）",{"$f":"PHONETIC(B1194)","v":"ネガ（シャシン）"},null,"一般ごみ"]
["ね","ネクタイ","ネクタイ",null,"一般ごみ"]
["ね","ネクタイピン","ネクタイピン",null,"粗ごみ"]
["ね","猫・犬の死骸（のら・ペット）\n粗大ごみ予約センターに申し込みが必要","ネコ・イヌノシガイ（ノラ・ペット）\nソダイゴミヨヤクセンターニモウシコミガヒツヨウ","＊ペットの死体は一体1200円。のら犬やのら猫は無料。\n＊清掃工場へ直接持ち込まれる場合は、のら・ペット共に無料","臨時ごみ・持込みごみ、動物"]
["ね","猫のトイレ砂（市販用）","ネコノトイレスナ（シハンヨウ）","自己処理が困難であれば一般ごみ","一般ごみ"]
["ね","ネズミ捕り","ネズミトリ",null,"粗ごみ"]
["ね","ネックレス","ネックレス",null,"粗ごみ"]
["ね","根っこ","ネッコ","木材として判断（丸太・角材／長さ1㍍未満直径・1辺10㌢未満板状／長さ1㍍未満厚さ5㌢未満幅30㌢未満に限る）","粗ごみ"]
["ね","年賀状作成機","ネンガジョウサクセイキ",null,"粗ごみ"]
["ね","粘土","ネンド","多量にある場合は、1袋に少量づつ入れて排出","一般ごみ"]
["ね","粘土（園芸用）","ネンド（エンゲイヨウ）","陶芸用の未使用つち粘土は不可（購入先に問い合わせ）","処理困難物"]
["ね","ネット（布製・プラスチック製）","ネット（ヌノセイ・プラスチックセイ）","45㍑袋に収まる場合は、一般ごみへ排出","粗ごみ"]
["ね","ネット（針金入り）","ネット（ハリガネイリ）",null,"粗ごみ"]
["ね","寝袋","ネブクロ","45㍑袋に収まる場合は、一般ごみへ排出","粗ごみ"]
["の","農機具","ノウキグ","販売店・製造元に相談。","処理困難物"]
["の","農機具の部品","ノウキグノブヒン","販売店・製造元に相談。","処理困難物"]
["の","農薬","ノウヤク","販売店・製造元に相談。","処理困難物"]
["の","農薬の瓶（家庭用）","ノウヤクノビン（カテイヨウ）","中身を除き軽くすすぐ","空き缶、びん・ガラス類"]
["の","ノート","ノート","＊地域の集団回収があれば、そちらに排出\n＊プラスチックや金属を含むものは取り外すこと\n＊金具などの金属が取り外せない場合は粗ごみ","紙類"]
["の","ノートパソコン","ノートパソコン","【リサイクル対象品】メーカーまたは一般社団法人パソコン３Ｒ推進協会：03-5282-7685に問い合わせ。","ＰＣリサイクル品目"]
["の","鋸（のこぎり）","ノコギリ（ノコギリ）","危険がないようにする","粗ごみ"]
["の","のみ（工具）","ノミ（コウグ）",null,"粗ごみ"]
["の","のり（文具）","ノリ（ブング）",null,"一般ごみ"]
["の","のり（スプレー式）","ノリ（スプレーシキ）","中身を除く","空き缶、びん・ガラス類"]
["の","のりのチューブ・スティック",null,null,"一般ごみ"]
["の","海苔のケース（缶・瓶）",{"$f":"PHONETIC(B1219)","v":"ノリノケース（カン・ビン）"},"中身を除く","空き缶、びん・ガラス類"]
["の","海苔のケース（プラスチック製）","ノリノケース（プラスチックセイ）",null,"ペットボトル・プラスチック製容器包装"]
["の","のれん（布製・プラスチック製）","ノレン（ヌノセイ・プラスチックセイ）","＊サイズ判断品目\n＊45㍑袋に収まる場合は、一般ごみへ排出","粗ごみ・大型"]
["の","のれん（ガラス製・木製・金属製）","ノレン（ガラスセイ・モクセイ・キンゾクセイ）","サイズ判断","粗ごみ・大型"]
["は","バーベキューコンロ","バーベキューコンロ","サイズ判断品目","粗ごみ・大型ごみ"]
["は","バーベル","バーベル","販売店・製造元に相談。または、ごみ処理（一般廃棄物）業者に依頼","処理困難物"]
["は","ハーモニカ","ハーモニカ",null,"粗ごみ"]
["は","バーナー","バーナー","サイズ判断品目","粗ごみ・大型ごみ"]
["は","バール",null,"長さ50㌢、直径の厚み2㌢以上は不可","粗ごみ"]
["は","灰(七輪など）",{"$f":"PHONETIC(B1228)","v":"ハイ(シチリンナド）"},"少量の水を湿らせて排出","一般ごみ"]
["は","配管（塩ビ・塩ビ管）",{"$f":"PHONETIC(B1229)","v":"ハイカン（エンビ・エンビカン）"},"＊サイズ判断品目\n＊業者に依頼した場合は、処理まで依頼","粗ごみ・大型ごみ"]
["は","配管（ＣＤ管）",{"$f":"PHONETIC(B1230)","v":"ハイカン（ＣＤカン）"},"＊業者に依頼した場合は、処理まで依頼　　　　　　　　　　　　　　　　　　　　　　＊45㍑袋に収まる場合は、一般ごみへ排出","粗ごみ"]
["は","配管（鉄製）",null,"＊サイズ判断品目（鉄の厚み3ミリまで）\n＊業者に依頼した場合は、処理まで依頼","粗ごみ・大型ごみ"]
["は","バイク",{"$f":"PHONETIC(B1232)","v":"バイク"},"販売店・取扱店に相談","処理困難物"]
["は","バイク部品",null,null,"市で収集しないもの"]
["は","バイザー(車付属品）",{"$f":"PHONETIC(B1234)","v":"バイザー(クルマフゾクヒン）"},"＊45㍑袋に収まる場合は、一般ごみへ排出\n＊純正部品は受付不可","粗ごみ"]
["は","灰皿(ガラス製)",{"$f":"PHONETIC(B1235)","v":"ハイザラ(ガラスセイ)"},null,"空き缶、びん・ガラス類"]
["は","灰皿(陶器製・金属製）",{"$f":"PHONETIC(B1236)","v":"ハイザラ(トウキセイ・キンゾクセイ）"},null,"粗ごみ"]
["は","ハイドロボール\n（粘土を高温で焼いて発泡させたもの）",{"$f":"PHONETIC(B1237)","v":"ハイドロボール\n（ネンドヲコウオンデヤイテハッポウサセタモノ）"},null,"粗ごみ"]
["は","パイプ（喫煙用）",{"$f":"PHONETIC(B1238)","v":"パイプ（キツエンヨウ）"},null,"粗ごみ"]
["は","パイプ（塩ビ管）","パイプ（エンビカン）","＊サイズ判断品目\n＊業者に依頼した場合は、処理まで依頼","粗ごみ・大型ごみ"]
["は","パイプ（ＣＤ管）","パイプ（ＣＤカン）","＊業者に依頼した場合は、処理まで依頼　　　　　　　　　　　　　　　　　　　　　＊45㍑袋に収まる場合は、一般ごみへ排出","粗ごみ"]
["は","パイプ（鉄製）","パイプ（テツセイ）","＊サイズ判断品目（鉄の厚み3ミリまで）\n＊業者に依頼した場合は、処理まで依頼","粗ごみ・大型ごみ"]
["は","パイプハンガー","パイプハンガー","サイズ判断品目","粗ごみ・大型ごみ"]
["は","廃油（機械用）","ハイユ（キカイヨウ）","＊販売店・ガソリンスタンド等に相談\n＊どうしても出される場合は、布等に沁み込ますか市販の固めるもので固めて一般ごみへ排出","処理困難物"]
["は","廃油（食用）","ハイユ（ショクヨウ）","どうしても出される場合は、布等に沁み込ますか市販の固めるもので固めて一般ごみへ排出","一般ごみ"]
["は","ハイラズ（蝿入らず）　　　　　　　　　　　　\n網状の食品保管ケース","ハイラズ（ハエイラズ）　　　　　　　　　　　　\nアミジョウノショクヒンホカンケース","サイズ判断品目","粗ごみ・大型ごみ"]
["は","バインダー（紙製）",{"$f":"PHONETIC(B1246)","v":"バインダー（カミセイ）"},"＊地域の集団回収があれば、そちらに排出\n＊プラスチックや金属を含むものは取り外すこと\n＊金具などの金属が取り外せない場合は粗ごみ","紙類"]
["は","バインダー（プラスチック製）",{"$f":"PHONETIC(B1247)","v":"バインダー（プラスチック製）"},"金属の含まれるものは粗ごみへ排出","一般ごみ"]
["は","はがき",null,"＊地域の集団回収があれば、そちらに排出\n＊圧着はがきは一般ごみへ排出","紙類"]
["は","羽釜(はがま)",{"$f":"PHONETIC(B1249)","v":"ハガマ(ハガマ)"},null,"粗ごみ"]
["は","量（家庭用）",{"$f":"PHONETIC(B1250)","v":"ハカ（カテイヨウ）"},null,"粗ごみ"]
["は","剥製","ハクセイ","サイズ判断品目","粗ごみ・大型ごみ"]
["は","白熱球","ハクネツキュウ","危険がないようにする","粗ごみ"]
["は","はけ（塗装用等）","ハケ（トソウヨウトウ）",null,"粗ごみ"]
["は","バケツ（プラスチック製）","バケツ（プラスチックセイ）","45㍑袋に収まる場合は、一般ごみへ排出","粗ごみ"]
["は","バケツ（金属製）","バケツ（キンゾクセイ）",null,"粗ごみ"]
["は","バケツ型衣類乾燥機","バケツガタイルイカンソウキ","外国製","粗ごみ"]
["は","バケツ型洗濯機","バケツガタセンタクキ","リサイクル対象外品目","粗ごみ"]
["は","羽子板","ハゴイタ",null,"粗ごみ"]
["は","はさみ","ハサミ",null,"粗ごみ"]
["は","箸（プラスチック製・木製・竹製）","ハシ（プラスチックセイ・モクセイ・タケセイ）",null,"一般ごみ"]
["は","箸（金属製）","ハシ（キンゾクセイ）",null,"粗ごみ"]
["は","箸入れ（プラスチック製）","ハシイレ（プラスチックセイ）",null,"一般ごみ"]
["は","箸入れ（木製・金属製）","ハシイレ（モクセイ・キンゾクセイ）",null,"粗ごみ"]
["は","梯子（はしご）（木製・金属製）","ハシゴ（ハシゴ）（モクセイ・キンゾクセイ）","＊サイズ判断品目\n＊2㍍未満のものに限る","粗ごみ・大型ごみ"]
["は","柱時計","ハシラドケイ","サイズ判断品目","粗ごみ・大型ごみ"]
["は","バス換気乾燥機","バスカンキカンソウキ","販売店・製造元に相談。または、ごみ処理（一般廃棄物）業者に依頼","処理困難物"]
["は","バスケットゴール","バスケットゴール","＊サイズ判断品目\n＊一部処理困難物あり","粗ごみ・大型ごみ"]
["は","バスマット","バスマット","珪藻土バスマットはサイズ判断","一般ごみ"]
["は","パソコン（本体・ディスプレー）","パソコン（ホンタイ・ディスプレー）","【リサイクル対象品】メーカーまたは一般社団法人パソコン３Ｒ推進協会：03-5282-7685に問い合わせ。","ＰＣリサイクル品目"]
["は","パソコン周辺機器","パソコンシュウヘンキキ",null,"粗ごみ"]
["は","パソコンラック（木製・金属製）","パソコンラック（モクセイ・キンゾクセイ）","サイズ判断品目","粗ごみ・大型ごみ"]
["は","パチンコ台","パチンコダイ","＊指定品目\n＊家庭使用分に限る","大型ごみ900円"]
["は","パチンコ玉",null,"少量なら可","粗ごみ"]
["は","発煙筒",{"$f":"PHONETIC(B1274)","v":"ハツエントウ"},"販売店（ディーラー）・製造元に相談。","処理困難物"]
["は","バックミラー（バイク用）",null,null,"粗ごみ"]
["は","バッテリー（車・単車・船用）","バッテリー（クルマ・タンシャ・フネヨウ）","＊交換時に引き取り依頼\n＊販売店・取扱店に相談","処理困難物"]
["は","バッテリー（電池）","バッテリー（デンチ）","＊市内の公共施設や協力店舗で実施する水銀使用廃製品の分別回収にご協力ください。\n＊小型充電式電池は、家電小売店のリサイクルBOXへお出しください。","分別回収"]
["は","発電機（エンジン式）","ハツデンキ（エンジンシキ）","販売店・製造元に相談。または、ごみ処理（一般廃棄物）業者に依頼","処理困難物"]
["は","バット（プラスチック製）調理用　","バット（プラスチックセイ）チョウリヨウ　",null,"一般ごみ"]
["は","バット（金属製）調理用　","バット（キンゾクセイ）チョウリヨウ　",null,"粗ごみ"]
["は","バット（野球用品）",{"$f":"PHONETIC(B1281)","v":"バット（ヤキュウヨウヒン）"},"専用ケースに入れても排出可","粗ごみ"]
["は","パット練習台（ゴルフ）",{"$f":"PHONETIC(B1282)","v":"パットレンシュウダイ（ゴルフ）"},"＊45㍑袋に収まる場合は、一般ごみへ排出\n＊金属が含まれるものは粗ごみへ排出","粗ごみ"]
["は","発泡スチロール（プラマークあり）",{"$f":"PHONETIC(B1283)","v":"ハッポウスチロール（プラマークアリ）"},null,"ペットボトル・プラスチック製容器包装"]
["は","発泡スチロール（プラマークなし）",null,"容器包装用はプラマークが無くてもペットボトル・プラスチック製容器包装へ排出","一般ごみ"]
["は","バドミントンのシャトル",{"$f":"PHONETIC(B1285)","v":"バドミントンノシャトル"},null,"一般ごみ"]
["は","バドミントンのラケット","バドミントンノラケット",null,"粗ごみ"]
["は","花火","ハナビ","使い切る（未使用のものは水に濡らしてから排出）","一般ごみ"]
["は","パネル（プラスチック製）","パネル（プラスチックセイ）","＊サイズ判断品目\n＊45㍑袋に収まる場合は、一般ごみへ排出","粗ごみ・大型ごみ"]
["は","パネル（木製）","パネル（モクセイ）","サイズ判断品目","粗ごみ・大型ごみ"]
["は","パネル（金属製）","パネル（キンゾクセイ）","サイズ判断品目","粗ごみ・大型ごみ"]
["は","パネルヒーター（温水器型）","パネルヒーター（オンスイキガタ）","＊サイズ判断品目　　　　　　　　　　　　　　　　　　　　　　　　　　　　　　　　　　　＊業者に依頼した場合は、処理まで依頼","粗ごみ・大型ごみ"]
["は","ＨＵＢハブ（パソコン用）",null,null,"粗ごみ"]
["は","歯ブラシ",{"$f":"PHONETIC(B1293)","v":"ハブラシ"},null,"一般ごみ"]
["は","歯磨き粉チューブ式（プラスチック製）",{"$f":"PHONETIC(B1294)","v":"ハミガキコチューブシキ（プラスチックセイ）"},"中身は除く","ペットボトル・プラスチック製容器包装"]
["は","歯磨き粉チューブ式（金属製）",null,null,"粗ごみ"]
["は","パラソル（ガーデン・ビーチ）",null,"＊芯支柱の直径が５ｃｍ以上は大型ごみ　","粗ごみ・大型ごみ"]
["は","パラソル（ゴルフ用）",null,null,"粗ごみ"]
["は","パラソルの台（プラスチック製）",{"$f":"PHONETIC(B1298)","v":"パラソルノダイ（プラスチックセイ）"},"＊中の水は抜く\n＊45㍑袋に収まる場合は、一般ごみへ排出","粗ごみ"]
["は","パラソルの台（金属製）",{"$f":"PHONETIC(B1299)","v":"パラソルノダイ（キンゾクセイ）"},null,"粗ごみ"]
["は","パラソルの台（コンクリート製）",{"$f":"PHONETIC(B1300)","v":"パラソルノダイ（コンクリートセイ）"},"ごみ処理（一般廃棄物）業者に依頼","処理困難物"]
["は","バリカン",{"$f":"PHONETIC(B1301)","v":"バリカン"},null,"粗ごみ"]
["は","バリケンネル（ペットの籠）",{"$f":"PHONETIC(B1302)","v":"バリケンネル（ペットノカゴ）"},null,"粗ごみ"]
["は","パレット（絵具用）（プラスチック製）",{"$f":"PHONETIC(B1303)","v":"パレット（エノグヨウ）（プラスチックセイ）"},null,"一般ごみ"]
["は","パレット（絵具用）（木製・金属製）","パレット（エノグヨウ）（モクセイ・キンゾクセイ）",null,"粗ごみ"]
["は","パレット（荷置き用）","パレット（ニオキヨウ）","販売店・製造元に相談。または、ごみ処理（一般廃棄物）業者に依頼","処理困難物"]
["は","針","ハリ","危険がないようにする","粗ごみ"]
["は","針金","ハリガネ",null,"粗ごみ"]
["は","ハロゲンヒーター","ハロゲンヒーター",null,"粗ごみ"]
["は","ハンガー（プラスチック製）",{"$f":"PHONETIC(B1309)","v":"ハンガー（プラスチックセイ）"},"金具がついている場合は粗ごみ。\nプラマークが付いている場合はプラごみ。","一般ごみ・粗ごみ\nペットボトル・プラスチック製容器包装"]
["は","ハンガー（針金製・木製）",{"$f":"PHONETIC(B1310)","v":"ハンガー（ハリガネセイ・モクセイ）"},null,"粗ごみ"]
["は","ハンガーラック（木製・金属製）",{"$f":"PHONETIC(B1311)","v":"ハンガーラック（モクセイ・キンゾクセイ）"},"サイズ判断品目","粗ごみ・大型ごみ"]
["は","パン製造機",{"$f":"PHONETIC(B1312)","v":"パンセイゾウキ"},"業務用は不可","粗ごみ"]
["は","パンチ（穴あけ）",{"$f":"PHONETIC(B1313)","v":"パンチ（アナアケ）"},null,"粗ごみ"]
["は","ハンドクリーナー（家庭用）","ハンドクリーナー（カテイヨウ）",null,"粗ごみ"]
["は","ハンドル（バイク・車部品）","ハンドル（バイク・クルマブヒン）","＊交換時に引き取り依頼／自動車・バイク部品、用品店に相談","市で処理しないもの"]
["は","ハンドルグリップ（バイク部品）","ハンドルグリップ（バイクブヒン）",null,"粗ごみ"]
["は","ハンドミキサー（家庭用）","ハンドミキサー（カテイヨウ）",null,"粗ごみ"]
["は","バンパー（車部品）","バンパー（クルマブヒン）","＊交換時に引き取り依頼／自動車・バイク部品、用品店に相談","市で処理しないもの"]
["は","パンフレット","パンフレット","＊地域の集団回収があれば、そちらに排出\n＊ラミネート加工やプラスチックで加工されている場合は一般ごみへ排出","紙類"]
["ひ","ピアニカ",null,null,"粗ごみ"]
["ひ","ピアノ（グランド・アップライト）",{"$f":"PHONETIC(B1321)","v":"ピアノ（グランド・アップライト）"},"販売店・取扱店等に相談","処理困難物"]
["ひ","ＰＨＳ（電話）","ピーエイチエス","できるだけ店頭回収に協力してもらうよう案内","粗ごみ"]
["ひ","ビー玉",null,null,"粗ごみ"]
["ひ","ビーチチェア",{"$f":"PHONETIC(B1324)","v":"ビーチチェア"},"サイズ判断品目","粗ごみ・大型ごみ"]
["ひ","ビーチパラソル",{"$f":"PHONETIC(B1325)","v":"ビーチパラソル"},"＊芯支柱の直径が５ｃｍ以上は大型ごみ　","粗ごみ・大型ごみ"]
["ひ","ビーチ用ベッド（ボンボンベッド）",{"$f":"PHONETIC(B1326)","v":"ビーチヨウベッド（ボンボンベッド）"},"サイズ判断品目","粗ごみ・大型ごみ"]
["ひ","ビール（ジュース）ケース",null,"できるだけ販売店へ返却してもらえるように案内する。","粗ごみ"]
["ひ","ひげそり（プラスチック製・金属製）",{"$f":"PHONETIC(B1328)","v":"ヒゲソリ（プラスチックセイ・キンゾクセイ）"},"危険がないようにする","粗ごみ"]
["ひ","ひげそり（電気式）","ヒゲソリ（デンキシキ）",null,"粗ごみ"]
["ひ","ビデオカメラ","ビデオカメラ",null,"粗ごみ"]
["ひ","ビデオテープ","ビデオテープ",null,"一般ごみ"]
["ひ","ビデオテープのケース","ビデオテープノケース",null,"一般ごみ"]
["ひ","ビデオデッキ","ビデオデッキ",null,"粗ごみ"]
["ひ","雛壇人形セット","ヒナダンニンギョウセット",null,"粗ごみ・大型ごみ"]
["ひ","雛壇（ひな壇）（プラスチック製）","ヒナダン（ヒナダン）（プラスチックセイ）",null,"粗ごみ・大型ごみ"]
["ひ","雛壇（ひな壇）（木製・金属製）","ヒナダン（ヒナダン）（モクセイ・キンゾクセイ）",null,"粗ごみ・大型ごみ"]
["ひ","ビニールシート（ブルーシートなど）","ビニールシート（ブルーシートナド）","45㍑袋に収まる場合は、一般ごみへ排出","粗ごみ"]
["ひ","ビニールプール","ビニールプール","＊サイズ判断品目\n＊45㍑袋に収まる場合は、一般ごみへ排出","粗ごみ"]
["ひ","ビニールマット","ビニールマット","45㍑袋に収まる場合は、一般ごみへ排出","粗ごみ"]
["ひ","火鉢(陶器製・金属製・木製）","ヒバチ(トウキセイ・キンゾクセイ・モクセイ）","*中の灰は除いておく","粗ごみ"]
["ひ","百科事典","ヒャッカジテン","＊地域の集団回収があれば、そちらに排出","紙類"]
["ひ","日焼けマシーン","ヒヤケマシーン","＊サイズ判断品目　　　　　　　　　　　　　　　　　　　　　　　　　　　　　　　　　　　＊一部処理困難物あり","粗ごみ・大型ごみ"]
["ひ","表札",null,null,"粗ごみ"]
["ひ","ビリヤード台",null,"＊販売店・製造元に相談。または、ごみ処理（一般廃棄物）業者に依頼（石を使用しているため不可）\n＊玩具は収集可","処理困難物"]
["ひ","ビリヤードのキュー",null,null,"粗ごみ"]
["ひ","肥料",null,"少量づつ排出案内","一般ごみ"]
["ひ","瓶",null,"中身を除き軽くすすぐ","空き缶、びん・ガラス類"]
["ひ","瓶のふた（プラスチック製）",{"$f":"PHONETIC(B1348)","v":"ビンノフタ（プラスチックセイ）"},null,"ペットボトル・プラスチック製容器包装"]
["ひ","瓶のふた（金属製）","ビンノフタ（キンゾクセイ）",null,"粗ごみ"]
["ひ","ピンセット","ピンセット",null,"粗ごみ"]
["ひ","ピンセット（プラスチック製）","ピンセット（プラスチックセイ）",null,"一般ごみ"]
["ふ","ファイナライザー\n（画・音向上器）","ファイナライザー\n（ガ・オトコウジョウキ）","事業に伴うもの・業務用は不可","粗ごみ"]
["ふ","ファイル（紙製・プラスチック製）","ファイル（カミセイ・プラスチックセイ）","＊地域の集団回収があれば、そちらに排出\n＊プラスチックや金属を含むものは取り外すこと\n＊金具などの金属が取り外せない場合は粗ごみ","紙類"]
["ふ","ファイル（プラスチック製）",null,"＊金属を含むものは取り外すこと\n＊金具などの金属が取り外せない場合は粗ごみ","一般ごみ"]
["ふ","ファクシミリ（ファックス）",{"$f":"PHONETIC(B1355)","v":"ファクシミリ（ファックス）"},"事業に伴うもの・業務用は不可","粗ごみ"]
["ふ","ファクシミリ（ファックス）付電話機",{"$f":"PHONETIC(B1356)","v":"ファクシミリ（ファックス）ツキデンワキ"},null,"粗ごみ"]
["ふ","ファンシーケース　　　　　　　　　　　　　　（服・化粧品入れなど）",{"$f":"PHONETIC(B1357)","v":"ファンシーケース　　　　　　　　　　　　　　（フク・ケショウヒンイレナド）"},"サイズ判断品目","粗ごみ・大型ごみ"]
["ふ","ファンヒーター　　　　　　　　　　　　　　　　　（電気・ガス・灯油）",null,"灯油は抜く","粗ごみ"]
["ふ","フィギア",null,"袋に入らないものはサイズ判断で粗ごみへ排出","一般ごみ"]
["ふ","フィッシュロースター（電気式魚焼器）",{"$f":"PHONETIC(B1360)","v":"フィッシュロースター（デンキシキサカナヤキキ）"},"事業に伴うもの・業務用は不可","粗ごみ"]
["ふ","フィルム（写真用）",{"$f":"PHONETIC(B1361)","v":"フィルム（シャシンヨウ）"},null,"一般ごみ"]
["ふ","ブースターケーブル（自動車用品）",null,null,"粗ごみ"]
["ふ","ブーツ（靴）",null,null,"一般ごみ"]
["ふ","フードプロセッサー（調理器具）",{"$f":"PHONETIC(B1364)","v":"フードプロセッサー（チョウリキグ）"},null,"粗ごみ"]
["ふ","封筒",null,"＊地域の集団回収があれば、そちらに排出\n＊窓付き封筒の窓は外してペットボトル・プラスチック製容器包装の日に排出","紙類"]
["ふ","風鈴",null,null,"粗ごみ"]
["ふ","笛（プラスチック製）",null,null,"一般ごみ"]
["ふ","笛（木製・鉄製）",null,null,"粗ごみ"]
["ふ","フエルアルバム",null,"金具が付いていれば粗ごみ","一般ごみ"]
["ふ","フェンス（アルミ製）",null,"＊サイズ判断品目\n＊業者に依頼した場合は、処理まで依頼","粗ごみ・大型ごみ"]
["ふ","フェンス（鉄製・鋳物製）",null,"販売店・製造元に相談。または、ごみ処理（一般廃棄物）業者に依頼","処理困難物"]
["ふ","フェンダー（バイク・車部品）",null,"＊交換時に引き取り依頼／自動車・バイク部品、用品店に相談","市で処理しないもの"]
["ふ","フォーク（プラスチック製）",null,null,"一般ごみ"]
["ふ","フォーク（木製・金属製）",null,null,"粗ごみ"]
["ふ","複合機（インクジェット式）",null,"事業に伴うもの・業務用は不可","粗ごみ"]
["ふ","複合機（レーザー式）",null,"＊Ａ3対応機まで受付可\n＊事業に伴うもの・業務用は不可","粗ごみ"]
["ふ","ふすま",{"$f":"PHONETIC(B1377)","v":"フスマ"},"＊サイズ判断品目\n＊業者に工事を依頼した場合は、処理まで依頼\n＊臨時・持ち込みについては1回の申込につき10枚まで","粗ごみ・大型ごみ"]
["ふ","仏具（ろうそく立て・鐘など）",null,"位牌は不可","粗ごみ"]
["ふ","フック（プラスチック製）",{"$f":"PHONETIC(B1379)","v":"フック（プラスチックセイ）"},null,"一般ごみ"]
["ふ","フック（木製・金属製）",null,null,"粗ごみ"]
["ふ","ブックエンド（プラスチック製）",null,null,"一般ごみ"]
["ふ","ブックエンド（木製・金属製・陶器製）",null,null,"粗ごみ"]
["ふ","仏壇",null,"＊販売店・製造元に相談\n＊原型がわからないように１㍍以下に分解されている場合は受付可","市で処理しないもの"]
["ふ","筆（プラスチック製）",{"$f":"PHONETIC(B1384)","v":"フデ（プラスチックセイ）"},null,"一般ごみ"]
["ふ","筆（竹製・木製）","フデ（タケセイ・モクセイ）",null,"粗ごみ"]
["ふ","ブティックハンガー","ブティックハンガー","サイズ判断品目","粗ごみ・大型ごみ"]
["ふ","筆箱（紙製・布製・プラスチック製）","フデバコ（カミセイ・ヌノセイ・プラスチックセイ）",null,"一般ごみ"]
["ふ","筆箱（木製・金属製）","フデバコ（モクセイ・キンゾクセイ）",null,"粗ごみ"]
["ふ","布団・羽毛布団","フトン・ウモウブトン","＊圧縮袋での排出は不可\n＊一般ごみへの排出は不可","粗ごみ"]
["ふ","ふとんカバー","フトンカバー",null,"一般ごみ"]
["ふ","布団乾燥機","フトンカンソウキ",null,"粗ごみ"]
["ふ","踏み台（プラスチック製）","フミダイ（プラスチックセイ）","＊サイズ判断品目\n＊45㍑袋に収まる場合は、一般ごみへ排出　　　　　","粗ごみ・大型ごみ"]
["ふ","踏み台（木製・金属製）","フミダイ（モクセイ・キンゾクセイ）","サイズ判断品目","粗ごみ・大型ごみ"]
["ふ","フライパン","フライパン",null,"粗ごみ"]
["ふ","プライヤー（工具）","プライヤー（コウグ）",null,"粗ごみ"]
["ふ","ブラインド（プラスチック製）","ブラインド（プラスチックセイ）","＊サイズ判断品目\n＊45㍑袋に収まる場合は、一般ごみへ排出　　　　　","粗ごみ・大型ごみ"]
["ふ","ブラインド（木製・金属製）","ブラインド（モクセイ・キンゾクセイ）","サイズ判断品目","粗ごみ・大型ごみ"]
["ふ","ブラインドシャッター","ブラインドシャッター","販売店・製造元に相談。または、ごみ処理（一般廃棄物）業者に依頼","処理困難物"]
["ふ","プラグ（バイク・車部品）","プラグ（バイク・クルマブヒン）",null,"粗ごみ"]
["ふ","プラモデル","プラモデル","袋に入らないものはサイズ判断で粗大ごみへ排出","粗ごみ"]
["ふ","フラワースタンド（花台）プラスチック製","フラワースタンド（ハナダイ）プラスチックセイ","＊サイズ判断品目\n＊45㍑袋に収まる場合は、一般ごみへ排出　　　　　","粗ごみ・大型ごみ"]
["ふ","フラワースタンド（花台）木製・金属製","フラワースタンド（ハナダイ）モクセイ・キンゾクセイ","サイズ判断品目","粗ごみ・大型ごみ"]
["ふ","フラワースタンド（花台）鋳物製","フラワースタンド（ハナダイ）イモノセイ","販売店・製造元に相談。または、ごみ処理（一般廃棄物）業者に依頼","処理困難物"]
["ふ","ブランコ（室内子供用）","ブランコ（シツナイコドモヨウ）","サイズ判断品目","粗ごみ・大型ごみ"]
["ふ","プランター（プラスチック製）","プランター（プラスチックセイ）","＊45㍑袋に収まる場合は、一般ごみへ排出","粗ごみ"]
["ふ","プランター　　　　　　　　　　　　　　　　　　（木製・金属製・陶器製）","プランター　　　　　　　　　　　　　　　　　　（モクセイ・キンゾクセイ・トウキセイ）","サイズ判断品目","粗ごみ・大型ごみ"]
["ふ","フリーペーパー","フリーペーパー","＊地域の集団回収があれば、そちらに排出\n＊プラスチックで加工されている場合は一般ごみへ排出","紙類"]
["ふ","プリンター（インクジェット式）","プリンター（インクジェットシキ）","事業に伴うもの・業務用は不可","粗ごみ"]
["ふ","プリンター（レーザー式）",null,"＊A3対応機まで受付可\n＊事業に伴うもの・業務用は不可","粗ごみ"]
["ふ","プリント(ＯＡ用紙)",null,"＊地域の集団回収があれば、そちらに排出","紙類"]
["ふ","古着",{"$f":"PHONETIC(B1411)","v":"フルギ"},"＊集団回収がなければ、ためずに少量づつ一般ごみへ排出","一般ごみ"]
["ふ","ブロアー（工具類）","ブロアー（コウグルイ）",null,"粗ごみ"]
["ふ","フロアマット（車用品）",null,"袋に入らないものはサイズ判断で粗ごみへ排出","一般ごみ"]
["ふ","風呂イス（プラスチック製）","フロイス（プラスチックセイ）","袋に入らないものはサイズ判断で粗ごみへ排出","一般ごみ"]
["ふ","風呂イス（木製）","フロイス（モクセイ）",null,"粗ごみ"]
["ふ","フローター（簡易ボート）",null,"＊サイズ判断品目\n＊モーターは不可","粗ごみ・大型ごみ"]
["ふ","フローリング",null,"＊業者に依頼した場合は、処理まで依頼\n＊自分で取り換えを行った場合のみ木材判断で収集可","粗ごみ"]
["ふ","プロジェクションテレビ",null,"サイズ判断品目（リサイクル対象外品目）","粗ごみ・大型ごみ"]
["ふ","プロジェクター（家庭用）",null,"事業に伴うもの・業務用は不可","粗ごみ"]
["ふ","風呂釜","フロガマ","販売店・製造元に相談。または、ごみ処理（一般廃棄物）業者に依頼","処理困難物"]
["ふ","ブロック（コンクリート製）","ブロック（コンクリートセイ）","ごみ処理（一般廃棄物）業者に依頼","処理困難物"]
["ふ","ブロック（発泡スチロール）",null,null,"一般ごみ"]
["ふ","ブロック（プラスチック製）",null,null,"一般ごみ"]
["ふ","フロッピーディスク","フロッピーディスク",null,"一般ごみ"]
["ふ","フロッピーディスクのケース","フロッピーディスクノケース",null,"一般ごみ"]
["ふ","風呂のふた（プラスチック製）","フロノフタ（プラスチックセイ）","＊サイズ判断品目　　　　　　　　　　　　　　　　　　　　　　　　　　　　　　　　　　　＊45㍑袋に収まる場合は、一般ごみへ排出　　　　　","粗ごみ・大型ごみ"]
["ふ","風呂のふた（木製）","フロノフタ（モクセイ）","サイズ判断品目","粗ごみ・大型ごみ"]
["ふ","風呂ポンプ（家庭用）","フロポンプ（カテイヨウ）",null,"粗ごみ"]
["ふ","風呂マット","フロマット",null,"一般ごみ"]
["ふ","風呂マット（浴室用）","フロマット（ヨクシツヨウ）","＊サイズ判断品目　\n＊材質がスポンジ系で45㍑袋に収まる場合は、一般ごみへ排出","粗ごみ・大型ごみ"]
["ふ","風呂用モップ（金属製）",{"$f":"PHONETIC(B1431)","v":"フロヨウモップ（キンゾクセイ）"},null,"粗ごみ"]
["ふ","風呂用モップ（プラスチック製）",{"$f":"PHONETIC(B1432)","v":"フロヨウモップ（プラスチックセイ）"},"＊45㍑袋に収まる場合は、一般ごみへ排出　　　　　","粗ごみ"]
["ふ","フロントホーク（バイク部品）","フロントホーク（バイクブヒン）","＊交換時に引き取り依頼／自動車・バイク部品、用品店に相談","市で処理しないもの"]
["ふ","分電盤","ブンデンバン","建築廃材（設備機器）は工事の施工業者に引き取りを依頼","処理困難物"]
["ふ","分度器（プラスチック製）","ブンドキ（プラスチックセイ）",null,"一般ごみ"]
["ふ","分度器（金属製）",null,null,"粗ごみ"]
["ふ","噴霧器",null,"＊45㍑袋に収まる場合は、一般ごみへ排出\n＊金属が含まれるものは粗ごみへ排出","粗ごみ"]
["ふ","文鎮（金属製）","ブンチン（キンゾクセイ）",null,"粗ごみ"]
["へ","ヘアーアイロン","ヘアーアイロン",null,"粗ごみ"]
["へ","ペダルなし二輪車",null,"サイズ判断品目","粗ごみ・大型ごみ"]
["へ","ベッド(組み立て式）","ベッド(クミタテシキ）","＊サイズ判断品目（解体したものに限る）\n＊スプリングマットレス（指定品目1800円）は別扱い","粗ごみ・大型ごみ"]
["へ","ベッド（介護用）","ベッド（カイゴヨウ）","＊サイズ判断品目　（解体したものに限る\n＊組み立て式のものに限る（但しモーターは不可）\n＊一部しか解体できない場合は2ｔ車が入れる所まで出してもらう事　　　　　 　　　　　　　　　　＊スプリングマットレス（指定品目1800円）は別扱い　　　　　　　　　　　　　","粗ごみ・大型ごみ"]
["へ","ベッド折りたたみ式　　　　　　　　　　　　　",{"$f":"PHONETIC(B1443)","v":"ベッドオリタタミシキ　　　　　　　　　　　　　"},"サイズ判断品目　　　　　　　　　　　　　　　　　　　　　　　　　　　　　　　　　","粗ごみ・大型ごみ"]
["へ","ベッド折りたたみ式（スプリングマット付）","ベッドオリタタミシキ（スプリングマットツキ）","ベッド（サイズ判断）＋スプリングマットレス（指定品目￥1,800）","粗ごみ・大型ごみ"]
["へ","ベッド（システムロフトベッド）","ベッド（システムロフトベッド）","＊セット扱い不可（各品目ごとの受付）はしご・階段はセット扱い　　　　　　　　　　　　　　　　　＊（ベッド）サイズ判断品目（解体したものに限る）　　　　　　　　　　　　　　　　　＊スプリングマットレス（指定品目1800円）は別扱い","粗ごみ・大型ごみ"]
["へ","ベッドガード（別売り品）","ベッドガード（ベツウリヒン）","サイズ判断品目","粗ごみ・大型ごみ"]
["へ","ペットカート（折りたたみ式）",{"$f":"PHONETIC(B1447)","v":"ペットカート（オリタタミシキ）"},"折りたたんだ状態で排出","粗ごみ"]
["へ","ベッドカバー","ベッドカバー",null,"一般ごみ"]
["へ","ペットゲージ（プラスチック製）",{"$f":"PHONETIC(B1449)","v":"ペットゲージ（プラスチックセイ）"},"＊サイズ判断品目\n＊45㍑袋に収まる場合は、一般ごみへ排出","粗ごみ・大型ごみ"]
["へ","ペットゲージ（金属製）","ペットゲージ（キンゾクセイ）","サイズ判断品目","粗ごみ・大型ごみ"]
["へ","ペットサークル（プスチックラ製）",{"$f":"PHONETIC(B1451)","v":"ペットサークル（プスチックラセイ）"},"＊サイズ判断品目　　　　　　　　　　　　　　　　　　　　　　　　　　　　　　　　　　　＊45㍑袋に収まる場合は、一般ごみへ排出","粗ごみ・大型ごみ"]
["へ","ペットサークル（木製）",{"$f":"PHONETIC(B1452)","v":"ペットサークル（モクセイ）"},"サイズ判断品目","粗ごみ・大型ごみ"]
["へ","ペットサークル（金属製）","ペットサークル（キンゾクセイ）","＊サイズ判断品目\n＊檻（おり）または2㍍以上のものは不可","粗ごみ・大型ごみ"]
["へ","ペットの小屋（プラスチック製）","ペットノコヤ（プラスチックセイ）","＊サイズ判断品目　　　　　　　　　　　　　　　　　　　　　　　　　　　　　　　　　　　＊45㍑袋に収まる場合は、一般ごみへ排出","粗ごみ・大型ごみ"]
["へ","ペットの小屋（木製・金属製）","ペットノコヤ（モクセイ・キンゾクセイ）","＊サイズ判断品目\n＊檻（おり）または2㍍以上のものは収集及び処理不可","粗ごみ・大型ごみ"]
["へ","ペットのトイレ用砂","ペットノトイレヨウスナ",null,"一般ごみ"]
["へ","ペット用トイレ",{"$f":"PHONETIC(B1457)","v":"ペットヨウトイレ"},"袋に入らないものはサイズ判断で粗大ごみへ排出","一般ごみ"]
["へ","ペットボトル","ペットボトル","＊中身を除き軽く水洗いする\n＊ふた・ラベルは、はずして一緒に出す","ペットボトル・プラスチック製容器包装"]
["へ","ペットボトルのふた","ペットボトルノフタ",null,"ペットボトル・プラスチック製容器包装"]
["へ","ヘッドホン","ヘッドホン",null,"粗ごみ"]
["へ","ヘッドライト（車・バイク部品）","ヘッドライト（クルマ・バイクブヒン）","＊交換時に引き取り依頼／自動車・バイク部品、用品店に相談","市で処理しないもの"]
["へ","ヘッドレスト（車部品）","ヘッドレスト（クルマブヒン）","＊交換時に引き取り依頼／自動車・バイク部品、用品店に相談","市で処理しないもの"]
["へ","べニヤ板","ベニヤイタ","＊粗ごみサイズのみ","粗ごみ"]
["へ","ベビーカー（乳母車）","ベビーカー（ウバグルマ）","指定品目（折りたたみ式でないもの）","大型ごみ300円"]
["へ","ベビーカー（折りたたみ式）","ベビーカー（オリタタミシキ）","折りたたんだ状態で排出","粗ごみ"]
["へ","ベビーバス","ベビーバス","45㍑袋に収まる場合は、一般ごみへ排出","粗ごみ"]
["へ","ヘリウムボンベ","ヘリウムボンベ","販売店・製造元に相談","処理困難物"]
["へ","ヘリウムボンベ（スプレー式）","ヘリウムボンベ（スプレーシキ）","中身は除く(使い切る)","空き缶、びん・ガラス類"]
["へ","ベルト","ベルト","金具部分を取り除けば一般ごみ","粗ごみ"]
["へ","ヘルメット","ヘルメット","＊鉄製（軍用等）、バイク用、アメフト用（フェースガード付）は粗ごみ\n＊工事用、自転車用、スケート用、野球用等で留め具以外がプラスチック製のものは45㍑袋に入れて一般ごみへ排出可","粗ごみ"]
["へ","変圧器","ヘンアツキ","1辺が10㌢程度の小さなものに限る","粗ごみ"]
["へ","ペンキ（液体）中身のみ","ペンキ（エキタイ）ナカミノミ","販売店・製造元に相談\n（固まっていれば一般ごみへ排出、缶入りは粗ごみ）","処理困難物"]
["へ","便器","ベンキ","取り換えの際、処分まで依頼または販売店・製造元に相談","処理困難物"]
["へ","便器（介護用）","ベンキ（カイゴヨウ）","＊衛生・感染症予防の為、45㍑以下の袋に入れて排出\n＊金具部分がなく、45㍑以下の袋に入れば一般ごみ","粗ごみ"]
["へ","便器（簡易式）",null,"＊衛生・感染症予防の為、45㍑以下の袋に入れて排出\n＊金具部分がなく、45㍑以下の袋に入れば一般ごみ","粗ごみ"]
["へ","ペンキスプレー缶",null,"中身は使い切る","空き缶、びん・ガラス類"]
["へ","便座（洗浄機能、ヒーターなし）","ベンザ（センジョウキノウ、ヒーターナシ）","＊衛生・感染症予防の為、45㍑以下の袋に入れて排出\n＊金具部分がなく、45㍑以下の袋に入れば一般ごみ","一般ごみ"]
[null,"便座（洗浄機能、ヒーター付）",null,"＊衛生・感染症予防の為、45㍑以下の袋に入れて排出\n＊業者に依頼した場合は、処理まで依頼","粗ごみ"]
["へ","ペンチ（工具）",null,null,"粗ごみ"]
["へ","ベンチ","ベンチ","サイズ判断品目　　　　　　　　　　　　　　　　　　　　　　　　　　　　　　　　　　　　　＊一部処理困難物あり","粗ごみ・大型ごみ"]
["へ","弁当の容器（プラスチック製）","ベントウノヨウキ（プラスチックセイ）","中身を除き軽く水洗いする","ペットボトル・プラスチック製容器包装"]
["へ","弁当箱（プラスチック製・紙製）",null,null,"一般ごみ"]
["へ","弁当箱（金属製・木製・竹製）",null,null,"粗ごみ"]
["ほ","ホイール（車・バイク部品）",null,"＊交換時に引き取り依頼／自動車・バイク部品、用品店に相談","市で処理しないもの"]
["ほ","ホイールカバー（車部品）",null,"金具部分がなく、45㍑以下の袋に入れば一般ごみ","粗ごみ"]
["ほ","ボイラー","ボイラー","＊交換時に引き取り依頼　　　　　　　　　　　　　　　　　　　　　　　　　　　　　　　＊販売店・取扱店に相談","処理困難物"]
["ほ","方位磁石",null,null,"粗ごみ"]
["ほ","望遠鏡",null,"サイズ判断品目","粗ごみ・大型ごみ"]
["ほ","ほうき（プラスチック製）",{"$f":"PHONETIC(B1489)","v":"ホウキ（プラスチックセイ）"},"＊45㍑袋に収まる場合は、一般ごみへ排出","粗ごみ"]
["ほ","ほうき（金属製・竹製）","ホウキ（キンゾク製・タケセイフクセイ",null,"粗ごみ"]
["ほ","ほうきの柄（プラスチック製）","ホウキノエ（プラスチックセイ）","＊45㍑袋に収まる場合は、一般ごみへ排出","粗ごみ"]
["ほ","ほうきの柄（木製）","ホウキノエ（モクセイ）",null,"粗ごみ"]
["ほ","帽子（キャップ）","ボウシ（キャップ）",null,"一般ごみ"]
["ほ","防振版（ピアノの下に敷くもの）","ボウシンバン（ピアノノシタニシクモノ）","サイズ判断品目（ピアノの下に敷くもの）","粗ごみ・大型ごみ"]
["ほ","棒ずり（デッキブラシ）（プラ製）",{"$f":"PHONETIC(B1495)","v":"ボウズリ（デッキブラシ）（プラセイ）"},null,"粗ごみ"]
["ほ","棒ずり（デッキブラシ）（木製）","ボウズリ（デッキブラシ）（モクセイ）",null,"粗ごみ"]
["ほ","宝石類","ホウセキルイ",null,"粗ごみ"]
["ほ","包装紙",null,"＊地域の集団回収があれば、そちらに排出\n＊油や食品などで汚れている場合、一般ごみへ排出\n＊プラスチック・アルミで加工されている場合、一般ごみへ排出","紙類"]
["ほ","包丁","ホウチョウ","危険のないようにする","粗ごみ"]
["ほ","ボウリングの球","ボウリングノタマ","販売店・製造元に相談または、ごみ処理（一般廃棄物）業者に依頼","処理困難物"]
["ほ","ボウル（調理用）（プラスチック製）",{"$f":"PHONETIC(B1501)","v":"ボウル（チョウリヨウ）（プラスチックセイ）"},"45㍑袋に収まる場合は、一般ごみへ排出","粗ごみ"]
["ほ","ボウル（調理用）（金属製）","ボウル（チョウリヨウ）（キンゾクセイ）",null,"粗ごみ"]
["ほ","ホース","ホース","ワイヤー入りは粗ごみへ排出","一般ごみ"]
["ほ","ホースリール（プラスチック製）",{"$f":"PHONETIC(B1504)","v":"ホースリール（プラスチックセイ）"},"金具部分がなく、45㍑以下の袋に入れば一般ごみ","粗ごみ"]
["ほ","ホースリール（金属製）","ホースリール（キンゾクセイ）",null,"粗ごみ"]
["ほ","ボート（ゴム製）","ボート（ゴムセイ）","＊サイズ判断品目　　　　　　　　　　　　　　　　　　　　　　　　　　　　　　　　　　＊45㍑袋に収まる場合は、一般ごみへ排出","粗ごみ・大型ごみ"]
["ほ","ボート・ボート部品","ボート・ボートブヒン","販売店・製造元に相談または、ごみ処理（一般廃棄物）業者に依頼","処理困難物"]
["ほ","ホームベーカリー（家庭用）","ホームベーカリー（カテイヨウ）",null,"粗ごみ"]
["ほ","ポール（物干し竿）","ポール（モノホシサオ）","＊サイズ判断品目\n＊1㍍以上は3本1セット","粗ごみ・大型ごみ"]
["ほ","ボール（スポーツ用品）","ボール（スポーツヨウヒン）",null,"一般ごみ"]
["ほ","ボール（硬式野球用品）","ボール（コウシキヤキュウヨウヒン）",null,"粗ごみ"]
["ほ","ポールハンガー　　　　　　　　　　　　　　　（金属製・プラ製・木製）","ポールハンガー　　　　　　　　　　　　　　　（キンゾクセイ・プラセイ・モクセイ）","サイズ判断品目","粗ごみ・大型ごみ"]
["ほ","ボールペン（プラスチック製）","ボールペン（プラスチックセイ）",null,"一般ごみ"]
["ほ","ボールペン（金属製）","ボールペン（キンゾクセイ）",null,"粗ごみ"]
["ほ","ホーン（車・バイク部品）",null,null,"粗ごみ"]
["ほ","保温ジャー","ホオンジャー",null,"粗ごみ"]
["ほ","保温プレート","ホオンプレート",null,"粗ごみ"]
["ほ","木刀","ボクトウ",null,"粗ごみ"]
["ほ","ポケットコンピューター","ポケットコンピューター",null,"粗ごみ"]
["ほ","歩行器（赤ちゃん用）","ホコウキ（アカチャンヨウ）",null,"粗ごみ"]
["ほ","歩行器（介護用）（歩行補助車含む）",{"$f":"PHONETIC(B1521)","v":"ホコウキ（カイゴヨウ）（ホコウホジョクルマフクム）"},"サイズ判断品目","粗ごみ・大型ごみ"]
["ほ","ボタン（プラスチック製）",{"$f":"PHONETIC(B1522)","v":"ボタン（プラスチックセイ）"},null,"一般ごみ"]
["ほ","ボタン（金属製・木製）","ボタン（キンゾクセイ・モクセイ）",null,"粗ごみ"]
["ほ","ボタン電池・乾電池","ボタンデンチ・カンデンチ","＊市内の公共施設や協力店舗で実施する水銀使用廃製品の分別回収にご協力ください。\n＊小型充電式電池は、家電小売店のリサイクルBOXへお出しください。","粗ごみ"]
["ほ","補聴器","ホチョウキ",null,"粗ごみ"]
["ほ","ホッチキス","ホッチキス",null,"粗ごみ"]
["ほ","ホッチキスの針","ホッチキスノハリ",null,"粗ごみ"]
["ほ","ポット（保温用）","ポット（ホオンヨウ）",null,"粗ごみ"]
["ほ","ホットカーペット","ホットカーペット","サイズ判断品目","粗ごみ・大型ごみ"]
["ほ","ホットサンドメーカー","ホットサンドメーカー",null,"粗ごみ"]
["ほ","ホットパネル","ホットパネル",null,"粗ごみ・大型ごみ"]
["ほ","ホットプレート","ホットプレート",null,"粗ごみ"]
["ほ","ホッピング","ホッピング","サイズ判断品目","粗ごみ・大型ごみ"]
["ほ","ボディボード（波乗り用）","ボディボード（ナミノリヨウ）","サイズ判断品目","粗ごみ・大型ごみ"]
["ほ","哺乳瓶（ガラス製）","ホニュウビン（ガラスセイ）","ガラスのみ（乳首は一般ごみへ排出）","空き缶、びん・ガラス類"]
["ほ","哺乳瓶（プラスチック製）","ホニュウビン（プラスチックセイ）",null,"一般ごみ"]
["ほ","ポリタンク","ポリタンク","45㍑袋に収まらない場合は粗ごみ（中身は除く）","一般ごみ"]
["ほ","ポリバケツ","ポリバケツ","45㍑袋に収まらない場合は粗ごみ","一般ごみ"]
["ほ","保冷庫（小型・野菜・米）",null,"＊家電リサイクル券センター：0120-319640に相談\n＊リサイクル対象外はサイズ判断品目　　　　　　　　　　　　　　　　　　　　　　　　　　　　　　　　　　　　　　　　　　　　　　　　　　　　　　　　　　　　　　　　　　　　　　　　　（コンプレッサー式は販売元・製造元に相談）","家電リサイクル品目\n粗ごみ・大型ごみ\n処理困難物"]
["ほ","保冷剤",{"$f":"PHONETIC(B1540)","v":"ホレイザイ"},null,"一般ごみ"]
["ほ","ホワイトボード","ホワイトボード","＊サイズ判断品目（家庭用に限る）\n＊大型のスタンド付は解体条件","粗ごみ・大型ごみ"]
["ほ","盆（プラスチック製）","ボン（プラスチックセイ）","45㍑袋に収まる場合は、一般ごみへ排出","粗ごみ"]
["ほ","盆（木製・金属製）","ボン（モクセイ・キンゾクセイ）",null,"粗ごみ"]
["ほ","本立て（プラスチック製）","ホンタテ（プラスチックセイ）","45㍑袋に収まる場合は、一般ごみへ排出","粗ごみ"]
["ほ","本立て（金属製・木製）","ホンタテ（キンゾクセイ・モクセイ）",null,"粗ごみ"]
["ほ","本棚（プラスチック製）","ホンダナ（プラスチックセイ）","＊サイズ判断品目　　　　　　　　　　　　　　　　　　　　　　　　　　　　　　　　　　　＊45㍑袋に収まる場合は、一般ごみへ排出","粗ごみ・大型ごみ"]
["ほ","本棚（学習机用）","ホンダナ（ガクシュウツクエヨウ）","サイズ判断品目","粗ごみ・大型ごみ"]
["ほ","本棚（金属製・木製）","ホンダナ（キンゾクセイ・モクセイ）","サイズ判断品目","粗ごみ・大型ごみ"]
["ほ","本箱（プラスチック製）","ホンバコ（プラスチックセイ）","＊サイズ判断品目　　　　　　　　　　　　　　　　　　　　　　　　　　　　　　　　　　　　＊45㍑袋に収まる場合は、一般ごみへ排出","粗ごみ・大型ごみ"]
["ほ","本棚（木複合製）","ホンダナ（モクフクゴウセイ）","サイズ判断品目","粗ごみ・大型ごみ"]
["ほ","ポンプ（池用）","ポンプ（イケヨウ）","販売店・製造元に相談または、ごみ処理（一般廃棄物）業者に依頼","処理困難物"]
["ほ","ボンボンベッド",{"$f":"PHONETIC(B1552)","v":"ボンボンベッド"},null,"粗ごみ"]
["ま","マージャン台（手動式）",{"$f":"PHONETIC(B1553)","v":"マージャンダイ（シュドウシキ）"},"サイズ判断品目","粗ごみ・大型ごみ"]
["ま","マージャン台（電動式）",{"$f":"PHONETIC(B1554)","v":"マージャンダイ（デンドウシキ）"},"指定品目","大型ごみ1800円"]
["ま","マージャンパイ",{"$f":"PHONETIC(B1555)","v":"マージャンパイ"},null,"粗ごみ"]
["ま","マージャンマット","マージャンマット","45㍑袋に収まる場合は、一般ごみへ排出","粗ごみ"]
["ま","マイク","マイク",null,"粗ごみ"]
["ま","マイクスタンド","マイクスタンド","サイズ判断品目","粗ごみ・大型ごみ"]
["ま","マウス（パソコン用）","マウス（パソコンヨウ）","キーボードやマウス、スピーカー、コード類などパソコン購入時に同梱されていた付属品はパソコンと一緒にリサイクルに出せます","粗ごみ"]
["ま","マウスパッド","マウスパッド",null,"一般ごみ"]
["ま","マガジンラック（プラスチック製）","マガジンラック（プラスチックセイ）","＊サイズ判断品目　　　　　　　　　　　　　　　　　　　　　　　　　　　　　　　　　　　＊45㍑袋に収まる場合は、一般ごみへ排出","粗ごみ・大型ごみ"]
["ま","マガジンラック（籐製・木製）","マガジンラック（トウセイ・モクセイ）","サイズ判断品目","粗ごみ・大型ごみ"]
["ま","マグネット","マグネット",null,"粗ごみ"]
["ま","枕","マクラ",null,"粗ごみ"]
["ま","枕木","マクラギ","丸太・角材／長さ１㍍未満　直径・1辺10㌢未満\n板状／長さ1㍍未満　厚さ5㌢未満　幅30㌢未満に限る","粗ごみ"]
["ま","まさかり","マサカリ",null,"粗ごみ"]
["ま","マジック（プラスチック製）","マジック（プラスチックセイ）",null,"一般ごみ"]
["ま","マジック（金属製）","マジック（キンゾクセイ）",null,"粗ごみ"]
["ま","マジックテープ","マジックテープ",null,"一般ごみ"]
["ま","マスク","マスク","金属が含まれるものは粗ごみへ排出","一般ごみ"]
["ま","マッサージ機（ソファー式・ベッド式以外）　座椅子式（脚なし）・ダイエットチェア","マッサージキ（ソファーシキ・ベッドシキイガイ）　ザイスシキ（アシナシ）・ダイエットチェア","サイズ判断品目","粗ごみ・大型ごみ"]
["ま","マッサージ機　　　　　　　　　　　　　　　　（椅子式・ソファー式・ベッド式）",{"$f":"PHONETIC(B1572)","v":"マッサージキ　　　　　　　　　　　　　　　　（イスシキ・ソファーシキ・ベッドシキ）"},"＊指定品目\n＊座椅子式（脚なし）・折りたたみ式はサイズ判断","大型ごみ1200円"]
["ま","マッチ",{"$f":"PHONETIC(B1573)","v":"マッチ"},"未使用のものは水で湿らせる","一般ごみ"]
["ま","マットレス（車用品）",null,null,"粗ごみ"]
["ま","松葉杖",null,null,"粗ごみ"]
["ま","窓ガラス",null,"新聞紙に包んでキケンと表示","空き缶、びん・ガラス類"]
["ま","窓ガラス（１．２ｍを超えるもの）",null,"家庭ごみ業務第1課へ相談","空き缶、びん・ガラス類"]
["ま","窓ガラス（車部品）",null,"＊交換時に引き取り依頼／自動車・バイク部品、用品店に相談","市で処理しないもの"]
["ま","窓枠（サッシ）",null,"＊サイズ判断品目","粗ごみ・大型ごみ"]
["ま","まな板（プラスチック製）",null,null,"一般ごみ"]
["ま","まな板（木製）",{"$f":"PHONETIC(B1581)","v":"マナイタ（モクセイ）"},null,"粗ごみ"]
["ま","マネキン（裁縫用）",null,"サイズ判断品目","粗ごみ・大型ごみ"]
["ま","マフラー（車・バイク部品）",{"$f":"PHONETIC(B1583)","v":"マフラー（クルマ・バイクブヒン）"},"＊交換時に引き取り依頼／自動車・バイク部品、用品店に相談","市で処理しないもの"]
["ま","マフラーカッター（車用品）",null,null,"粗ごみ"]
["ま","魔法瓶",{"$f":"PHONETIC(B1585)","v":"マホウビン"},null,"粗ごみ"]
["ま","丸太",{"$f":"PHONETIC(B1586)","v":"マルタ"},"＊長さ1㍍未満、直径10㌢未満のものに限る","粗ごみ"]
["ま","まわり灯籠（プラスチック製・木製）","マワリトウロウ（プラスチックセイ・モクセイ）",null,"粗ごみ"]
["ま","万年筆","マンネンヒツ",null,"粗ごみ"]
["ま","万歩計","マンポケイ",null,"粗ごみ"]
["み","ミートスライサー（調理器具）","ミートスライサー（チョウリキグ）","販売店・製造元に相談または、ごみ処理（一般廃棄物）業者に依頼","処理困難物"]
["み","ミキサー","ミキサー",null,"粗ごみ"]
["み","ミシン（卓上型）","ミシン（タクジョウガタ）","＊指定品目　　　　　　　　　　　　　　　　　　　　　　　　　　　　　　　　　　　　　＊子供用おもちゃは粗ごみ(メーカーで判断）","粗ごみ・大型ごみ300円"]
["み","ミシン（足踏み式モーター無）","ミシン（アシブミシキモーターナシ）","＊指定品目　　　　　　　　　　　　　　　　　　　　　　　　　　　　　　　　　　　　　　　　＊事業に伴うもの・業務用・モーター付・動力ミシンは不可","大型ごみ600円"]
["み","ミシンの台（金属複合製）","ミシンノダイ（キンゾクフクゴウセイ）","＊サイズ判断品目\n＊事業に伴うもの・業務用は不可","粗ごみ・大型ごみ"]
["み","ミシンの台（木製）","ミシンノダイ（モクセイ）","サイズ判断品目","粗ごみ・大型ごみ"]
["み","水切りかご（プラスチック製）　","ミズキリカゴ（プラスチックセイ）　","45㍑袋に収まる場合は、一般ごみへ排出","粗ごみ"]
["み","水切りかご（金属製）　","ミズキリカゴ（キンゾクセイ）　",null,"粗ごみ"]
["み","水切り棚（プラスチック製）","ミズキリダナ（プラスチックセイ）","45㍑袋に収まる場合は、一般ごみへ排出","粗ごみ"]
["み","水切り棚（金属製）","ミズキリダナ（キンゾクセイ）",null,"粗ごみ"]
["み","水切り容器（プラスチック製）","ミズキリヨウキ（プラスチックセイ）","45㍑袋に収まる場合は、一般ごみへ排出","粗ごみ"]
["み","水屋","ミズヤ","サイズ判断品目","粗ごみ・大型ごみ"]
["み","ミラー（車純正部品）","ミラー（クルマジュンセイブヒン）","＊交換時に引き取り依頼／自動車・バイク部品、用品店に相談\n＊後付品（外品）は粗ごみ","市で処理しないもの"]
["み","ミラー（バイク用品）","ミラー（バイクヨウシナ）",null,"粗ごみ"]
["む","麦わら帽子","ムギワラボウシ",null,"一般ごみ"]
["む","虫かご（プラスチック製）","ムシカゴ（プラスチックセイ）","45㍑袋に収まる場合は、一般ごみへ排出","粗ごみ"]
["む","虫かご（木製）","ムシカゴ（モクセイ）",null,"粗ごみ"]
["む","蒸し器（調理器具）","ムシキ（チョウリキグ）",null,"粗ごみ"]
["む","虫ピン","ムシピン",null,"粗ごみ"]
["む","むしろ","ムシロ","サイズ判断品目","粗ごみ・大型ごみ"]
["む","無線機","ムセンキ",null,"粗ごみ"]
["む","無線機のアンテナ",null,"縦支柱と横支柱で1セット扱い　","粗ごみ・大型ごみ"]
["め","目打ち（手芸用）",{"$f":"PHONETIC(B1612)","v":"メウチ（シュゲイヨウ）"},null,"粗ごみ"]
["め","めがね","メガネ",null,"粗ごみ"]
["め","目覚まし時計","メザマシドケイ",null,"粗ごみ"]
["め","メジャー（巻尺）","メジャー（マキシャク）",null,"粗ごみ"]
["め","メラミン食器","メラミンショッキ",null,"一般ごみ"]
["め","綿棒","メンボウ",null,"一般ごみ"]
["も","毛布","モウフ",null,"粗ごみ"]
["も","モーター（プラモデル用）","モーター（プラモデルヨウ）",null,"粗ごみ"]
["も","木材","モクザイ","丸太・角材／長さ1㍍未満　直径・1辺10㌢未満　　　　　　　　　　　　　　　　　　板状／長さ1㍍未満　厚さ5㌢未満　幅30㌢未満に限る","粗ごみ"]
["も","模造刀","モゾウトウ","サイズ判断品目","粗ごみ・大型ごみ"]
["も","餅つき機（家庭用）","モチツキキ（カテイヨウ）","事業に伴うもの・業務用は不可","粗ごみ"]
["も","モップ（プラスチック製）","モップ（プラスチックセイ）","＊金属を含まないもので45㍑袋に収まる場合は、一般ごみへ排出","粗ごみ"]
["も","モップ（木製・金属製）","モップ（キセイ・キンゾクセイ）",null,"粗ごみ"]
["も","モップ絞り機","モップシボリキ","金属を含まないもので45㍑袋に収まる場合は、一般ごみへ排出","粗ごみ"]
["も","モデルガン","モデルガン",null,"粗ごみ"]
["も","モニター","モニター","サイズ判断品目","粗ごみ・大型ごみ"]
["も","モニター（パソコン用）","モニター（パソコンヨウ）","【リサイクル対象品】メーカーまたは一般社団法人パソコン３Ｒ推進協会：03-5282-7685に問い合わせ。","ＰＣリサイクル品目"]
["も","物置（１㍍未満）","モノオキ（１㍍ミマン）",null,"粗ごみ"]
["も","物置（１㍍以上２㍍未満）","モノオキ（１㍍イジョウ２㍍ミマン）","＊家庭用組み立て式で解体したものに限る\n（一辺が2㍍以上のものは不可）　　　　","大型ごみ900円"]
["も","ものさし（プラスチック製）","モノサシ（プラスチックセイ）","45㍑袋に入らなければ粗ごみ","一般ごみ"]
["も","ものさし（竹製・金属製）","モノサシ（タケセイ・キンゾクセイ）","サイズ判断品目","粗ごみ・大型ごみ"]
["も","物干し竿（竹製・金属製）","モノホシサオ（タケセイ・キンゾクセイ）","＊サイズ判断品目\n＊1㍍以上は大型（3本1セット）","粗ごみ・大型ごみ"]
["も","物干し竿スタンド（プラスチック製）","モノホシサオスタンド（プラスチックセイ）","＊サイズ判断品目（2本1点）\n＊45㍑袋に収まる場合は、一般ごみへ排出","粗ごみ・大型ごみ"]
["も","物干しスタンド（金属製）","モノホシスタンド（キンゾクセイ）","サイズ判断品目（2本1点）","粗ごみ・大型ごみ"]
["も","物干し台（コンクリート製）支柱無","モノホシダイ（コンクリートセイ）シチュウナシ","販売店・製造元に相談または、ごみ処理（一般廃棄物）業者に依頼","処理困難物"]
["も","物干し台（コンクリート製）支柱有り","モノホシダイ（コンクリートセイ）シチュウアリ","販売店・製造元に相談または、ごみ処理（一般廃棄物）業者に依頼　　　　　　　　　　　　　　　　　　＊支柱のみの場合は収集可（2本1点）","処理困難物"]
["も","物干し台（プラスチック製）　　　　　　　　　　　　　　支柱無","モノホシダイ（プラスチックセイ）　　　　　　　　　　　　　　シチュウナシ","＊中の水は抜く\n＊45㍑袋に収まる場合は、一般ごみへ排出","粗ごみ"]
["も","物干し台（プラスチック製）　　　　　　　　　　　　　　支柱有り",null,"サイズ判断品目（2本1点）","粗ごみ・大型ごみ"]
["も","物干し台の支柱",{"$f":"PHONETIC(B1640)","v":"モノホシダイノシチュウ"},"サイズ判断品目（2本1点）","粗ごみ・大型ごみ"]
["も","もみがら",{"$f":"PHONETIC(B1641)","v":"モミガラ"},null,"一般ごみ"]
["も","銛（もり）",{"$f":"PHONETIC(B1642)","v":"モリ（モリ）"},"＊鋭利部分の保護条件　　　　　　　　　　　　　　　　　　　　　　　　　　　　　　\n＊一般用（2㍍未満）に限る","粗ごみ"]
["も","もろぶた（餅つきの時の木箱）",{"$f":"PHONETIC(B1643)","v":"モロブタ（モチツキノトキノキバコ）"},"サイズ判断品目","粗ごみ・大型ごみ"]
["も","紋掛け（衣桁）",null,"サイズ判断品目","粗ごみ・大型ごみ"]
["も","門扉（鉄製・鋳物製）",{"$f":"PHONETIC(B1645)","v":"モンピ（テツセイ・イモノセイ）"},"販売店・製造元に相談または、ごみ処理（一般廃棄物）業者に依頼","処理困難物"]
["も","門扉（木製・アルミ製）",null,"＊サイズ判断品目（セット扱い可）\n＊業者に依頼した場合は、処理まで依頼","粗ごみ・大型ごみ"]
["や","矢（競技用）",null,"＊専用ケースに入れても排出可","粗ごみ"]
["や","やかん",{"$f":"PHONETIC(B1648)","v":"ヤカン"},null,"粗ごみ"]
["や","焼肉コンロ",{"$f":"PHONETIC(B1649)","v":"ヤキニクコンロ"},null,"粗ごみ"]
["や","焼肉プレート",{"$f":"PHONETIC(B1650)","v":"ヤキニクプレート"},null,"粗ごみ"]
["や","薬剤（液体）",null,"販売店・製造元に相談","市で処理しないもの"]
["や","薬品の瓶（飲食用以外）",{"$f":"PHONETIC(B1652)","v":"ヤクヒンノビン（インショクヨウイガイ）"},"中身は除き軽くすすぐ","空き缶、びん・ガラス類"]
["や","柳行李（やなぎごうり）",{"$f":"PHONETIC(B1653)","v":"ヤナギコウリ（ヤナギゴウリ）"},"竹・籐・柳などを箱の形にあんだもの","粗ごみ"]
["や","屋根瓦",{"$f":"PHONETIC(B1654)","v":"ヤネガワラ"},"ごみ処理（一般廃棄物）業者に依頼","処理困難物"]
["や","ヤス（漁具）",{"$f":"PHONETIC(B1655)","v":"ヤス（リョウグ）"},"サイズ判断品目","粗ごみ・大型ごみ"]
["ゆ","有機ＥＬテレビ",null,"【家電リサイクル法対象品目】家電小売店に依頼または財団法人　　　　　　家電製品協会（家電リサイクル券センター：0120-319640）に問い合わせ","家電リサイクル品目"]
["ゆ","有刺鉄線",{"$f":"PHONETIC(B1657)","v":"ユウシテッセン"},"危険がないように段ボールなどに入れて排出","粗ごみ"]
["ゆ","ＵＳＢメモリー（パソコン用）",{"$f":"PHONETIC(B1658)","v":"ＵＳＢメモリー（パソコンヨウ）"},null,"粗ごみ"]
["ゆ","Ｕ字ロック（バイク・自転車用品）",{"$f":"PHONETIC(B1659)","v":"Ｕジロック（バイク・ジテンシャヨウヒン）"},null,"粗ごみ"]
["ゆ","ＵＰＳ（小型無停電電源装置）",{"$f":"PHONETIC(B1660)","v":"ＵＰＳ（小型無停電電源装置）"},"中身の一部は「電池」リサイクル対象品（外側のみ受付可）","粗ごみ"]
["ゆ","郵便受け（プラスチック製）",{"$f":"PHONETIC(B1661)","v":"ユウビンウケ（プラスチックセイ）"},"45㍑袋に収まる場合は、一般ごみへ排出","粗ごみ"]
["ゆ","郵便受け（木製・金属製）","ユウビンウケ（モクセイ・キンゾクセイ）","サイズ判断品目","粗ごみ・大型ごみ"]
["ゆ","郵便受け（鋳物製）","ユウビンウケ（イモノセイ）","販売店・製造元に相談または、ごみ処理（一般廃棄物）業者に依頼","処理困難物"]
["ゆ","湯たんぽ（プラスチック製）","ユタンポ（プラスチックセイ）",null,"一般ごみ"]
["ゆ","湯たんぽ（金属製）","ユタンポ（キンゾクセイ）",null,"粗ごみ"]
["ゆ","指輪","ユビワ",null,"粗ごみ"]
["ゆ","弓","ユミ","サイズ判断品目","粗ごみ・大型ごみ"]
["ゆ","ゆりかご（ベビーラック）","ユリカゴ（ベビーラック）",null,"粗ごみ"]
["ゆ","湯沸かし器","ユワカシキ","＊事業に伴うもの・業務用は不可\n＊電池を使用しているものは電池を抜いて排出\n＊業者に依頼した場合は、処理まで依頼","粗ごみ"]
["よ","洋服かけ",{"$f":"PHONETIC(B1670)","v":"ヨウフクカケ"},"サイズ判断品目","粗ごみ"]
["よ","ヨーグルトの容器",null,"リサイクルに向かない紙類のため一般ごみ","一般ごみ"]
["よ","浴槽",{"$f":"PHONETIC(B1672)","v":"ヨクソウ"},"販売店・取扱店等に相談または、ごみ処理（一般廃棄物）業者に依頼","処理困難物"]
["よ","よしず","ヨシズ","＊サイズ判断品目\n＊45㍑袋に収まる場合は、一般ごみへ排出","粗ごみ・大型ごみ"]
["ら","ライター","ライター","＊ガスは使い切る\n＊100円ライターは１日ほど水に浸してから一般ごみへ排出","粗ごみ"]
["ら","ライティングデスク","ライティングデスク","＊サイズ判断品目\n＊イスは別扱い","粗ごみ・大型ごみ"]
["ら","ラグマット","ラグマット","＊サイズ判断品目\n＊排出時に切断されていても、元のサイズでの受付可","粗ごみ・大型ごみ"]
["ら","ラケット（競技用）","ラケット（キョウギヨウ）",null,"粗ごみ"]
["ら","ラジエーター　　　　　　　　　　　　　　　　　（車・ボートなどの部品）",null,"＊交換時に引き取り依頼／自動車・バイク・ボート部品、用品店に相談","市で処理しないもの"]
["ら","ラジオ",{"$f":"PHONETIC(B1679)","v":"ラジオ"},null,"粗ごみ"]
["ら","ラジカセ",{"$f":"PHONETIC(B1680)","v":"ラジカセ"},null,"粗ごみ"]
["ら","ラック",null,"サイズ判断品目","粗ごみ・大型ごみ"]
["ら","ラップ",{"$f":"PHONETIC(B1682)","v":"ラップ"},"家庭で使用したものは一般ごみへ排出","ペットボトル・プラスチック製容器包装"]
["ら","ラタンキャリーバッグ",null,null,"粗ごみ"]
["ら","ラティス（プラスチック製）（園芸用）",null,"＊サイズ判断品目\n＊45㍑袋に収まる場合は、一般ごみへ排出","粗ごみ・大型ごみ"]
["ら","ラティス（木製）（園芸用）",null,"サイズ判断品目","粗ごみ・大型ごみ"]
["ら","ラベルライター（文具）",null,null,"粗ごみ"]
["ら","ラミネートチューブ（プラスチック製）",{"$f":"PHONETIC(B1687)","v":"ラミネートチューブ（プラスチックセイ）"},"中身を除き軽く水洗いする","ペットボトル・プラスチック製容器包装"]
["ら","ラミネートチューブ（金属製）",null,null,"粗ごみ"]
["ら","ＬＡＮケーブル",null,null,"粗ごみ"]
["ら","ランドセル",{"$f":"PHONETIC(B1690)","v":"ランドセル"},null,"一般ごみ"]
["ら","ランニングマシーン",null,"指定品目（ウォーカー含む）","大型ごみ600円"]
["ら","ランプ",null,null,"粗ごみ"]
["ら","欄間（建具）",null,"＊サイズ判断品目\n＊業者に依頼した場合は、処理まで依頼","粗ごみ・大型ごみ"]
["ら","落款（らっかん）",null,null,"粗ごみ"]
["り","リアボックス（バイク用品）",null,null,"粗ごみ"]
["り","リール（釣り用品）",null,null,"粗ごみ"]
["り","リクライニングチェア",{"$f":"PHONETIC(B1697)","v":"リクライニングチェア"},"サイズ判断品目","粗ごみ・大型ごみ"]
["り","リチウムイオン電池",{"$f":"PHONETIC(B1698)","v":"リチウムイオンデンチ"},"＊小型充電式電池は、家電小売店のリサイクルBOXへお出しください。","市で処理しないもの"]
["り","リモコン",null,null,"粗ごみ"]
["り","リヤカー",{"$f":"PHONETIC(B1700)","v":"リヤカー"},"販売店・取扱店等に相談または、ごみ処理（一般廃棄物）業者に依頼","処理困難物"]
["り","リュックサック","リュックサック","金具が付いていれば粗ごみ","一般ごみ"]
["り","旅行用キャリーバック　　　　　　　　　　　（スーツケース）","リョコウヨウキャリーバック　　　　　　　　　　　（スーツケース）","サイズ判断品目","粗ごみ・大型ごみ"]
["り","旅行用キャリー","リョコウヨウキャリー","サイズ判断品目","粗ごみ・大型ごみ"]
["る","ルーター（パソコン用）","ルーター（パソコンヨウ）",null,"粗ごみ"]
["る","ルーフボックス（車用品）","ルーフボックス（クルマヨウヒン）","＊サイズ判断品目（切断して1㍍未満の場合は点数ごとに受付）【粗】\n＊切断して1㍍以上の場合は元サイズで受付【大型】\n＊2㍍以上は不可","粗ごみ・大型ごみ"]
["る","ルーペ（天眼鏡）","ルーペ（テンガンキョウ）",null,"粗ごみ"]
["る","ルームミラー（後付品）自動車用",null,null,"粗ごみ"]
["れ","冷温庫",{"$f":"PHONETIC(B1708)","v":"レイオンコ"},"＊家電リサイクル券センター：0120-319640に相談\n＊リサイクル対象外はサイズ判断品目\n（コンプレッサー式は販売元・製造元に相談）","家電リサイクル品目\n粗ごみ・大型ごみ\n処理困難物"]
["れ","冷水器","レイスイキ","販売店・製造元に相談。または、ごみ処理（一般廃棄物）業者に依頼\n　（コンプレッサー処理不可の為）","処理困難物"]
["れ","冷蔵庫","レイゾウコ","【家電リサイクル法対象品目】家電小売店に依頼または財団法人\n家電製品協会（家電リサイクル券センター：0120-319640）に問い合わせ","家電リサイクル品目"]
["れ","冷凍庫","レイトウコ","【家電リサイクル法対象品目】家電小売店に依頼または財団法人\n家電製品協会（家電リサイクル券センター：0120-319640）に問い合わせ","家電リサイクル品目"]
["れ","冷風機","レイフウキ","＊指定品目\n＊エアコン・クーラーは家電リサイクル対象品\n＊コンプレッサー式は不可","大型ごみ600円\n\n処理困難物"]
["れ","冷風扇","レイフウセン","＊指定品目\n＊エアコン・クーラーは家電リサイクル対象品\n＊コンプレッサー式は不可","大型ごみ600円\n\n処理困難物"]
["れ","レーザーディスク盤",null,null,"一般ごみ"]
["れ","レーザーディスクプレーヤー",null,null,"粗ごみ"]
["れ","レース（カーテン）",null,null,"一般ごみ"]
["れ","レコード盤",{"$f":"PHONETIC(B1717)","v":"レコードバン"},null,"一般ごみ"]
["れ","レコードプレーヤー","レコードプレーヤー",null,"粗ごみ"]
["れ","レシート",null,"リサイクルに向かない紙類のため一般ごみ","一般ごみ"]
["れ","レジャーシート","レジャーシート","45㍑袋に入らなければ粗ごみ","一般ごみ"]
["れ","レジャーテーブル（椅子付）","レジャーテーブル（イスツキ）","サイズ判断品目","粗ごみ・大型ごみ"]
["れ","レターケース","レターケース","サイズ判断品目","粗ごみ・大型ごみ"]
["れ","レリーフ（銅板製）","レリーフ（ドウバンセイ）","サイズ判断品目（厚み2㍉程度）","粗ごみ・大型ごみ"]
["れ","煉瓦（れんが）",{"$f":"PHONETIC(B1724)","v":"レンガ（レンガ）"},"ごみ処理（一般廃棄物）業者に依頼","処理困難物"]
["れ","練習用ウィッグ（美容師の練習用人形）",{"$f":"PHONETIC(B1725)","v":"レンシュウヨウウィッグ（ビヨウシノレンシュウヨウニンギョウ）"},"事業に伴うものは不可","粗ごみ"]
["れ","レンジ台（木製品・金属製）",{"$f":"PHONETIC(B1726)","v":"レンジダイ（モクセイヒン・キンゾクセイ）"},"サイズ判断品目","粗ごみ・大型ごみ"]
["れ","レンジフード",{"$f":"PHONETIC(B1727)","v":"レンジフード"},"＊サイズ判断品目\n＊業者に依頼した場合は、処理まで依頼","粗ごみ・大型ごみ"]
["れ","レンズ（カメラ用）",null,null,"粗ごみ"]
["れ","レンズのみ（プラスチック製）",null,null,"一般ごみ"]
["れ","レンズのみ（ガラス）",null,null,"空き缶、びん・ガラス類"]
["れ","レンズカバー（車・バイク部品）",null,"＊交換時に引き取り依頼／自動車・バイク部品、用品店に相談","市で処理しないもの"]
["れ","練炭火鉢",{"$f":"PHONETIC(B1732)","v":"レンタンヒバチ"},"中の灰は除いておく","粗ごみ"]
["ろ","炉（電気）",null,null,"処理困難物"]
["ろ","ろうそく",{"$f":"PHONETIC(B1734)","v":"ロウソク"},null,"一般ごみ"]
["ろ","ローボード（木製）","ローボード（モクセイ）","サイズ判断品目","粗ごみ・大型ごみ"]
["ろ","ローラー式清掃用具","ローラーシキセイソウヨウグ",null,"粗ごみ"]
["ろ","ローラースケート","ローラースケート",null,"粗ごみ"]
["ろ","ローラーブレード","ローラーブレード",null,"粗ごみ"]
["ろ","ロールスクリーン（カーテン）","ロールスクリーン（カーテン）","サイズ判断品目","粗ごみ・大型ごみ"]
["ろ","ろ過機（24時間風呂）","ロカキ（24ジカンフロ）","＊1㍍未満のものに限る\n＊業者に依頼した場合は、処理まで依頼","粗ごみ"]
["ろ","ロッカー（金属製・木製）",{"$f":"PHONETIC(B1741)","v":"ロッカー（キンゾクセイ・モクセイ）"},"サイズ判断品目（家庭用に限る）","粗ごみ・大型ごみ"]
["ろ","六角レンチ（工具）",{"$f":"PHONETIC(B1742)","v":"ロッカクレンチ（コウグ）"},null,"粗ごみ"]
["ろ","ロッキングチェアー",{"$f":"PHONETIC(B1743)","v":"ロッキングチェアー"},"サイズ判断品目","粗ごみ・大型ごみ"]
["ろ","ロックミシン（オーバーロック）",{"$f":"PHONETIC(B1744)","v":"ロックミシン（オーバーロック）"},"指定品目","大型ごみ300円"]
["ろ","ロデオマシーン",null,"サイズ判断品目","粗ごみ・大型ごみ"]
["わ","ワープロ",{"$f":"PHONETIC(B1746)","v":"ワープロ"},null,"粗ごみ"]
["わ","ワイパーのゴム（車部品）",null,null,"一般ごみ"]
["わ","ワイパーのゴム（車部品）（ブレード含む）",null,null,"粗ごみ"]
["わ","ワイパー（アーム含む）",null,"＊交換時に引き取り依頼／自動車・バイク部品、用品店に相談","市で処理しないもの"]
["わ","ワイヤーネット",{"$f":"PHONETIC(B1750)","v":"ワイヤーネット"},"サイズ判断品目","粗ごみ・大型ごみ"]
["わ","ワイヤーロープ",null,"販売店・取扱店等に相談または、ごみ処理（一般廃棄物）業者に依頼","処理困難物"]
["わ","ワインラック",{"$f":"PHONETIC(B1752)","v":"ワインラック"},"サイズ判断品目","粗ごみ・大型ごみ"]
["わ","ワインセラー\n（家電リサイクル法対象品目）",null,"【家電リサイクル法対象品目】家電小売店に依頼または財団法人\n家電製品協会（家電リサイクル券センター：0120-319640）に問い合わせ","家電リサイクル品目"]
["わ","ワゴン（プラスチック製）",{"$f":"PHONETIC(B1754)","v":"ワゴン（プラスチックセイ）"},"＊サイズ判断品目\n＊45㍑袋に収まる場合は、一般ごみへ排出","粗ごみ・大型ごみ"]
["わ","ワゴン（木製・金属製）",{"$f":"PHONETIC(B1755)","v":"ワゴン（モクセイ・キンゾクセイ）"},"サイズ判断品目","粗ごみ・大型ごみ"]
["わ","綿",{"$f":"PHONETIC(B1756)","v":"ワタ"},"寝具類は粗ごみへのみ排出","一般ごみ"]
["わ","綿菓子製造機（家庭用）",{"$f":"PHONETIC(B1757)","v":"ワタガシセイゾウキ（カテイヨウ）"},"事業に伴うもの・業務用は不可","粗ごみ"]
["わ","ワックス缶","ワックスカン","中身を除く","空き缶・びん・ガラス類"]
["わ","ワックス缶","ワックスカン","中身が残っている場合","粗ごみ"]
["わ","わら","ワラ",null,"一般ごみ"]
["わ","割り箸","ワリバシ",null,"一般ごみ"]
["わ","割り箸の袋","割リ箸ノ袋","＊地域の集団回収があれば、そちらに排出","紙類"]